Business Unit Description,Expense Code,Expense Code Description,GL Date,Document No.,Invoice No.,Invoiced Value,Supplier Name,Address Book No.,Proclass Details Level 1,Thomson Classification Description
STREET FORCE BALANCE SHEET    ,776,4332101 INVOICES PAID         ,02/04/2012,3238423,18992,1970.80,ACL HIGHWAY SERVICES LTD                ,414647,Environmental Services,WASTE DISPOSAL SERVICES       
STREET FORCE BALANCE SHEET    ,776,4332101 INVOICES PAID         ,02/04/2012,3238434,19000,788.32,ACL HIGHWAY SERVICES LTD                ,414647,Environmental Services,WASTE DISPOSAL SERVICES       
STREET FORCE BALANCE SHEET    ,776,4332101 INVOICES PAID         ,02/04/2012,3238509,402791516SH              ,549.25,GAP GROUP LTD                           ,205064,Vehicles Not Buses,PLANT & MACHINERY HIRE & LEASI
STREET FORCE BALANCE SHEET    ,776,4332101 INVOICES PAID         ,02/04/2012,3238519,75173,850.00,E HARPER (YORK) LIMITED                 ,504567,Environmental Services,DRAIN & SEWER CLEARANCE       
STREET FORCE BALANCE SHEET    ,776,4332101 INVOICES PAID         ,02/04/2012,3239660,FINAL A/C 22/12          ,776.31,GRACE LANDSCAPES LTD                    ,405048,Consultancy,LANDSCAPE ARCHITECTS & DESIGNE
HOMELESS INTERIM ACCOMM       ,6210,BED & BREAKFAST PAYMENTS      ,02/04/2012,3238639,013/2012                 ,766.00,EARL MARSHALL GUEST HOUSE               ,391589,Facilities Management,GUEST HOUSES                  
PURCHASING LEARNING DISABILITI,9190,DIRECT PAYMENTS               ,02/04/2012,3238599,J468225                  ,2561.60,REDACTED PERSONAL DATA,562179,Social Community Care,CAREFIRST DIRECT PAYMENTS     
PURCHASING ELDERLY            ,9190,DIRECT PAYMENTS               ,02/04/2012,3238601,J468225                  ,1008.00,REDACTED PERSONAL DATA,566340,Social Community Care,CAREFIRST DIRECT PAYMENTS     
CWD INDEPENDENT PLACEMENTS    ,9270,CARELEAVERS ACCOMMODATION     ,02/04/2012,3238594,SRO1117322               ,1176.00,THE NATIONAL AUTISTIC SOCIETY           ,334778,Unclassified Non Trade,CHARITIES & VOLUNTARY ORGANISA
LEAVING CARE                  ,9270,CARELEAVERS ACCOMMODATION     ,02/04/2012,3238595,273A                     ,1271.25,ROUNDABOUT LTD                          ,316572,Facilities Management,HOSTELS                       
UASC/ASYLUM - LEAVING CARE    ,6210,RENTS                         ,02/04/2012,3238606,REN0254                  ,1406.50,REDACTED PERSONAL DATA,457099,Unclassified Non Trade,OUT OF SCOPE FOR SIC MONITORIN
UASC/ASYLUM 16-17             ,6210,RENTS                         ,02/04/2012,3238627,4962,3314.41,PROGRESSIVE CARE LTD                    ,343548,Social Community Care,CHILDREN'S HOMES              
UASC/ASYLUM 16-17             ,6210,RENTS                         ,02/04/2012,3238628,4963,3314.41,PROGRESSIVE CARE LTD                    ,343548,Social Community Care,CHILDREN'S HOMES              
UASC/ASYLUM 16-17             ,6210,RENTS                         ,02/04/2012,3238629,4965,3314.41,PROGRESSIVE CARE LTD                    ,343548,Social Community Care,CHILDREN'S HOMES              
STREET FORCE BALANCE SHEET    ,776,4332101 INVOICES PAID         ,04/04/2012,3238641,263,977.50,S R HIRD PLANT                          ,503211,Vehicles Not Buses,PLANT & MACHINERY HIRE & LEASI
STREET FORCE BALANCE SHEET    ,776,4332101 INVOICES PAID         ,04/04/2012,3238642,264,1886.75,S R HIRD PLANT                          ,503211,Vehicles Not Buses,PLANT & MACHINERY HIRE & LEASI
STREET FORCE BALANCE SHEET    ,776,4332101 INVOICES PAID         ,04/04/2012,3238643,3012007850,871.85,BOC LIMITED                             ,493076,Utilities,GAS SUPPLIERS                 
STREET FORCE BALANCE SHEET    ,776,4332101 INVOICES PAID         ,04/04/2012,3238644,3182,770.75,JOHN-HENRY HAULAGE SHEFFIELD            ,475313,Transport,ROAD HAULAGE SERVICES         
STREET FORCE BALANCE SHEET    ,776,4332101 INVOICES PAID         ,04/04/2012,3238645,32873,2486.57,MHH CONTRACTING LTD                     ,205329,Construction,EXCAVATION & GROUNDWORK CONTRA
STREET FORCE BALANCE SHEET    ,776,4332101 INVOICES PAID         ,04/04/2012,3238646,32874,1078.56,MHH CONTRACTING LTD                     ,205329,Construction,EXCAVATION & GROUNDWORK CONTRA
STREET FORCE BALANCE SHEET    ,776,4332101 INVOICES PAID         ,04/04/2012,3238647,32875,1729.64,MHH CONTRACTING LTD                     ,205329,Construction,EXCAVATION & GROUNDWORK CONTRA
STREET FORCE BALANCE SHEET    ,776,4332101 INVOICES PAID         ,04/04/2012,3238648,32876,600.00,MHH CONTRACTING LTD                     ,205329,Construction,EXCAVATION & GROUNDWORK CONTRA
STREET FORCE BALANCE SHEET    ,776,4332101 INVOICES PAID         ,04/04/2012,3238649,32878,6619.32,MHH CONTRACTING LTD                     ,205329,Construction,EXCAVATION & GROUNDWORK CONTRA
STREET FORCE BALANCE SHEET    ,776,4332101 INVOICES PAID         ,04/04/2012,3238650,32879,57629.80,MHH CONTRACTING LTD                     ,205329,Construction,EXCAVATION & GROUNDWORK CONTRA
STREET FORCE BALANCE SHEET    ,776,4332101 INVOICES PAID         ,04/04/2012,3238652,32880,13589.84,MHH CONTRACTING LTD                     ,205329,Construction,EXCAVATION & GROUNDWORK CONTRA
STREET FORCE BALANCE SHEET    ,776,4332101 INVOICES PAID         ,04/04/2012,3238654,501519,500.00,STAGECOACH SUPERTRAM MAINTENANCE LTD    ,367504,Transport,BUS & COACH OPERATORS & STATIO
STREET FORCE BALANCE SHEET    ,776,4332101 INVOICES PAID         ,04/04/2012,3238660,79191,1047.56,PROTEUS  EQUIPMENT LTD                  ,467322,Vehicles Not Buses,ROAD CONSTRUCTION EQUIPMENT MN
STREET FORCE BALANCE SHEET    ,776,4332101 INVOICES PAID         ,04/04/2012,3238663,MFG062                   ,8508.60,MFG CONSTRUCTION LTD                    ,526453,Construction,CONSTRUCTION CONTRACTORS - GEN
STREET FORCE BALANCE SHEET    ,776,4332101 INVOICES PAID         ,04/04/2012,3238664,SCC24                    ,1150.00,H.R.SKIP HIRE                           ,541284,Environmental Services,SKIP HIRE                     
STREET FORCE BALANCE SHEET    ,776,4332101 INVOICES PAID         ,04/04/2012,3238665,UBM0001732               ,1080.00,COMMAND ALKON LIMITED                   ,504021,Unclassified Trade,CONTROL PANELS                
STREET FORCE BALANCE SHEET    ,776,4332101 INVOICES PAID         ,04/04/2012,3238669,2012/006                 ,786.50,AMP CONSTRUCTION LTD                    ,455715,Construction,STEEL FABRICATORS & ERECTORS  
STREET FORCE BALANCE SHEET    ,776,4332101 INVOICES PAID         ,04/04/2012,3239016,16553,686.00,CARRYLIAM & CO                          ,203751,Environmental Services,SKIP HIRE & RUBBISH CLEARANCE 
STREET FORCE BALANCE SHEET    ,776,4332101 INVOICES PAID         ,04/04/2012,3239017,16563,752.00,CARRYLIAM & CO                          ,203751,Environmental Services,SKIP HIRE & RUBBISH CLEARANCE 
STREET FORCE BALANCE SHEET    ,776,4332101 INVOICES PAID         ,04/04/2012,3239019,20002844,1178.19,HARSCO METALS GROUP LTD                 ,493119,Vehicles Not Buses,PLANT & MACHINERY HIRE & LEASI
STREET FORCE BALANCE SHEET    ,776,4332101 INVOICES PAID         ,04/04/2012,3239020,20002845,1356.30,HARSCO METALS GROUP LTD                 ,493119,Vehicles Not Buses,PLANT & MACHINERY HIRE & LEASI
STREET FORCE BALANCE SHEET    ,776,4332101 INVOICES PAID         ,04/04/2012,3239021,79544,1031.99,HAGUE PLANT LTD                         ,205330,Vehicles Not Buses,PLANT & MACHINERY HIRE & LEASI
STREET FORCE BALANCE SHEET    ,776,4332101 INVOICES PAID         ,04/04/2012,3239022,20002864,1041.70,HARSCO METALS GROUP LTD                 ,493119,Vehicles Not Buses,PLANT & MACHINERY HIRE & LEASI
STREET FORCE BALANCE SHEET    ,776,4332101 INVOICES PAID         ,04/04/2012,3239023,20002865,1002.10,HARSCO METALS GROUP LTD                 ,493119,Vehicles Not Buses,PLANT & MACHINERY HIRE & LEASI
STREET FORCE BALANCE SHEET    ,776,4332101 INVOICES PAID         ,04/04/2012,3239024,20002896,1116.50,HARSCO METALS GROUP LTD                 ,493119,Vehicles Not Buses,PLANT & MACHINERY HIRE & LEASI
STREET FORCE BALANCE SHEET    ,776,4332101 INVOICES PAID         ,04/04/2012,3239025,20002897,783.00,HARSCO METALS GROUP LTD                 ,493119,Vehicles Not Buses,PLANT & MACHINERY HIRE & LEASI
STREET FORCE BALANCE SHEET    ,776,4332101 INVOICES PAID         ,04/04/2012,3239026,20002962,1161.60,HARSCO METALS GROUP LTD                 ,493119,Vehicles Not Buses,PLANT & MACHINERY HIRE & LEASI
STREET FORCE BALANCE SHEET    ,776,4332101 INVOICES PAID         ,04/04/2012,3239027,20002964,998.80,HARSCO METALS GROUP LTD                 ,493119,Vehicles Not Buses,PLANT & MACHINERY HIRE & LEASI
STREET FORCE BALANCE SHEET    ,776,4332101 INVOICES PAID         ,04/04/2012,3239028,20002965,1390.40,HARSCO METALS GROUP LTD                 ,493119,Vehicles Not Buses,PLANT & MACHINERY HIRE & LEASI
STREET FORCE BALANCE SHEET    ,776,4332101 INVOICES PAID         ,04/04/2012,3239029,20002966,585.47,HARSCO METALS GROUP LTD                 ,493119,Vehicles Not Buses,PLANT & MACHINERY HIRE & LEASI
STREET FORCE BALANCE SHEET    ,776,4332101 INVOICES PAID         ,04/04/2012,3239030,20002967,977.90,HARSCO METALS GROUP LTD                 ,493119,Vehicles Not Buses,PLANT & MACHINERY HIRE & LEASI
STREET FORCE BALANCE SHEET    ,776,4332101 INVOICES PAID         ,04/04/2012,3239031,20002968,872.30,HARSCO METALS GROUP LTD                 ,493119,Vehicles Not Buses,PLANT & MACHINERY HIRE & LEASI
STREET FORCE BALANCE SHEET    ,776,4332101 INVOICES PAID         ,04/04/2012,3239032,79545,687.99,HAGUE PLANT LTD                         ,205330,Vehicles Not Buses,PLANT & MACHINERY HIRE & LEASI
STREET FORCE BALANCE SHEET    ,776,4332101 INVOICES PAID         ,04/04/2012,3239033,20002969,948.87,HARSCO METALS GROUP LTD                 ,493119,Vehicles Not Buses,PLANT & MACHINERY HIRE & LEASI
STREET FORCE BALANCE SHEET    ,776,4332101 INVOICES PAID         ,04/04/2012,3239034,20002970,581.00,HARSCO METALS GROUP LTD                 ,493119,Vehicles Not Buses,PLANT & MACHINERY HIRE & LEASI
STREET FORCE BALANCE SHEET    ,776,4332101 INVOICES PAID         ,04/04/2012,3239035,20003042,4983.03,HARSCO METALS GROUP LTD                 ,493119,Vehicles Not Buses,PLANT & MACHINERY HIRE & LEASI
STREET FORCE BALANCE SHEET    ,776,4332101 INVOICES PAID         ,04/04/2012,3239036,20003044,1053.80,HARSCO METALS GROUP LTD                 ,493119,Vehicles Not Buses,PLANT & MACHINERY HIRE & LEASI
STREET FORCE BALANCE SHEET    ,776,4332101 INVOICES PAID         ,04/04/2012,3239037,20003045,974.60,HARSCO METALS GROUP LTD                 ,493119,Vehicles Not Buses,PLANT & MACHINERY HIRE & LEASI
STREET FORCE BALANCE SHEET    ,776,4332101 INVOICES PAID         ,04/04/2012,3239038,20003071,8053.00,HARSCO METALS GROUP LTD                 ,493119,Vehicles Not Buses,PLANT & MACHINERY HIRE & LEASI
STREET FORCE BALANCE SHEET    ,776,4332101 INVOICES PAID         ,04/04/2012,3239039,20003072,1337.60,HARSCO METALS GROUP LTD                 ,493119,Vehicles Not Buses,PLANT & MACHINERY HIRE & LEASI
STREET FORCE BALANCE SHEET    ,776,4332101 INVOICES PAID         ,04/04/2012,3239040,20003074,578.90,HARSCO METALS GROUP LTD                 ,493119,Vehicles Not Buses,PLANT & MACHINERY HIRE & LEASI
STREET FORCE BALANCE SHEET    ,776,4332101 INVOICES PAID         ,04/04/2012,3239041,2001/03087025            ,670.00,TIMBER SPECIALISTS (SHEFFIELD) LTD.     ,209055,Building Construction Materials,"TIMBER MERCHANTS, IMPORTERS & "
STREET FORCE BALANCE SHEET    ,776,4332101 INVOICES PAID         ,04/04/2012,3239042,2150269,892.80,EAST RIDING HORTICULTURE LTD            ,204576,Horticultural,HORTICULTURAL EQUIPMENT & SUPP
STREET FORCE BALANCE SHEET    ,776,4332101 INVOICES PAID         ,04/04/2012,3239044,2814,1648.81,MOTUS TRAFFIC LIMITED                   ,343110,Traffic Management,TRAFFIC MANAGEMENT SYSTEMS    
STREET FORCE BALANCE SHEET    ,776,4332101 INVOICES PAID         ,04/04/2012,3239060,6626,733.58,A & W HELLIWELL & SONS LTD              ,202556,Unclassified Trade,FARMING - LIVESTOCK & OTHER AN
STREET FORCE BALANCE SHEET    ,776,4332101 INVOICES PAID         ,04/04/2012,3239064,7065,740.20,TRAFFIC SYSTEMS CO-OPERATIVE LTD.       ,209116,Traffic Management,TRAFFIC MANAGEMENT SYSTEMS    
STREET FORCE BALANCE SHEET    ,776,4332101 INVOICES PAID         ,04/04/2012,3239067,7483674,501.64,CARLTON FUELS                           ,466741,Vehicles Not Buses,FUEL DEALERS                  
STREET FORCE BALANCE SHEET    ,776,4332101 INVOICES PAID         ,04/04/2012,3239068,79188,793.53,PROTEUS  EQUIPMENT LTD                  ,467322,Vehicles Not Buses,ROAD CONSTRUCTION EQUIPMENT MN
STREET FORCE BALANCE SHEET    ,776,4332101 INVOICES PAID         ,04/04/2012,3239072,1203/19443               ,1015.00,HATHER PLANT HIRE LIMITED               ,493155,Vehicles Not Buses,PLANT & MACHINERY HIRE & LEASI
STREET FORCE BALANCE SHEET    ,776,4332101 INVOICES PAID         ,04/04/2012,3239075,9027981182,987.83,TARMAC LTD                              ,463393,Building Construction Materials,BUILDING BLOCK MNFRS & DISTRIB
STREET FORCE BALANCE SHEET    ,776,4332101 INVOICES PAID         ,04/04/2012,3239083,SCC25                    ,1500.00,H.R.SKIP HIRE                           ,541284,Environmental Services,SKIP HIRE                     
STREET FORCE BALANCE SHEET    ,776,4332101 INVOICES PAID         ,04/04/2012,3239084,SCCH2                    ,988.00,H.R.SKIP HIRE                           ,541284,Environmental Services,SKIP HIRE                     
STREET FORCE BALANCE SHEET    ,776,4332101 INVOICES PAID         ,04/04/2012,3239086,SL0307511                ,582.90,SIKA LIMITED                            ,493109,Building Construction Materials,WATERPROOF MATERIAL MNFRS     
STREET FORCE BALANCE SHEET    ,776,4332101 INVOICES PAID         ,04/04/2012,3240773,1088,4130.50,K PLANT                                 ,561948,Vehicles Not Buses,PLANT & MACHINERY HIRE & LEASI
STREET FORCE BALANCE SHEET    ,776,4332101 INVOICES PAID         ,04/04/2012,3240774,4053,1672.31,B C ROBERTS (CONTRACTING) LTD           ,203217,Construction,PAINTERS & DECORATORS         
STREET FORCE BALANCE SHEET    ,776,4332101 INVOICES PAID         ,04/04/2012,3240775,9078,717.20,ARTHURS SKIPS LIMITED                   ,308308,Environmental Services,SKIP HIRE & RUBBISH CLEARANCE 
STREET FORCE BALANCE SHEET    ,776,4332101 INVOICES PAID         ,04/04/2012,3240776,1917,4427.50,HSBC INVOICE FINANCE (UK) LTD           ,299229,Financial Services,FACTORING SERVICES            
STREET FORCE BALANCE SHEET    ,776,4332101 INVOICES PAID         ,04/04/2012,3240777,25,8500.00,J & R SMITH                             ,546065,Unclassified Trade,FARMING - MIXED               
STREET FORCE BALANCE SHEET    ,776,4332101 INVOICES PAID         ,04/04/2012,3240779,1406,1590.00,LAND-MARK LANDSCAPING SYSTEMS           ,520188,Construction,FENCING CONTRACTORS           
STREET FORCE BALANCE SHEET    ,776,4332101 INVOICES PAID         ,04/04/2012,3240784,DT3012                   ,9619.20,TRAFFIC TECHNOLOGY LTD                  ,530232,Traffic Management,TRAFFIC MANAGEMENT SYSTEMS    
STREET FORCE BALANCE SHEET    ,776,4332101 INVOICES PAID         ,04/04/2012,3240785,INV0070813               ,2280.00,CROMWELL POLYTHENE LTD                  ,204145,Environmental Services,PLASTIC PRODUCTS - MNFRS      
16 - 19 BURSARY FUNDS         ,8440,FEE EXPENSES                  ,04/04/2012,3239362,ERS INVOICE65189         ,500.00,REDACTED PERSONAL DATA,566460,Unclassified Non Trade,OUT OF SCOPE FOR SIC MONITORIN
AFFORDABLE HOUSING            ,8440,FEE EXPENSES                  ,04/04/2012,3239669,ERS INVOICE65200         ,1092.00,REDACTED PERSONAL DATA,566292,Unclassified Non Trade,OUT OF SCOPE FOR SIC MONITORIN
KIRKLEES - WY SUB REGION HAL  ,1194,OTHER FEES                    ,04/04/2012,3239685,ERS INVOICE65217         ,3575.00,REDACTED PERSONAL DATA,559734,Unclassified Non Trade,OUT OF SCOPE FOR SIC MONITORIN
HAMBLETON RHB LOANS HAL       ,1194,OTHER FEES                    ,04/04/2012,3239694,ERS INVOICE65226         ,3542.70,REDACTED PERSONAL DATA,566256,Unclassified Non Trade,OUT OF SCOPE FOR SIC MONITORIN
HULL - HUMBER SUB REGION HAL  ,1194,OTHER FEES                    ,04/04/2012,3239695,ERS INVOICE65227         ,2450.00,REDACTED PERSONAL DATA,566028,Unclassified Non Trade,OUT OF SCOPE FOR SIC MONITORIN
16 - 19 BURSARY FUNDS         ,8440,FEE EXPENSES                  ,04/04/2012,3239713,ERS INVOICE65246         ,500.00,REDACTED PERSONAL DATA,565382,Unclassified Non Trade,OUT OF SCOPE FOR SIC MONITORIN
HULL - HUMBER SUB REGION HAL  ,1194,OTHER FEES                    ,04/04/2012,3239715,ERS INVOICE65248         ,3000.00,D H ATKINSON                            ,543717,Construction,BUILDERS                      
HULL - HUMBER SUB REGION HAL  ,1194,OTHER FEES                    ,04/04/2012,3239721,ERS INVOICE65254         ,1527.60,CLASSICAL GAS LTD                       ,546540,Construction,GAS INSTALLERS                
HULL - HUMBER SUB REGION HAL  ,1194,OTHER FEES                    ,04/04/2012,3239731,ERS INVOICE65264         ,3480.00,REDACTED PERSONAL DATA,566258,Unclassified Non Trade,OUT OF SCOPE FOR SIC MONITORIN
DELEGATED BUDGETS             ,9120,OTHER AGENCIES                ,04/04/2012,3239747,ERS INVOICE65280         ,24823.43,AON LIMITED                             ,319158,Financial Services,INSURANCE - OTHER             
CLAIMS                        ,8740,PUBLIC LIABILITY              ,04/04/2012,3239993,ERS INVOICE65291         ,2300.00,REDACTED PERSONAL DATA,566446,Unclassified Non Trade,OUT OF SCOPE FOR SIC MONITORIN
FINANCE CONTRACT              ,5340,TEACHING STAFF SUPERANN       ,04/04/2012,3239994,ERS INVOICE65292         ,2475.22,HM REVENUE & CUSTOMS ONLY               ,473131,Unclassified Non Trade,CUSTOMS & EXCISE              
FINANCE CONTRACT              ,5340,TEACHING STAFF SUPERANN       ,04/04/2012,3239995,ERS INVOICE65293         ,1330.56,HM REVENUE & CUSTOMS ONLY               ,473131,Unclassified Non Trade,CUSTOMS & EXCISE              
COMPLAINTS                    ,8460,CONSULTANTS FEES              ,04/04/2012,3227829,211167,2289.67,VOICE                                   ,328689,Unclassified Non Trade,CHARITIES & VOLUNTARY ORGANISA
ENVIRONMENTAL COMM SERVICES   ,8060,MATERIALS AND SUPPLIES GENERAL,04/04/2012,3232994,5050,727.44,URBAN HYGIENE LIMITED                   ,330464,Cleaning and Janitorial,CLEANING MATERIALS & EQUIPMENT
VACANTS                       ,8420,ADVERTISING AND PUBLICITY     ,04/04/2012,3235005,57142611,1572.12,AD MAG                                  ,297595,Education,NEWSPAPER & MAGAZINE PUBLISHER
POSITIVE ACTIVITIES FOR 8-13'S,9120,OTHER AGENCIES                ,04/04/2012,3235247,10/4941/55PA/40306       ,21857.61,THE WILDLIFE TRUSTS                     ,380500,Unclassified Non Trade,CHARITIES & VOLUNTARY ORGANISA
ACCES2NATURE                  ,8260,WOODLAND DEVELOPMENT EXPENSES ,04/04/2012,3235638,1935,1200.00,STEEL VALLEY PROJECT                    ,386046,Unclassified Non Trade,CHARITIES & VOLUNTARY ORGANISA
PARTNERSHIP & GRANT AID MH    ,9160,PARTNERSHIP CONTRACTS         ,04/04/2012,3235885,22804,5000.00,VOLUNTARY ACTION SHEFFIELD              ,295283,Unclassified Non Trade,CHARITIES & VOLUNTARY ORGANISA
BRIGHTSIDE/SHIREGREEN COM FORE,8060,MATERIALS AND SUPPLIES GENERAL,04/04/2012,3235986,5/648/25LM/40823         ,737.00,WILDSCAPES LTD                          ,472494,Consultancy,LANDSCAPE ARCHITECTS & DESIGNE
FAMILIES TOGETHER             ,8440,FEE EXPENSES                  ,04/04/2012,3236484,642,46002.25,SHEFFIELD ALCOHOL ADVISORY SERVICE      ,335752,Medical ,ALCOHOL MISUSE - ADVICE & COUN
PFI 1 UNITARY CHARGE          ,8350,MISCELLANEOUS EXPENSES        ,04/04/2012,3236486,696,7727.54,PYRAMID SCHOOLS (SHEFFIELD) LTD         ,324404,Financial Services,LEASING SERVICES              
SEN PUPIL PLACEMENTS - EDUCAT ,9120,OTHER AGENCIES                ,04/04/2012,3236822,8500328580,640.80,MANCHESTER CITY COUNCIL                 ,311077,Unclassified Non Trade,LOCAL GOVERNMENT              
ENVIRONMENTAL COMM SERVICES   ,8060,MATERIALS AND SUPPLIES GENERAL,04/04/2012,3236837,916398315,2979.96,ARCO LTD                                ,203022,Clothing,SAFETY EQUIPMENT & CLOTHING   
CORPORATE DEBT RECOVERY       ,8440,FEE EXPENSES                  ,04/04/2012,3237154,C110305                  ,1204.52,ROSSENDALES COLLECT LTD                 ,477656,Financial Services,BAILIFFS                      
SCT - WOODBOURN ROAD ATHLETICS,8180,GRANTS                        ,04/04/2012,3237158,3018381,8000.00,SHEFFIELD CITY TRUST                    ,315865,Unclassified Non Trade,CHARITIES & VOLUNTARY ORGANISA
ARCHAEOLOGY                   ,8440,FEE EXPENSES                  ,04/04/2012,3237202,38007750,3650.00,DONCASTER MBC                           ,334689,Unclassified Non Trade,LOCAL GOVERNMENT              
SHEFFIELD HOMES MANAGEMENT COS,8350,MISCELLANEOUS EXPENSES        ,04/04/2012,3238102,561,13481.79,SHEFFIELD HOMES LTD                     ,503889,Unclassified Non Trade,"HOUSING ASSOCIATIONS, SOCIETIE"
WOODLAND MGMT FOR BIRDS EM    ,1164,NC&A LANDSCAPING              ,04/04/2012,3238154,1592,2275.00,STOURTON ESTATES LTD                    ,438927,Environmental Services,TREE WORK & FORESTRY SERVICES 
SCC BALANCE SHEET             ,1540,DEMOLITION CONTROL ACCOUNT    ,04/04/2012,3238166,3124,3175.00,DSR DEMOLITION LIMITED                  ,561662,Construction,DEMOLITION & DISMANTLING CONTR
PFI 1 UNITARY CHARGE          ,8350,MISCELLANEOUS EXPENSES        ,04/04/2012,3238291,661,5090.27,PYRAMID SCHOOLS (SHEFFIELD) LTD         ,324404,Financial Services,LEASING SERVICES              
SCHOOLS LIBRARY SERVICE       ,8080,LIBRARY MATERIALS             ,04/04/2012,3238370,XS12381                  ,4857.45,XNE MARKETING & DISTRIBUTION LTD        ,308684,Unclassified Trade,PACKAGING MATERIALS MNFRS & SU
SCHOOLS LIBRARY SERVICE       ,8080,LIBRARY MATERIALS             ,04/04/2012,3238371,XS12386                  ,4857.45,XNE MARKETING & DISTRIBUTION LTD        ,308684,Unclassified Trade,PACKAGING MATERIALS MNFRS & SU
SEN TRANSPORT                 ,7140,PUBLIC TRANSPORT COSTS        ,04/04/2012,3238393,61009325,1134.00,HALTON BOROUGH COUNCIL                  ,326177,Unclassified Non Trade,LOCAL GOVERNMENT              
PFI 1 UNITARY CHARGE          ,8350,MISCELLANEOUS EXPENSES        ,04/04/2012,3238986,641,3238.01,PYRAMID SCHOOLS (SHEFFIELD) LTD         ,324404,Financial Services,LEASING SERVICES              
PFI 1 UNITARY CHARGE          ,8350,MISCELLANEOUS EXPENSES        ,04/04/2012,3238990,632,2556.37,PYRAMID SCHOOLS (SHEFFIELD) LTD         ,324404,Financial Services,LEASING SERVICES              
PFI 4 UNITARY CHARGE          ,8350,MISCELLANEOUS EXPENSES        ,04/04/2012,3239132,905,2578.85,SHEFFIELD LEP LIMITED                   ,471227,Financial Services,LEASING SERVICES              
PFI 4 UNITARY CHARGE          ,8350,MISCELLANEOUS EXPENSES        ,04/04/2012,3239135,904,1786.87,SHEFFIELD LEP LIMITED                   ,471227,Financial Services,LEASING SERVICES              
WELCOME TO SHEFFIELD          ,8250,MARKETING EXPENSES            ,04/04/2012,3239138,SINV.23453               ,2500.00,DERBYSHIRE & NOTTINGHAMSHIRE CHAMBER    ,469555,Human Resources,BUSINESS INFORMATION SERVICES 
PLAYGROUND MAINTENANCE & INSPE,8010,EQUIPMENT PURCHASE AND REPAIR ,04/04/2012,3239294,90120078,987.90,EIBE PLAY LTD                           ,456065,Sports & Playground,PLAYGROUND EQUIPMENT          
HIGHWAYS DEV CONTROL          ,9650,OTHER SERVICE RECHARGES       ,04/04/2012,3239447,1034231,3972.52,TELENT (TRAFFIC SIGNALS UK) LTD         ,503759,Traffic Management,TRAFFIC MANAGEMENT SYSTEMS    
ENVIRONMENTAL COMM SERVICES   ,8060,MATERIALS AND SUPPLIES GENERAL,04/04/2012,3239518,177173,2306.40,THE HELPING HAND COMPANY                ,328447,Unclassified Non Trade,CHARITIES & VOLUNTARY ORGANISA
OLIVE GROVE WORKSHOPS         ,7010,ROUTINE VEHICLE REPAIR & MTCE ,04/04/2012,3239758,526914,779.43,DAWSON RENTALS SWEEPERS                 ,446765,Vehicles Not Buses,PLANT & MACHINERY HIRE & LEASI
OLIVE GROVE WORKSHOPS         ,7010,ROUTINE VEHICLE REPAIR & MTCE ,04/04/2012,3239760,526924,647.32,DAWSON RENTALS SWEEPERS                 ,446765,Vehicles Not Buses,PLANT & MACHINERY HIRE & LEASI
CONTRACT                      ,6190,WATER SERVICES                ,04/04/2012,3238988,391000000000000,565.84,YORKSHIRE WATER PLC                     ,295854,Utilities,WATER COMPANIES               
CONTRACT                      ,6190,WATER SERVICES                ,04/04/2012,3238994,391000000000000,516.50,YORKSHIRE WATER PLC                     ,295854,Utilities,WATER COMPANIES               
CONTRACT                      ,6190,WATER SERVICES                ,04/04/2012,3238995,391000000000000,628.88,YORKSHIRE WATER PLC                     ,295854,Utilities,WATER COMPANIES               
CONTRACT                      ,6190,WATER SERVICES                ,04/04/2012,3238996,391000000000000,508.27,YORKSHIRE WATER PLC                     ,295854,Utilities,WATER COMPANIES               
CONTRACT                      ,6190,WATER SERVICES                ,04/04/2012,3239004,391000000000000,807.04,YORKSHIRE WATER PLC                     ,295854,Utilities,WATER COMPANIES               
CONTRACT                      ,6190,WATER SERVICES                ,04/04/2012,3239125,391000000000000,538.43,YORKSHIRE WATER PLC                     ,295854,Utilities,WATER COMPANIES               
VERDON RECREATION CENTRE      ,6150,ELECTRICITY                   ,04/04/2012,3239127,79149227900,1303.31,NPOWER                                  ,347938,Utilities,ELECTRICITY COMPANIES         
PFI 3 UNITARY CHARGE          ,6150,ELECTRICITY                   ,04/04/2012,3239352,A3644459/S1795523        ,4410.29,BRITISH GAS BUSINESS                    ,370790,Utilities,GAS COMPANIES                 
PFI 3 UNITARY CHARGE          ,6150,ELECTRICITY                   ,04/04/2012,3239356,A3644459/S1862593        ,1097.03,BRITISH GAS BUSINESS                    ,370790,Utilities,GAS COMPANIES                 
PFI 3 UNITARY CHARGE          ,6150,ELECTRICITY                   ,04/04/2012,3239369,A3644459/S1863023        ,3773.40,BRITISH GAS BUSINESS                    ,370790,Utilities,GAS COMPANIES                 
PFI 3 UNITARY CHARGE          ,6150,ELECTRICITY                   ,04/04/2012,3239372,A3644459/S1863023        ,4154.57,BRITISH GAS BUSINESS                    ,370790,Utilities,GAS COMPANIES                 
PFI 3 UNITARY CHARGE          ,6150,ELECTRICITY                   ,04/04/2012,3239374,A3644459/S1863024        ,8497.72,BRITISH GAS BUSINESS                    ,370790,Utilities,GAS COMPANIES                 
PFI 3 UNITARY CHARGE          ,6150,ELECTRICITY                   ,04/04/2012,3239376,A3644459/S1863024        ,10023.03,BRITISH GAS BUSINESS                    ,370790,Utilities,GAS COMPANIES                 
PFI 2 UNITARY CHARGE          ,6150,ELECTRICITY                   ,04/04/2012,3239380,A3643547/S1862893        ,1096.30,BRITISH GAS BUSINESS                    ,370790,Utilities,GAS COMPANIES                 
PFI 2 UNITARY CHARGE          ,6150,ELECTRICITY                   ,04/04/2012,3239383,A3643547/S1862954        ,1278.97,BRITISH GAS BUSINESS                    ,370790,Utilities,GAS COMPANIES                 
PFI 4 UNITARY CHARGE          ,6150,ELECTRICITY                   ,04/04/2012,3239384,A3540955/S1724960        ,2728.73,BRITISH GAS BUSINESS                    ,370790,Utilities,GAS COMPANIES                 
PFI 4 UNITARY CHARGE          ,6150,ELECTRICITY                   ,04/04/2012,3239385,A3540955/S1724961        ,2615.32,BRITISH GAS BUSINESS                    ,370790,Utilities,GAS COMPANIES                 
PFI 4 UNITARY CHARGE          ,6150,ELECTRICITY                   ,04/04/2012,3239387,A3540955/S1862566        ,699.66,BRITISH GAS BUSINESS                    ,370790,Utilities,GAS COMPANIES                 
URBAN TRAFFIC CONTROL         ,6390,NETWORK COMMUNICATIONS        ,04/04/2012,3239650,145442,800.87,POWER INTERNET LTD                      ,391741,ICT,INTERNET SERVICE PROVIDERS    
URBAN TRAFFIC CONTROL         ,6390,NETWORK COMMUNICATIONS        ,04/04/2012,3239651,145443,800.87,POWER INTERNET LTD                      ,391741,ICT,INTERNET SERVICE PROVIDERS    
URBAN TRAFFIC CONTROL         ,6390,NETWORK COMMUNICATIONS        ,04/04/2012,3239652,145444,800.87,POWER INTERNET LTD                      ,391741,ICT,INTERNET SERVICE PROVIDERS    
URBAN TRAFFIC CONTROL         ,6390,NETWORK COMMUNICATIONS        ,04/04/2012,3239653,145441,800.87,POWER INTERNET LTD                      ,391741,ICT,INTERNET SERVICE PROVIDERS    
FM SITES TRADED               ,6160,GAS                           ,04/04/2012,3239657,A3645517/S1862611        ,1506.57,BRITISH GAS BUSINESS                    ,370790,Utilities,GAS COMPANIES                 
PURCHASING LEARNING DISABILITI,9250,INDEPENDENT DAY CARE          ,04/04/2012,3238893,4914,1084.32,CAMBIAN LEARNING DISABILITIES           ,362013,Unclassified Non Trade,DAY CENTRES                   
PURCHASING LEARNING DISABILITI,9250,INDEPENDENT DAY CARE          ,04/04/2012,3238894,4915,1034.92,CAMBIAN LEARNING DISABILITIES           ,362013,Unclassified Non Trade,DAY CENTRES                   
PURCHASING LEARNING DISABILITI,9250,INDEPENDENT DAY CARE          ,04/04/2012,3238895,4916,895.44,CAMBIAN LEARNING DISABILITIES           ,362013,Unclassified Non Trade,DAY CENTRES                   
PURCHASING LEARNING DISABILITI,9250,INDEPENDENT DAY CARE          ,04/04/2012,3238896,4917,1279.68,CAMBIAN LEARNING DISABILITIES           ,362013,Unclassified Non Trade,DAY CENTRES                   
PURCHASING LEARNING DISABILITI,9250,INDEPENDENT DAY CARE          ,04/04/2012,3238897,4920,1034.92,CAMBIAN LEARNING DISABILITIES           ,362013,Unclassified Non Trade,DAY CENTRES                   
PURCHASING LEARNING DISABILITI,9250,INDEPENDENT DAY CARE          ,04/04/2012,3238898,4921,919.92,CAMBIAN LEARNING DISABILITIES           ,362013,Unclassified Non Trade,DAY CENTRES                   
PURCHASING LEARNING DISABILITI,9250,INDEPENDENT DAY CARE          ,04/04/2012,3238899,4922,2718.32,CAMBIAN LEARNING DISABILITIES           ,362013,Unclassified Non Trade,DAY CENTRES                   
PURCHASING LEARNING DISABILITI,9250,INDEPENDENT DAY CARE          ,04/04/2012,3238903,4923,1279.68,CAMBIAN LEARNING DISABILITIES           ,362013,Unclassified Non Trade,DAY CENTRES                   
PURCHASING LEARNING DISABILITI,9250,INDEPENDENT DAY CARE          ,04/04/2012,3238905,Z/14/190703              ,2015.48,H F TRUST LIMITED                       ,362078,Unclassified Non Trade,CHARITIES & VOLUNTARY ORGANISA
PURCHASING LEARNING DISABILITI,9250,INDEPENDENT DAY CARE          ,04/04/2012,3238906,4906,1121.48,CAMBIAN LEARNING DISABILITIES           ,362013,Unclassified Non Trade,DAY CENTRES                   
PURCHASING LEARNING DISABILITI,9250,INDEPENDENT DAY CARE          ,04/04/2012,3238909,43291,1440.00,PACES SHEFFIELD                         ,376410,Unclassified Non Trade,SCHOOLS - SPECIAL             
PURCHASING LEARNING DISABILITI,9250,INDEPENDENT DAY CARE          ,04/04/2012,3238911,101019,546.00,SPECTRUM ACTIVE (NOT FOR PROFIT)        ,533308,Human Resources,TRAINING CENTRES              
PDSI PURCHASING               ,9250,INDEPENDENT DAY CARE          ,04/04/2012,3238913,4907,928.56,CAMBIAN LEARNING DISABILITIES           ,362013,Unclassified Non Trade,DAY CENTRES                   
PURCHASING                    ,9250,INDEPENDENT DAY CARE          ,04/04/2012,3238914,180,800.00,CARRWOOD HOUSE HOME                     ,362165,Social Community Care,RESIDENTIAL CARE HOMES        
DRUG & ALCOHOL MH -PURCHASING ,9250,INDEPENDENT DAY CARE          ,04/04/2012,3238915,1938,1200.00,CARRWOOD HOUSE HOME                     ,362165,Social Community Care,RESIDENTIAL CARE HOMES        
PDSI PURCHASING               ,9250,INDEPENDENT DAY CARE          ,04/04/2012,3238916,4908,1040.80,CAMBIAN LEARNING DISABILITIES           ,362013,Unclassified Non Trade,DAY CENTRES                   
PURCHASING LEARNING DISABILITI,9250,INDEPENDENT DAY CARE          ,04/04/2012,3238917,4909,1084.32,CAMBIAN LEARNING DISABILITIES           ,362013,Unclassified Non Trade,DAY CENTRES                   
PURCHASING LEARNING DISABILITI,9250,INDEPENDENT DAY CARE          ,04/04/2012,3238921,4911,1312.00,CAMBIAN LEARNING DISABILITIES           ,362013,Unclassified Non Trade,DAY CENTRES                   
PURCHASING LEARNING DISABILITI,9250,INDEPENDENT DAY CARE          ,04/04/2012,3238922,AC004356                 ,3423.79,AUTISM CARE (UK) LTD                    ,417515,Social Community Care,DISABILITY & SPECIAL NEEDS - S
PURCHASING LEARNING DISABILITI,9250,INDEPENDENT DAY CARE          ,04/04/2012,3238924,4912,909.40,CAMBIAN LEARNING DISABILITIES           ,362013,Unclassified Non Trade,DAY CENTRES                   
PURCHASING LEARNING DISABILITI,9250,INDEPENDENT DAY CARE          ,04/04/2012,3238925,4913,928.52,CAMBIAN LEARNING DISABILITIES           ,362013,Unclassified Non Trade,DAY CENTRES                   
PURCHASING LEARNING DISABILITI,9190,CITYWIDE SPOT                 ,04/04/2012,3238928,Z/14/190459              ,1445.52,H F TRUST LIMITED                       ,362078,Unclassified Non Trade,CHARITIES & VOLUNTARY ORGANISA
PURCHASING LEARNING DISABILITI,9190,CITYWIDE SPOT                 ,04/04/2012,3238929,Z/14/190460              ,590.00,H F TRUST LIMITED                       ,362078,Unclassified Non Trade,CHARITIES & VOLUNTARY ORGANISA
PURCHASING LEARNING DISABILITI,9190,CITYWIDE SPOT                 ,04/04/2012,3238931,Z/14/190560              ,668.32,H F TRUST LIMITED                       ,362078,Unclassified Non Trade,CHARITIES & VOLUNTARY ORGANISA
PURCHASING LEARNING DISABILITI,9190,CITYWIDE SPOT                 ,04/04/2012,3238932,Z/14/190561              ,704.24,H F TRUST LIMITED                       ,362078,Unclassified Non Trade,CHARITIES & VOLUNTARY ORGANISA
PURCHASING LEARNING DISABILITI,9190,CITYWIDE SPOT                 ,04/04/2012,3238933,Z/14/190562              ,1645.48,H F TRUST LIMITED                       ,362078,Unclassified Non Trade,CHARITIES & VOLUNTARY ORGANISA
PURCHASING LEARNING DISABILITI,9190,CITYWIDE SPOT                 ,04/04/2012,3238934,Z/14/190563              ,5593.76,H F TRUST LIMITED                       ,362078,Unclassified Non Trade,CHARITIES & VOLUNTARY ORGANISA
PURCHASING LEARNING DISABILITI,9190,CITYWIDE SPOT                 ,04/04/2012,3238935,Z/14/190564              ,2749.40,H F TRUST LIMITED                       ,362078,Unclassified Non Trade,CHARITIES & VOLUNTARY ORGANISA
PURCHASING LEARNING DISABILITI,9190,CITYWIDE SPOT                 ,04/04/2012,3238936,4379,1291.92,NEW ERA HOUSING AUTHORITY               ,505956,Unclassified Non Trade,"HOUSING ASSOCIATIONS, SOCIETIE"
PURCHASING LEARNING DISABILITI,9190,CITYWIDE SPOT                 ,04/04/2012,3238938,Z/14/190566              ,1354.52,H F TRUST LIMITED                       ,362078,Unclassified Non Trade,CHARITIES & VOLUNTARY ORGANISA
PURCHASING LEARNING DISABILITI,9190,CITYWIDE SPOT                 ,04/04/2012,3238941,Z/14/190752              ,1418.88,H F TRUST LIMITED                       ,362078,Unclassified Non Trade,CHARITIES & VOLUNTARY ORGANISA
PURCHASING LEARNING DISABILITI,9190,CITYWIDE SPOT                 ,04/04/2012,3238942,Z/14/190753              ,1216.44,H F TRUST LIMITED                       ,362078,Unclassified Non Trade,CHARITIES & VOLUNTARY ORGANISA
PURCHASING LEARNING DISABILITI,9190,CITYWIDE SPOT                 ,04/04/2012,3238943,04390+04391              ,7699.72,NEW ERA HOUSING AUTHORITY               ,505956,Unclassified Non Trade,"HOUSING ASSOCIATIONS, SOCIETIE"
PURCHASING LEARNING DISABILITI,9190,CITYWIDE SPOT                 ,04/04/2012,3238944,4419,8580.24,NEW ERA HOUSING AUTHORITY               ,505956,Unclassified Non Trade,"HOUSING ASSOCIATIONS, SOCIETIE"
PURCHASING LEARNING DISABILITI,9190,CITYWIDE SPOT                 ,04/04/2012,3238946,1615,2008.50,CAMPHILL VILLAGE TRUST                  ,203704,Unclassified Non Trade,CHARITIES & VOLUNTARY ORGANISA
PURCHASING LEARNING DISABILITI,9190,CITYWIDE SPOT                 ,04/04/2012,3238947,1820,2463.93,ST CHRISTOPHERS TRUST                   ,362085,Social Community Care,RESIDENTIAL CARE HOMES        
PURCHASING LEARNING DISABILITI,9190,CITYWIDE SPOT                 ,04/04/2012,3238948,20732,709.72,ST ANNE'S COMMUNITY SERVICES            ,351501,Unclassified Non Trade,"HOUSING ASSOCIATIONS, SOCIETIE"
PURCHASING                    ,9190,CITYWIDE SPOT                 ,04/04/2012,3238949,20733,709.72,ST ANNE'S COMMUNITY SERVICES            ,351501,Unclassified Non Trade,"HOUSING ASSOCIATIONS, SOCIETIE"
PURCHASING LEARNING DISABILITI,9190,CITYWIDE SPOT                 ,04/04/2012,3238950,20735,709.72,ST ANNE'S COMMUNITY SERVICES            ,351501,Unclassified Non Trade,"HOUSING ASSOCIATIONS, SOCIETIE"
PURCHASING LEARNING DISABILITI,9190,CITYWIDE SPOT                 ,04/04/2012,3238951,20736,709.72,ST ANNE'S COMMUNITY SERVICES            ,351501,Unclassified Non Trade,"HOUSING ASSOCIATIONS, SOCIETIE"
PURCHASING LEARNING DISABILITI,9190,CITYWIDE SPOT                 ,04/04/2012,3238952,2100069640,2712.24,COMMUNITY HEALTH SHEFFIELD              ,361895,Unclassified Non Trade,HOSPITALS                     
PURCHASING LEARNING DISABILITI,9190,CITYWIDE SPOT                 ,04/04/2012,3238953,2100069646,3776.24,COMMUNITY HEALTH SHEFFIELD              ,361895,Unclassified Non Trade,HOSPITALS                     
PURCHASING LEARNING DISABILITI,9190,CITYWIDE SPOT                 ,04/04/2012,3238954,2100069653,1426.40,COMMUNITY HEALTH SHEFFIELD              ,361895,Unclassified Non Trade,HOSPITALS                     
PURCHASING LEARNING DISABILITI,9190,CITYWIDE SPOT                 ,04/04/2012,3238955,210009643,2712.24,COMMUNITY HEALTH SHEFFIELD              ,361895,Unclassified Non Trade,HOSPITALS                     
PURCHASING LEARNING DISABILITI,9190,CITYWIDE SPOT                 ,04/04/2012,3238970,29223,2320.00,LINKAGE COMMUNITY TRUST                 ,362116,Unclassified Non Trade,CHARITIES & VOLUNTARY ORGANISA
PURCHASING LEARNING DISABILITI,9190,CITYWIDE SPOT                 ,04/04/2012,3238972,29252,1621.62,LINKAGE COMMUNITY TRUST                 ,362116,Unclassified Non Trade,CHARITIES & VOLUNTARY ORGANISA
PURCHASING LEARNING DISABILITI,9190,CITYWIDE SPOT                 ,04/04/2012,3238973,3630000057,1504.00,CRAEGMOOR MEADOW VIEW                   ,537766,Social Community Care,RESIDENTIAL CARE HOMES        
PURCHASING                    ,9230,CCSP OTHER                    ,04/04/2012,3238974,5275,1682.29,SYHA LTD                                ,385143,Unclassified Non Trade,"HOUSING ASSOCIATIONS, SOCIETIE"
PURCHASING LEARNING DISABILITI,9190,CITYWIDE SPOT                 ,04/04/2012,3238978,9091,966.40,NOTTS SOCIETY AUTISTIC CHILD / ADULT    ,368343,Unclassified Non Trade,CHARITIES & VOLUNTARY ORGANISA
PURCHASING LEARNING DISABILITI,9230,CCSP TRANSPORT                ,04/04/2012,3238979,9104,572.22,NOTTS SOCIETY AUTISTIC CHILD / ADULT    ,368343,Unclassified Non Trade,CHARITIES & VOLUNTARY ORGANISA
PURCHASING LEARNING DISABILITI,9190,CITYWIDE SPOT                 ,04/04/2012,3238980,9160,1812.40,NOTTS SOCIETY AUTISTIC CHILD / ADULT    ,368343,Unclassified Non Trade,CHARITIES & VOLUNTARY ORGANISA
PURCHASING LEARNING DISABILITI,9190,CITYWIDE SPOT                 ,04/04/2012,3238981,G2959/MS                 ,1767.68,REDACTED PERSONAL DATA,361896,Social Community Care,HOME CARE SERVICES            
PURCHASING LEARNING DISABILITI,9190,CITYWIDE SPOT                 ,04/04/2012,3238982,G2960/MS                 ,1767.68,REDACTED PERSONAL DATA,361896,Social Community Care,HOME CARE SERVICES            
PURCHASING LEARNING DISABILITI,9190,CITYWIDE SPOT                 ,04/04/2012,3238983,G2961/MS                 ,1767.68,REDACTED PERSONAL DATA,361896,Social Community Care,HOME CARE SERVICES            
PURCHASING LEARNING DISABILITI,9190,CITYWIDE SPOT                 ,04/04/2012,3239306,22520+861                ,783.20,SPECTRUM SOCIAL CARE LTD                ,328608,Human Resources,EMPLOYMENT & RECRUITMENT AGENC
PURCHASING LEARNING DISABILITI,9230,CCSP OTHER                    ,04/04/2012,3239309,JS1/4                    ,1463.04,NEWFIELD VIEW SUPPORTED LIVING LTD      ,487359,Social Community Care,DISABILITY & SPECIAL NEEDS - S
PURCHASING LEARNING DISABILITI,9230,CCSP OTHER                    ,04/04/2012,3239310,JT1/4                    ,5547.36,NEWFIELD VIEW SUPPORTED LIVING LTD      ,487359,Social Community Care,DISABILITY & SPECIAL NEEDS - S
PURCHASING LEARNING DISABILITI,9230,CCSP OTHER                    ,04/04/2012,3239311,LG1/4                    ,1787.00,NEWFIELD VIEW SUPPORTED LIVING LTD      ,487359,Social Community Care,DISABILITY & SPECIAL NEEDS - S
PURCHASING LEARNING DISABILITI,9190,CITYWIDE SPOT                 ,04/04/2012,3239312,M11/4/2250               ,2130.31,CAMPHILL VILLAGE TRUST                  ,397783,Unclassified Non Trade,CHARITIES & VOLUNTARY ORGANISA
PURCHASING LEARNING DISABILITI,9230,CCSP OTHER                    ,04/04/2012,3239313,PH1/4                    ,2122.16,NEWFIELD VIEW SUPPORTED LIVING LTD      ,487359,Social Community Care,DISABILITY & SPECIAL NEEDS - S
PURCHASING LEARNING DISABILITI,9230,CCSP OTHER                    ,04/04/2012,3239315,PW1/4                    ,1828.80,NEWFIELD VIEW SUPPORTED LIVING LTD      ,487359,Social Community Care,DISABILITY & SPECIAL NEEDS - S
PURCHASING LEARNING DISABILITI,9230,CCSP OTHER                    ,04/04/2012,3239316,RR1/4                    ,2102.20,NEWFIELD VIEW SUPPORTED LIVING LTD      ,487359,Social Community Care,DISABILITY & SPECIAL NEEDS - S
PURCHASING LEARNING DISABILITI,9230,CCSP TRANSPORT                ,04/04/2012,3239317,SEN023325                ,807.72,SENSE                                   ,361885,Unclassified Non Trade,CHARITIES & VOLUNTARY ORGANISA
PURCHASING LEARNING DISABILITI,9190,CITYWIDE SPOT                 ,04/04/2012,3239323,22542+871                ,783.20,SPECTRUM SOCIAL CARE LTD                ,328608,Human Resources,EMPLOYMENT & RECRUITMENT AGENC
PURCHASING LEARNING DISABILITI,9230,CCSP OTHER                    ,04/04/2012,3239330,AM1/4                    ,609.60,NEWFIELD VIEW SUPPORTED LIVING LTD      ,487359,Social Community Care,DISABILITY & SPECIAL NEEDS - S
PURCHASING                    ,9230,CCSP OTHER                    ,04/04/2012,3239330,AM1/4                    ,609.60,NEWFIELD VIEW SUPPORTED LIVING LTD      ,487359,Social Community Care,DISABILITY & SPECIAL NEEDS - S
PURCHASING LEARNING DISABILITI,9230,CCSP OTHER                    ,04/04/2012,3239331,AP1/4                    ,2274.80,NEWFIELD VIEW SUPPORTED LIVING LTD      ,487359,Social Community Care,DISABILITY & SPECIAL NEEDS - S
PURCHASING LEARNING DISABILITI,9190,CITYWIDE SPOT                 ,04/04/2012,3239332,22493+850                ,783.20,SPECTRUM SOCIAL CARE LTD                ,328608,Human Resources,EMPLOYMENT & RECRUITMENT AGENC
PURCHASING LEARNING DISABILITI,9190,CITYWIDE SPOT                 ,04/04/2012,3239336,22510,1911.60,SPECTRUM SOCIAL CARE LTD                ,328608,Human Resources,EMPLOYMENT & RECRUITMENT AGENC
PURCHASING ELDERLY            ,9190,CITYWIDE SPOT                 ,04/04/2012,3239870,J464195 040312           ,1429.17,SUTTON STAFF AGENCY LTD.                ,301604,Human Resources,EMPLOYMENT & RECRUITMENT AGENC
PDSI PURCHASING               ,9190,CITYWIDE SPOT                 ,04/04/2012,3239870,J464195 040312           ,706.56,SUTTON STAFF AGENCY LTD.                ,301604,Human Resources,EMPLOYMENT & RECRUITMENT AGENC
PURCHASING LEARNING DISABILITI,9190,CITYWIDE SPOT                 ,04/04/2012,3239870,J464195 040312           ,19571.05,SUTTON STAFF AGENCY LTD.                ,301604,Human Resources,EMPLOYMENT & RECRUITMENT AGENC
INDEPENDENT FOSTERING PLACEMEN,9270,INDEPENDENT FOSTERING         ,04/04/2012,3238884,110031,830.00,REDACTED PERSONAL DATA,349291,Social Community Care,ADOPTION & FOSTERING          
INDEPENDENT FOSTERING PLACEMEN,9270,INDEPENDENT FOSTERING         ,04/04/2012,3238885,110032,874.00,REDACTED PERSONAL DATA,349291,Social Community Care,ADOPTION & FOSTERING          
INDEPENDENT RES BLOCK PLACEMEN,9270,CARELEAVERS ACCOMMODATION     ,04/04/2012,3238889,200399,12400.08,REDACTED PERSONAL DATA,559392,Social Community Care,CHILDCARE SERVICES            
LEAVING CARE                  ,9270,CARELEAVERS ACCOMMODATION     ,04/04/2012,3238890,4936,3200.00,PROGRESSIVE CARE LTD                    ,343548,Social Community Care,CHILDREN'S HOMES              
INDEPENDENT RES BLOCK PLACEMEN,9270,INDEPENDENT RESIDENTIAL PMENT ,04/04/2012,3238891,795,15972.76,REDACTED PERSONAL DATA,326884,Social Community Care,CHILDCARE SERVICES            
LEAVING CARE                  ,9270,INDEPENDENT FOSTERING         ,04/04/2012,3239281,23526,3664.08,REDACTED PERSONAL DATA,366456,Social Community Care,ADOPTION & FOSTERING          
INDEPENDENT FOSTERING PLACEMEN,9270,INDEPENDENT FOSTERING         ,04/04/2012,3239282,23527,3703.00,REDACTED PERSONAL DATA,366456,Social Community Care,ADOPTION & FOSTERING          
INDEPENDENT FOSTERING PLACEMEN,9270,INDEPENDENT FOSTERING         ,04/04/2012,3239283,23528,3703.00,REDACTED PERSONAL DATA,366456,Social Community Care,ADOPTION & FOSTERING          
CWD INDEPENDENT PLACEMENTS    ,9270,CARELEAVERS ACCOMMODATION     ,04/04/2012,3239284,WI5685                   ,31024.09,THE HESLEY GROUP                        ,327405,Unclassified Non Trade,SCHOOLS - SPECIAL             
CWD INDEPENDENT PLACEMENTS    ,9270,CARELEAVERS ACCOMMODATION     ,04/04/2012,3239285,WI5690                   ,62048.18,THE HESLEY GROUP                        ,327405,Unclassified Non Trade,SCHOOLS - SPECIAL             
CWD INDEPENDENT PLACEMENTS    ,9270,CARELEAVERS ACCOMMODATION     ,04/04/2012,3239286,WI5691                   ,62048.18,THE HESLEY GROUP                        ,327405,Unclassified Non Trade,SCHOOLS - SPECIAL             
CWD INDEPENDENT PLACEMENTS    ,9270,CARELEAVERS ACCOMMODATION     ,04/04/2012,3239287,WI5692                   ,62048.18,THE HESLEY GROUP                        ,327405,Unclassified Non Trade,SCHOOLS - SPECIAL             
LEAVING CARE                  ,9270,CARELEAVERS ACCOMMODATION     ,04/04/2012,3239289,995,1843.60,TUNTUM HOUSING ASSOCIATION              ,566291,Unclassified Trade,LETTING AGENTS                
CWD INDEPENDENT PLACEMENTS    ,9270,CARELEAVERS ACCOMMODATION     ,04/04/2012,3239290,FU5898                   ,62048.18,THE HESLEY GROUP                        ,327405,Unclassified Non Trade,SCHOOLS - SPECIAL             
EAST SA - CIN S17             ,9270,PAYMENTS TO RELATIVES/FRIENDS ,04/04/2012,3239301,87791,1197.00,REDACTED PERSONAL DATA,566312,Unclassified Non Trade,OUT OF SCOPE FOR SIC MONITORIN
CWD INDEPENDENT PLACEMENTS    ,9270,INDEPENDENT RESIDENTIAL PMENT ,04/04/2012,3239661,23876,5760.18,CITIZENSHIP FIRST                       ,329379,Unclassified Non Trade,CHARITIES & VOLUNTARY ORGANISA
PURCHASING ELDERLY            ,9200,CONTINUING RESIDENTIAL CARE   ,04/04/2012,3238797,J468474 290412           ,7674.00,PRIOR BANK HOUSE                        ,361772,Social Community Care,RESIDENTIAL CARE HOMES        
PURCHASING LEARNING DISABILITI,9200,CONTINUING RESIDENTIAL CARE   ,04/04/2012,3238798,J468479 290412           ,7730.42,ORCHARD CARE RESIDENTIAL HOME           ,362100,Social Community Care,NURSING HOMES                 
PURCHASING ELDERLY            ,9200,CONTINUING RESIDENTIAL CARE   ,04/04/2012,3238798,J468479 290412           ,6534.40,ORCHARD CARE RESIDENTIAL HOME           ,362100,Social Community Care,NURSING HOMES                 
PURCHASING ELDERLY            ,9200,CONTINUING RESIDENTIAL CARE   ,04/04/2012,3238799,J468480 290412           ,1901.00,QUEENSWOOD METHODIST RES HOME           ,361934,Social Community Care,RESIDENTIAL CARE HOMES        
PURCHASING ELDERLY            ,9200,CONTINUING RESIDENTIAL CARE   ,04/04/2012,3238800,J468482 290412           ,3269.00,KINGFIELD HOLT                          ,361766,Social Community Care,RESIDENTIAL CARE HOMES        
PURCHASING ELDERLY            ,9200,CONTINUING RESIDENTIAL CARE   ,04/04/2012,3238801,J468483 290412           ,5201.00,DARWIN HOUSE RESIDENTIAL CARE           ,361759,Social Community Care,RESIDENTIAL CARE HOMES        
PURCHASING ELDERLY            ,9200,CONTINUING RESIDENTIAL CARE   ,04/04/2012,3238802,J468484 290412           ,18828.00,HALLAMSHIRE REST HOME                   ,362093,Social Community Care,REST & RETIREMENT HOMES       
PURCHASING ELDERLY            ,9200,CONTINUING RESIDENTIAL CARE   ,04/04/2012,3238803,J468485 290412           ,23980.00,DARNALL VIEW RESIDENTIAL HOME           ,362170,Social Community Care,RESIDENTIAL CARE HOMES        
PURCHASING LEARNING DISABILITI,9200,CONTINUING RESIDENTIAL CARE   ,04/04/2012,3238804,J468488 290412           ,1644.45,HAZELDENE NURSING HOME                  ,340163,Social Community Care,NURSING HOMES                 
PURCHASING ELDERLY            ,9200,CONTINUING RESIDENTIAL CARE   ,04/04/2012,3238804,J468488 290412           ,17204.00,HAZELDENE NURSING HOME                  ,340163,Social Community Care,NURSING HOMES                 
PURCHASING ELDERLY            ,9210,CONTINUING NURSING CARE       ,04/04/2012,3238804,J468488 290412           ,19104.00,HAZELDENE NURSING HOME                  ,340163,Social Community Care,NURSING HOMES                 
PURCHASING ELDERLY            ,9210,CONTINUING NURSING CARE       ,04/04/2012,3238805,J468490 290412           ,17436.00,PEXTON GRANGE LTD                       ,361942,Social Community Care,NURSING HOMES                 
PURCHASING ELDERLY            ,9200,CONTINUING RESIDENTIAL CARE   ,04/04/2012,3238806,J468493 290412           ,19496.00,HARTWELL HOUSE                          ,361785,Social Community Care,NURSING HOMES                 
PURCHASING ELDERLY            ,9200,CONTINUING RESIDENTIAL CARE   ,04/04/2012,3238807,J468501 290412           ,2920.36,NETHERMORE CARE HOME (PREVIOUSLY KILLAMA,361936,Social Community Care,REST & RETIREMENT HOMES       
PURCHASING ELDERLY            ,9200,CONTINUING RESIDENTIAL CARE   ,04/04/2012,3238808,J468507 290412           ,4494.00,NORTHFIELD NURSING HOME                 ,361770,Social Community Care,NURSING HOMES                 
PURCHASING ELDERLY            ,9210,CONTINUING NURSING CARE       ,04/04/2012,3238808,J468507 290412           ,29601.20,NORTHFIELD NURSING HOME                 ,361770,Social Community Care,NURSING HOMES                 
PURCHASING ELDERLY            ,9200,CONTINUING RESIDENTIAL CARE   ,04/04/2012,3238809,J468508 290412           ,2344.86,OVERDALE                                ,361771,Social Community Care,REST & RETIREMENT HOMES       
PURCHASING ELDERLY            ,9200,CONTINUING RESIDENTIAL CARE   ,04/04/2012,3238810,J468514 290412           ,1832.00,DOVE COURT RESIDENTIAL HOME             ,362096,Social Community Care,RESIDENTIAL CARE HOMES        
PDSI PURCHASING               ,9210,CONTINUING NURSING CARE       ,04/04/2012,3238811,J468521 290412           ,1595.13,HEADINGLEY COURT CARE HOME              ,362017,Social Community Care,RESIDENTIAL CARE HOMES        
PURCHASING ELDERLY            ,9210,CONTINUING NURSING CARE       ,04/04/2012,3238811,J468521 290412           ,1548.00,HEADINGLEY COURT CARE HOME              ,362017,Social Community Care,RESIDENTIAL CARE HOMES        
PURCHASING LEARNING DISABILITI,9200,CONTINUING RESIDENTIAL CARE   ,04/04/2012,3238812,J468525 290412           ,7956.72,11 FRASER DRIVE                         ,361875,Social Community Care,RESIDENTIAL CARE HOMES        
PURCHASING LEARNING DISABILITI,9240,SUPPORTED LIVING CARE         ,04/04/2012,3238813,J468526 290412           ,2881.44,15 COLLEY ROAD                          ,361823,Social Community Care,DISABILITY & SPECIAL NEEDS - S
PURCHASING LEARNING DISABILITI,9200,CONTINUING RESIDENTIAL CARE   ,04/04/2012,3238814,J468527 290412           ,7729.48,169 GLEADLESS COMMON                    ,361822,Social Community Care,RESIDENTIAL CARE HOMES        
PURCHASING LEARNING DISABILITI,9240,SUPPORTED LIVING CARE         ,04/04/2012,3238815,J468529 290412           ,3401.76,261 HIGH GREAVE                         ,362155,Social Community Care,DISABILITY & SPECIAL NEEDS - S
PURCHASING ELDERLY            ,9240,SUPPORTED LIVING CARE         ,04/04/2012,3238815,J468529 290412           ,2267.84,261 HIGH GREAVE                         ,362155,Social Community Care,DISABILITY & SPECIAL NEEDS - S
PURCHASING LEARNING DISABILITI,9240,SUPPORTED LIVING CARE         ,04/04/2012,3238816,J468530 290412           ,1494.88,2-8 STALKER LEES COURT                  ,362161,Social Community Care,DISABILITY & SPECIAL NEEDS - S
PURCHASING LEARNING DISABILITI,9200,CONTINUING RESIDENTIAL CARE   ,04/04/2012,3238817,J468532 290412           ,4510.26,31 GLEADLESS CRESCENT                   ,362168,Social Community Care,RESIDENTIAL CARE HOMES        
PURCHASING LEARNING DISABILITI,9240,SUPPORTED LIVING CARE         ,04/04/2012,3238818,J468533 290412           ,1098.48,4 FRANCE ROAD                           ,362156,Social Community Care,DISABILITY & SPECIAL NEEDS - S
PURCHASING ELDERLY            ,9240,SUPPORTED LIVING CARE         ,04/04/2012,3238818,J468533 290412           ,1098.48,4 FRANCE ROAD                           ,362156,Social Community Care,DISABILITY & SPECIAL NEEDS - S
PURCHASING LEARNING DISABILITI,9240,SUPPORTED LIVING CARE         ,04/04/2012,3238819,J468535 290412           ,1098.48,6 FRANCE ROAD                           ,361876,Social Community Care,DISABILITY & SPECIAL NEEDS - S
PURCHASING LEARNING DISABILITI,9240,SUPPORTED LIVING CARE         ,04/04/2012,3238820,J468536 290412           ,3082.68,759 GLEADLESS ROAD                      ,361806,Social Community Care,DISABILITY & SPECIAL NEEDS - S
PURCHASING LEARNING DISABILITI,9200,CONTINUING RESIDENTIAL CARE   ,04/04/2012,3238821,J468537 290412           ,3934.66,9 FRASER DRIVE                          ,361861,Social Community Care,RESIDENTIAL CARE HOMES        
PURCHASING ELDERLY            ,9200,CONTINUING RESIDENTIAL CARE   ,04/04/2012,3238821,J468537 290412           ,1455.16,9 FRASER DRIVE                          ,361861,Social Community Care,RESIDENTIAL CARE HOMES        
PURCHASING LEARNING DISABILITI,9240,SUPPORTED LIVING CARE         ,04/04/2012,3238822,J468538 290412           ,4110.24,930 GLEADLESS ROAD                      ,361807,Social Community Care,DISABILITY & SPECIAL NEEDS - S
PDSI PURCHASING               ,9200,CONTINUING RESIDENTIAL CARE   ,04/04/2012,3238823,J468546 290412           ,2563.71,HENLEIGH HALL                           ,362109,Social Community Care,NURSING HOMES                 
PURCHASING ELDERLY            ,9200,CONTINUING RESIDENTIAL CARE   ,04/04/2012,3238823,J468546 290412           ,3379.80,HENLEIGH HALL                           ,362109,Social Community Care,NURSING HOMES                 
PURCHASING ELDERLY            ,9210,CONTINUING NURSING CARE       ,04/04/2012,3238823,J468546 290412           ,9265.56,HENLEIGH HALL                           ,362109,Social Community Care,NURSING HOMES                 
PDSI PURCHASING               ,9210,CONTINUING NURSING CARE       ,04/04/2012,3238823,J468546 290412           ,4115.33,HENLEIGH HALL                           ,362109,Social Community Care,NURSING HOMES                 
PURCHASING ELDERLY            ,9210,CONTINUING NURSING CARE       ,04/04/2012,3238824,J468548 290412           ,13060.00,HOLMWOOD CARE HOME                      ,331238,Social Community Care,NURSING HOMES                 
PURCHASING ELDERLY            ,9200,CONTINUING RESIDENTIAL CARE   ,04/04/2012,3238825,J468558 290412           ,4533.00,SCARSDALE GRANGE N.H                    ,361915,Social Community Care,NURSING HOMES                 
PURCHASING ELDERLY            ,9210,CONTINUING NURSING CARE       ,04/04/2012,3238825,J468558 290412           ,15744.00,SCARSDALE GRANGE N.H                    ,361915,Social Community Care,NURSING HOMES                 
PURCHASING ELDERLY            ,9200,CONTINUING RESIDENTIAL CARE   ,04/04/2012,3238826,J468562 290412           ,1564.00,ELM LODGE                               ,433486,Social Community Care,NURSING HOMES                 
PURCHASING LEARNING DISABILITI,9200,CONTINUING RESIDENTIAL CARE   ,04/04/2012,3238827,J468565 290412           ,4908.62,NORTHERN LIFE CARE LTD T/A UBU          ,361991,Social Community Care,RESIDENTIAL CARE HOMES        
PURCHASING LEARNING DISABILITI,9200,CONTINUING RESIDENTIAL CARE   ,04/04/2012,3238828,J468570 290412           ,5990.90,HAMILTON LODGE                          ,418581,Social Community Care,RESIDENTIAL CARE HOMES        
PURCHASING LEARNING DISABILITI,9210,CONTINUING NURSING CARE       ,04/04/2012,3238829,J468577 290412           ,7058.06,GREENSIDE COURT                         ,373540,Social Community Care,NURSING HOMES                 
PURCHASING LEARNING DISABILITI,9200,CONTINUING RESIDENTIAL CARE   ,04/04/2012,3238830,J468578 290412           ,6661.62,EDGECUMBE HOUSE                         ,380015,Social Community Care,RESIDENTIAL CARE HOMES        
PURCHASING ELDERLY            ,9200,CONTINUING RESIDENTIAL CARE   ,04/04/2012,3238831,J468579 290412           ,1397.00,PENRHOS HOME                            ,376129,Unclassified Non Trade,"HOUSING ASSOCIATIONS, SOCIETIE"
PURCHASING LEARNING DISABILITI,9240,SUPPORTED LIVING CARE         ,04/04/2012,3238832,J468580 290412           ,2196.96,4 FRANCE ROAD                           ,362156,Social Community Care,DISABILITY & SPECIAL NEEDS - S
PURCHASING LEARNING DISABILITI,9240,SUPPORTED LIVING CARE         ,04/04/2012,3238833,J468581 290412           ,992.20,2-8 STALKER LEES COURT                  ,362161,Social Community Care,DISABILITY & SPECIAL NEEDS - S
PURCHASING LEARNING DISABILITI,9240,SUPPORTED LIVING CARE         ,04/04/2012,3238834,J468582 290412           ,992.20,2-8 STALKER LEES COURT                  ,362161,Social Community Care,DISABILITY & SPECIAL NEEDS - S
PURCHASING LEARNING DISABILITI,9240,SUPPORTED LIVING CARE         ,04/04/2012,3238835,J468583 290412           ,992.20,2-8 STALKER LEES COURT                  ,362161,Social Community Care,DISABILITY & SPECIAL NEEDS - S
PURCHASING LEARNING DISABILITI,9240,SUPPORTED LIVING CARE         ,04/04/2012,3238836,J468584 290412           ,2056.00,DIMENSIONS (UK) LTD (SP)                ,365809,Unclassified Non Trade,CHARITIES & VOLUNTARY ORGANISA
PURCHASING ELDERLY            ,9240,SUPPORTED LIVING CARE         ,04/04/2012,3238837,J468585 290412           ,1807.40,UNITED RESPONSE                         ,209238,Unclassified Non Trade,CHARITIES & VOLUNTARY ORGANISA
PURCHASING ELDERLY            ,9240,SUPPORTED LIVING CARE         ,04/04/2012,3238838,J468586 290412           ,861.12,UNITED RESPONSE                         ,209238,Unclassified Non Trade,CHARITIES & VOLUNTARY ORGANISA
PURCHASING LEARNING DISABILITI,9200,CONTINUING RESIDENTIAL CARE   ,04/04/2012,3238839,J468597 290412           ,6441.46,RED HOUSE                               ,387005,Facilities Management,HOTELS                        
PURCHASING ELDERLY            ,9200,CONTINUING RESIDENTIAL CARE   ,04/04/2012,3238840,J468603 290412           ,1532.00,HIGHGROVE CARE HOME                     ,397555,Social Community Care,RESIDENTIAL CARE HOMES        
PURCHASING                    ,9210,CONTINUING NURSING CARE       ,04/04/2012,3238841,J468604 290412           ,7919.22,FAIRWINDS                               ,397558,Social Community Care,RESIDENTIAL CARE HOMES        
PURCHASING ELDERLY            ,9200,CONTINUING RESIDENTIAL CARE   ,04/04/2012,3238842,J468608 290412           ,1434.52,METHODIST HOMES FOR THE AGED            ,415177,Social Community Care,RESIDENTIAL CARE HOMES        
PURCHASING ELDERLY            ,9210,CONTINUING NURSING CARE       ,04/04/2012,3238843,J468615 290412           ,1979.60,ROBINSON HOUSE                          ,430743,Social Community Care,NURSING HOMES                 
PURCHASING LEARNING DISABILITI,9200,CONTINUING RESIDENTIAL CARE   ,04/04/2012,3238844,J468616 290412           ,6180.62,PRIORY LODGE                            ,430728,Social Community Care,RESIDENTIAL CARE HOMES        
PURCHASING ELDERLY            ,9200,CONTINUING RESIDENTIAL CARE   ,04/04/2012,3238845,J468619 290412           ,30609.00,NORTON LEES HALL/LODGE                  ,433750,Unclassified Non Trade,SCHOOLS - LOCAL AUTHORITY     
PURCHASING LEARNING DISABILITI,9200,CONTINUING RESIDENTIAL CARE   ,04/04/2012,3238846,J468623 290412           ,4867.14,GORSE HILL                              ,418457,Social Community Care,RESIDENTIAL CARE HOMES        
PURCHASING LEARNING DISABILITI,9200,CONTINUING RESIDENTIAL CARE   ,04/04/2012,3238847,J468626 290412           ,18086.02,REDCLIFFE HOUSE                         ,446985,Facilities Management,GUEST HOUSES                  
PURCHASING ELDERLY            ,9200,CONTINUING RESIDENTIAL CARE   ,04/04/2012,3238848,J468633 290412           ,1704.86,DERWENT HOUSE HOME                      ,466699,Social Community Care,RESIDENTIAL CARE HOMES        
PURCHASING LEARNING DISABILITI,9200,CONTINUING RESIDENTIAL CARE   ,04/04/2012,3238849,J468634 290412           ,7405.66,GRETTON HOUSE                           ,461869,Social Community Care,NURSING HOMES                 
PURCHASING LEARNING DISABILITI,9200,CONTINUING RESIDENTIAL CARE   ,04/04/2012,3238850,J468638 290412           ,3567.02,HOLLY HOUSE                             ,464393,Social Community Care,RESIDENTIAL CARE HOMES        
PURCHASING LEARNING DISABILITI,9200,CONTINUING RESIDENTIAL CARE   ,04/04/2012,3238851,J468640 290412           ,4979.66,THE GLADES                              ,475753,Social Community Care,NURSING HOMES                 
PDSI PURCHASING               ,9200,CONTINUING RESIDENTIAL CARE   ,04/04/2012,3238852,J468643 290412           ,6811.00,FENNEY LODGE                            ,408029,Social Community Care,RESIDENTIAL CARE HOMES        
PURCHASING LEARNING DISABILITI,9200,CONTINUING RESIDENTIAL CARE   ,04/04/2012,3238852,J468643 290412           ,11283.40,FENNEY LODGE                            ,408029,Social Community Care,RESIDENTIAL CARE HOMES        
PURCHASING LEARNING DISABILITI,9200,CONTINUING RESIDENTIAL CARE   ,04/04/2012,3238853,J468648 290412           ,5408.10,OAK HOUSE                               ,491029,Social Community Care,RESIDENTIAL CARE HOMES        
PURCHASING LEARNING DISABILITI,9200,CONTINUING RESIDENTIAL CARE   ,04/04/2012,3238854,J468649 290412           ,17697.24,JANE HOUSE                              ,492184,Social Community Care,RESIDENTIAL CARE HOMES        
PURCHASING LEARNING DISABILITI,9240,SUPPORTED LIVING CARE         ,04/04/2012,3238855,J468652 290412           ,1347.52,212 SICEY AVENUE                        ,492717,Social Community Care,DISABILITY & SPECIAL NEEDS - S
PURCHASING ELDERLY            ,9240,SUPPORTED LIVING CARE         ,04/04/2012,3238856,J468654 290412           ,894.56,1 BLACKBERRY FLATS                      ,493437,Social Community Care,SHELTERED HOUSING             
PURCHASING LEARNING DISABILITI,9240,SUPPORTED LIVING CARE         ,04/04/2012,3238857,J468655 290412           ,894.56,37 HOLLINSEND ROAD                      ,493438,Social Community Care,DISABILITY & SPECIAL NEEDS - S
PURCHASING ELDERLY            ,9200,CONTINUING RESIDENTIAL CARE   ,04/04/2012,3238858,J468661 290412           ,1564.00,PILLING CARE HOME                       ,513118,Social Community Care,RESIDENTIAL CARE HOMES        
PURCHASING ELDERLY            ,9210,CONTINUING NURSING CARE       ,04/04/2012,3238859,J468682 290412           ,1548.00,THE POPLARS NURSING HOME                ,553979,Social Community Care,NURSING HOMES                 
PURCHASING                    ,9200,CONTINUING RESIDENTIAL CARE   ,04/04/2012,3238860,J468686 290412           ,1417.01,KINGSBURY HOUSE                         ,559159,Social Community Care,RESIDENTIAL CARE HOMES        
PURCHASING ELDERLY            ,9210,CONTINUING NURSING CARE       ,04/04/2012,3238861,J468693 290412           ,1988.00, PATHFINDERS CARE (OLLERTON) LIMITED    ,564758,Social Community Care,NURSING HOMES                 
PURCHASING ELDERLY            ,4260,NURSING COSTS RECOVERED       ,04/04/2012,3238862,J465678 010412           ,1400.14,HAZELDENE NURSING HOME                  ,340163,Social Community Care,NURSING HOMES                 
PURCHASING ELDERLY            ,4260,NURSING COSTS RECOVERED       ,04/04/2012,3238865,J468034 010412           ,709.61,SCARSDALE GRANGE N.H                    ,361915,Social Community Care,NURSING HOMES                 
PURCHASING ELDERLY            ,9200,CONTINUING RESIDENTIAL CARE   ,04/04/2012,3238868,J468399 290412           ,7168.48,SANDFORD HOUSE                          ,361790,Social Community Care,RESIDENTIAL CARE HOMES        
PURCHASING                    ,9200,CONTINUING RESIDENTIAL CARE   ,04/04/2012,3238868,J468399 290412           ,17052.24,SANDFORD HOUSE                          ,361790,Social Community Care,RESIDENTIAL CARE HOMES        
PURCHASING ELDERLY            ,9200,CONTINUING RESIDENTIAL CARE   ,04/04/2012,3238869,J468404 290412           ,2929.00,JASMIN COURT NURSING HOME               ,361764,Social Community Care,NURSING HOMES                 
PURCHASING ELDERLY            ,9210,CONTINUING NURSING CARE       ,04/04/2012,3238869,J468404 290412           ,18576.00,JASMIN COURT NURSING HOME               ,361764,Social Community Care,NURSING HOMES                 
PURCHASING LEARNING DISABILITI,9210,CONTINUING NURSING CARE       ,04/04/2012,3238869,J468404 290412           ,1457.42,JASMIN COURT NURSING HOME               ,361764,Social Community Care,NURSING HOMES                 
PURCHASING LEARNING DISABILITI,9200,CONTINUING RESIDENTIAL CARE   ,04/04/2012,3238870,J468410 290412           ,2763.32,EAST BANK ROAD (258A)                   ,362007,Social Community Care,RESIDENTIAL CARE HOMES        
PURCHASING ELDERLY            ,9200,CONTINUING RESIDENTIAL CARE   ,04/04/2012,3238870,J468410 290412           ,1506.68,EAST BANK ROAD (258A)                   ,362007,Social Community Care,RESIDENTIAL CARE HOMES        
PURCHASING LEARNING DISABILITI,9200,CONTINUING RESIDENTIAL CARE   ,04/04/2012,3238871,J468411 290412           ,15450.60,EAST BANK ROAD (458A)                   ,361789,Social Community Care,RESIDENTIAL CARE HOMES        
PURCHASING ELDERLY            ,9200,CONTINUING RESIDENTIAL CARE   ,04/04/2012,3238871,J468411 290412           ,2704.08,EAST BANK ROAD (458A)                   ,361789,Social Community Care,RESIDENTIAL CARE HOMES        
PURCHASING ELDERLY            ,9200,CONTINUING RESIDENTIAL CARE   ,04/04/2012,3238872,J468424 290412           ,2445.00,NEWFIELD VIEW                           ,361863,Social Community Care,NURSING HOMES                 
PURCHASING LEARNING DISABILITI,9200,CONTINUING RESIDENTIAL CARE   ,04/04/2012,3238872,J468424 290412           ,18283.26,NEWFIELD VIEW                           ,361863,Social Community Care,NURSING HOMES                 
PURCHASING ELDERLY            ,9200,CONTINUING RESIDENTIAL CARE   ,04/04/2012,3238873,J468428 290412           ,1583.68,PARK LODGE CARE HOME                    ,361949,Social Community Care,RESIDENTIAL CARE HOMES        
PURCHASING ELDERLY            ,9210,CONTINUING NURSING CARE       ,04/04/2012,3238874,J468430 290412           ,12853.20,FULWOOD LODGE NURSING HOME              ,361775,Social Community Care,NURSING HOMES                 
PURCHASING ELDERLY            ,9200,CONTINUING RESIDENTIAL CARE   ,04/04/2012,3238875,J468431 290412           ,20245.00,SILVER HEALTH CARE LTD                  ,361802,Social Community Care,RESIDENTIAL CARE HOMES        
PURCHASING ELDERLY            ,9200,CONTINUING RESIDENTIAL CARE   ,04/04/2012,3238876,J468437 290412           ,1505.00,ROYAL COURT CARE VILLAGE                ,361911,Social Community Care,RESIDENTIAL CARE HOMES        
PURCHASING LEARNING DISABILITI,9210,CONTINUING NURSING CARE       ,04/04/2012,3238877,J468443 290412           ,2432.98,OAKWOOD (DEVON COURT)                   ,362087,Social Community Care,RESIDENTIAL CARE HOMES        
PURCHASING LEARNING DISABILITI,9210,CONTINUING NURSING CARE       ,04/04/2012,3238878,J468445 290412           ,14900.19,ELMWOOD HOUSE NURSING HOME              ,362098,Social Community Care,NURSING HOMES                 
PURCHASING ELDERLY            ,9210,CONTINUING NURSING CARE       ,04/04/2012,3238879,J468452 290412           ,1548.00,THE GREEN                               ,361956,Social Community Care,NURSING HOMES                 
PURCHASING ELDERLY            ,9210,CONTINUING NURSING CARE       ,04/04/2012,3238880,J468455 290412           ,1876.92,DERWENT LODGE                           ,362172,Social Community Care,NURSING HOMES                 
PURCHASING LEARNING DISABILITI,9240,SUPPORTED LIVING CARE         ,04/04/2012,3238881,J468460 290412           ,861.12,UNITED RESPONSE                         ,209238,Unclassified Non Trade,CHARITIES & VOLUNTARY ORGANISA
PURCHASING ELDERLY            ,9200,CONTINUING RESIDENTIAL CARE   ,04/04/2012,3238882,J468464 290412           ,33144.00,NIGHTINGALES RES.HOME                   ,361897,Social Community Care,RESIDENTIAL CARE HOMES        
PURCHASING ELDERLY            ,9200,SHORT TERM RESIDENTIAL CARE   ,04/04/2012,3238883,J468288 010412           ,812.14,SILVER HEALTH CARE LTD                  ,361802,Social Community Care,RESIDENTIAL CARE HOMES        
PURCHASING ELDERLY            ,9200,CONTINUING RESIDENTIAL CARE   ,04/04/2012,3239191,J468609 290412           ,3202.00,MEADOW SANDS                            ,417909,Social Community Care,RESIDENTIAL CARE HOMES        
PURCHASING ELDERLY            ,9210,CONTINUING NURSING CARE       ,04/04/2012,3239192,J468611 290412           ,1588.00,WOODLAND CARE                           ,420606,Social Community Care,NURSING HOMES                 
PDSI PURCHASING               ,9200,CONTINUING RESIDENTIAL CARE   ,04/04/2012,3239193,J468613 290412           ,4675.02,MAYFIELD HOUSE                          ,424067,Social Community Care,NURSING HOMES                 
PURCHASING ELDERLY            ,9210,CONTINUING NURSING CARE       ,04/04/2012,3239194,J468614 290412           ,1548.00,MEADOW VIEW CARE CENTRE                 ,429574,Social Community Care,NURSING HOMES                 
PURCHASING LEARNING DISABILITI,9200,CONTINUING RESIDENTIAL CARE   ,04/04/2012,3239195,J468621 290412           ,7372.62,SENSE NORTH                             ,437084,Unclassified Non Trade,CHARITIES & VOLUNTARY ORGANISA
PURCHASING LEARNING DISABILITI,9200,CONTINUING RESIDENTIAL CARE   ,04/04/2012,3239196,J468624 290412           ,8360.86,AALPS                                   ,416380,Unclassified Non Trade,SCHOOLS - SPECIAL             
PURCHASING ELDERLY            ,9200,CONTINUING RESIDENTIAL CARE   ,04/04/2012,3239197,J468625 290412           ,2633.16,LISTER AVENUE PROJECT                   ,368348,Unclassified Non Trade,"HOUSING ASSOCIATIONS, SOCIETIE"
PURCHASING                    ,9200,CONTINUING RESIDENTIAL CARE   ,04/04/2012,3239197,J468625 290412           ,32373.66,LISTER AVENUE PROJECT                   ,368348,Unclassified Non Trade,"HOUSING ASSOCIATIONS, SOCIETIE"
PURCHASING LEARNING DISABILITI,9200,CONTINUING RESIDENTIAL CARE   ,04/04/2012,3239199,J468628 290412           ,7903.38,WOODVIEW CARE HOME                      ,456477,Social Community Care,NURSING HOMES                 
PURCHASING LEARNING DISABILITI,9200,CONTINUING RESIDENTIAL CARE   ,04/04/2012,3239200,J468631 290412           ,8215.58,WHITWOOD GRANGE                         ,460843,Social Community Care,RESIDENTIAL CARE HOMES        
PURCHASING ELDERLY            ,9200,CONTINUING RESIDENTIAL CARE   ,04/04/2012,3239201,J468632 290412           ,1624.00,YOLANTA HOUSE RESIDENTIAL HOME          ,461087,Social Community Care,RESIDENTIAL CARE HOMES        
PURCHASING ELDERLY            ,9200,CONTINUING RESIDENTIAL CARE   ,04/04/2012,3239203,J468635 290412           ,1509.00,PARK LANE HEALTHCARE (MANOR HOUSE)      ,461876,Social Community Care,NURSING HOMES                 
PURCHASING ELDERLY            ,9200,CONTINUING RESIDENTIAL CARE   ,04/04/2012,3239204,J468644 290412           ,1568.00,LYMEHURST REST HOME                     ,487361,Social Community Care,REST & RETIREMENT HOMES       
PURCHASING ELDERLY            ,9200,CONTINUING RESIDENTIAL CARE   ,04/04/2012,3239205,J468660 290412           ,1612.00,MALLARD COURT CARE HOME                 ,511603,Social Community Care,NURSING HOMES                 
PURCHASING ELDERLY            ,9210,CONTINUING NURSING CARE       ,04/04/2012,3239206,J468663 290412           ,1548.00,THE LAURELS NURSING HOME                ,518571,Social Community Care,NURSING HOMES                 
PURCHASING ELDERLY            ,9200,CONTINUING RESIDENTIAL CARE   ,04/04/2012,3239207,J468664 290412           ,1600.80,HOLLY TREE LODGE                        ,519365,Social Community Care,RESIDENTIAL CARE HOMES        
PDSI PURCHASING               ,9210,CONTINUING NURSING CARE       ,04/04/2012,3239208,J468666 290412           ,3087.39,MARKHAM HOUSE                           ,522429,Social Community Care,NURSING HOMES                 
PURCHASING LEARNING DISABILITI,9200,CONTINUING RESIDENTIAL CARE   ,04/04/2012,3239209,J468668 290412           ,4612.22,THE MEWS                                ,525602,Social Community Care,RESIDENTIAL CARE HOMES        
PURCHASING ELDERLY            ,9200,CONTINUING RESIDENTIAL CARE   ,04/04/2012,3239210,J468670 290412           ,1548.00,HOLLIN KNOWLE RESIDENTIAL CARE HOME     ,532118,Social Community Care,RESIDENTIAL CARE HOMES        
PURCHASING LEARNING DISABILITI,9210,CONTINUING NURSING CARE       ,04/04/2012,3239211,J468673 290412           ,4170.66,SHIREBROOK PLACE                        ,539407,Social Community Care,RESIDENTIAL CARE HOMES        
PURCHASING LEARNING DISABILITI,9200,CONTINUING RESIDENTIAL CARE   ,04/04/2012,3239212,J468681 290412           ,5812.66,KNOLLBECK (HEATHCOTES)                  ,552816,Social Community Care,RESIDENTIAL CARE HOMES        
PURCHASING LEARNING DISABILITI,9200,CONTINUING RESIDENTIAL CARE   ,04/04/2012,3239213,J468683 290412           ,8148.66,BALBY (HEATHCOTES)                      ,552815,Social Community Care,RESIDENTIAL CARE HOMES        
PURCHASING ELDERLY            ,9200,CONTINUING RESIDENTIAL CARE   ,04/04/2012,3239214,J468684 290412           ,1588.00,MILLFIELD                               ,557481,Social Community Care,NURSING HOMES                 
PURCHASING LEARNING DISABILITI,9240,SUPPORTED LIVING CARE         ,04/04/2012,3239215,J469785 290412           ,3002.00,NORTHERN LIFE CARE LTD T/A UBU          ,361991,Social Community Care,RESIDENTIAL CARE HOMES        
PURCHASING ELDERLY            ,9200,CONTINUING RESIDENTIAL CARE   ,04/04/2012,3239216,J455158 040312           ,1500.00,HOLLIN KNOWLE RESIDENTIAL CARE HOME     ,532118,Social Community Care,RESIDENTIAL CARE HOMES        
PDSI PURCHASING               ,9200,CONTINUING RESIDENTIAL CARE   ,04/04/2012,3239217,J461559 010412           ,3514.24,CLARO ROAD                              ,463335,Social Community Care,DISABILITY & SPECIAL NEEDS - S
PURCHASING ELDERLY            ,9200,CONTINUING RESIDENTIAL CARE   ,04/04/2012,3239218,J461594 010412           ,1500.00,HOLLIN KNOWLE RESIDENTIAL CARE HOME     ,532118,Social Community Care,RESIDENTIAL CARE HOMES        
PURCHASING ELDERLY            ,4260,RESIDENTIAL COSTS RECOVERED   ,04/04/2012,3239220,J463701 010412           ,1166.44,TAPTON EDGE REST HOME LTD               ,361786,Social Community Care,REST & RETIREMENT HOMES       
PURCHASING                    ,4260,RESIDENTIAL COSTS RECOVERED   ,04/04/2012,3239221,J464373 010412           ,709.95,LISTER AVENUE PROJECT                   ,368348,Unclassified Non Trade,"HOUSING ASSOCIATIONS, SOCIETIE"
PURCHASING ELDERLY            ,9200,CONTINUING RESIDENTIAL CARE   ,04/04/2012,3239222,J465579 010412           ,1497.00,ASH HOUSE RESIDENTIAL HOME              ,361901,Social Community Care,RESIDENTIAL CARE HOMES        
PURCHASING ELDERLY            ,4260,NURSING COSTS RECOVERED       ,04/04/2012,3239223,J465675 010412           ,608.10,KERSAL MOUNT NURSING HOME               ,361765,Social Community Care,NURSING HOMES                 
PURCHASING ELDERLY            ,9200,CONTINUING RESIDENTIAL CARE   ,04/04/2012,3239223,J465675 010412           ,1060.00,KERSAL MOUNT NURSING HOME               ,361765,Social Community Care,NURSING HOMES                 
PURCHASING ELDERLY            ,4260,RESIDENTIAL COSTS RECOVERED   ,04/04/2012,3239226,J467210 010412           ,730.80,WESTBOURNE HOUSE                        ,362111,Social Community Care,NURSING HOMES                 
PURCHASING ELDERLY            ,4260,RESIDENTIAL COSTS RECOVERED   ,04/04/2012,3239227,J467213 010412           ,514.12,BALMORAL NURSING HOME                   ,361851,Social Community Care,NURSING HOMES                 
PURCHASING ELDERLY            ,4260,NURSING COSTS RECOVERED       ,04/04/2012,3239228,J468220 010412           ,655.71,SEVENHILLS NURSING                      ,362104,Social Community Care,NURSING HOMES                 
PURCHASING ELDERLY            ,9200,CONTINUING RESIDENTIAL CARE   ,04/04/2012,3239229,J468221 010412           ,2040.00,HEELEY BANK CARE HOME                   ,362923,Social Community Care,RESIDENTIAL CARE HOMES        
PURCHASING LEARNING DISABILITI,9200,CONTINUING RESIDENTIAL CARE   ,04/04/2012,3239230,J468397 290412           ,18490.98,BEECH CLIFFE LTD                        ,361899,Social Community Care,RESIDENTIAL CARE HOMES        
PURCHASING LEARNING DISABILITI,9200,CONTINUING RESIDENTIAL CARE   ,04/04/2012,3239231,J468398 290412           ,3731.74,MOORCROFT HOUSE                         ,361927,Social Community Care,RESIDENTIAL CARE HOMES        
PURCHASING                    ,9200,CONTINUING RESIDENTIAL CARE   ,04/04/2012,3239232,J468403 290412           ,1692.15,ASHFIELD CARE LIMITED                   ,361814,Social Community Care,NURSING HOMES                 
PURCHASING                    ,9210,CONTINUING NURSING CARE       ,04/04/2012,3239232,J468403 290412           ,1372.37,ASHFIELD CARE LIMITED                   ,361814,Social Community Care,NURSING HOMES                 
PURCHASING ELDERLY            ,9210,CONTINUING NURSING CARE       ,04/04/2012,3239232,J468403 290412           ,4320.52,ASHFIELD CARE LIMITED                   ,361814,Social Community Care,NURSING HOMES                 
PURCHASING ELDERLY            ,9200,CONTINUING RESIDENTIAL CARE   ,04/04/2012,3239233,J468405 290412           ,7404.40,100 BEIGHTON ROAD                       ,362152,Social Community Care,RESIDENTIAL CARE HOMES        
PURCHASING LEARNING DISABILITI,9200,CONTINUING RESIDENTIAL CARE   ,04/04/2012,3239233,J468405 290412           ,16895.54,100 BEIGHTON ROAD                       ,362152,Social Community Care,RESIDENTIAL CARE HOMES        
PURCHASING                    ,9200,CONTINUING RESIDENTIAL CARE   ,04/04/2012,3239235,J468426 290412           ,12398.46,THE KNOWLE                              ,362158,Social Community Care,RESIDENTIAL CARE HOMES        
PURCHASING ELDERLY            ,9200,CONTINUING RESIDENTIAL CARE   ,04/04/2012,3239235,J468426 290412           ,2754.00,THE KNOWLE                              ,362158,Social Community Care,RESIDENTIAL CARE HOMES        
PURCHASING LEARNING DISABILITI,9200,CONTINUING RESIDENTIAL CARE   ,04/04/2012,3239235,J468426 290412           ,2743.16,THE KNOWLE                              ,362158,Social Community Care,RESIDENTIAL CARE HOMES        
PURCHASING                    ,9210,CONTINUING NURSING CARE       ,04/04/2012,3239236,J468432 290412           ,3293.17,TAPTON GROVE NURSING HOME               ,361826,Social Community Care,NURSING HOMES                 
PURCHASING ELDERLY            ,9200,CONTINUING RESIDENTIAL CARE   ,04/04/2012,3239237,J468434 290412           ,9641.00,THE WHITE HOUSE                         ,362083,Social Community Care,RESIDENTIAL CARE HOMES        
PURCHASING LEARNING DISABILITI,9200,CONTINUING RESIDENTIAL CARE   ,04/04/2012,3239238,J468436 290412           ,22023.92,BEECH TREE HALL                         ,327636,Social Community Care,RESIDENTIAL CARE HOMES        
PURCHASING ELDERLY            ,9200,CONTINUING RESIDENTIAL CARE   ,04/04/2012,3239239,J468438 290412           ,4040.00,TAPTON EDGE REST HOME LTD               ,361786,Social Community Care,REST & RETIREMENT HOMES       
PURCHASING ELDERLY            ,9200,CONTINUING RESIDENTIAL CARE   ,04/04/2012,3239240,J468439 290412           ,1481.00,WHISTON HALL RESIDENTIAL HOME           ,361816,Social Community Care,RESIDENTIAL CARE HOMES        
PURCHASING ELDERLY            ,9200,CONTINUING RESIDENTIAL CARE   ,04/04/2012,3239241,J468440 290412           ,3645.00,MEADOW GRANGE NURSING HOME              ,361951,Social Community Care,NURSING HOMES                 
PURCHASING LEARNING DISABILITI,9200,CONTINUING RESIDENTIAL CARE   ,04/04/2012,3239242,J468441 290412           ,4765.08,BEECHWOOD                               ,362117,Social Community Care,RESIDENTIAL CARE HOMES        
PURCHASING ELDERLY            ,9200,CONTINUING RESIDENTIAL CARE   ,04/04/2012,3239243,J468448 290412           ,1541.60,LAYDEN COURT RESIDENTIAL HOME           ,361954,Social Community Care,RESIDENTIAL CARE HOMES        
PURCHASING ELDERLY            ,9200,CONTINUING RESIDENTIAL CARE   ,04/04/2012,3239244,J468450 290412           ,8750.40,SWALLOWNEST CARE HOME                   ,361827,Social Community Care,NURSING HOMES                 
PURCHASING ELDERLY            ,9210,CONTINUING NURSING CARE       ,04/04/2012,3239244,J468450 290412           ,6150.24,SWALLOWNEST CARE HOME                   ,361827,Social Community Care,NURSING HOMES                 
PURCHASING ELDERLY            ,9200,CONTINUING RESIDENTIAL CARE   ,04/04/2012,3239245,J468451 290412           ,1532.00,THE LODGE CARE CENTRE                   ,362092,Social Community Care,NURSING HOMES                 
PURCHASING ELDERLY            ,9210,CONTINUING NURSING CARE       ,04/04/2012,3239245,J468451 290412           ,3096.00,THE LODGE CARE CENTRE                   ,362092,Social Community Care,NURSING HOMES                 
PDSI PURCHASING               ,9200,CONTINUING RESIDENTIAL CARE   ,04/04/2012,3239246,J468458 290412           ,3454.53,SHIREBROOK FIELDS                       ,362105,Social Community Care,NURSING HOMES                 
PURCHASING ELDERLY            ,9200,CONTINUING RESIDENTIAL CARE   ,04/04/2012,3239246,J468458 290412           ,5841.00,SHIREBROOK FIELDS                       ,362105,Social Community Care,NURSING HOMES                 
PURCHASING LEARNING DISABILITI,9200,CONTINUING RESIDENTIAL CARE   ,04/04/2012,3239246,J468458 290412           ,63079.36,SHIREBROOK FIELDS                       ,362105,Social Community Care,NURSING HOMES                 
PURCHASING LEARNING DISABILITI,9210,CONTINUING NURSING CARE       ,04/04/2012,3239246,J468458 290412           ,27002.94,SHIREBROOK FIELDS                       ,362105,Social Community Care,NURSING HOMES                 
PURCHASING ELDERLY            ,9200,CONTINUING RESIDENTIAL CARE   ,04/04/2012,3239247,J468459 290412           ,12640.00,LOXLEY COURT                            ,362146,Social Community Care,NURSING HOMES                 
PURCHASING ELDERLY            ,9210,CONTINUING NURSING CARE       ,04/04/2012,3239247,J468459 290412           ,15912.00,LOXLEY COURT                            ,362146,Social Community Care,NURSING HOMES                 
PURCHASING ELDERLY            ,9200,CONTINUING RESIDENTIAL CARE   ,04/04/2012,3239248,J468461 290412           ,10188.00,KERSAL MOUNT NURSING HOME               ,361765,Social Community Care,NURSING HOMES                 
PURCHASING ELDERLY            ,9210,CONTINUING NURSING CARE       ,04/04/2012,3239248,J468461 290412           ,19440.00,KERSAL MOUNT NURSING HOME               ,361765,Social Community Care,NURSING HOMES                 
PURCHASING ELDERLY            ,9200,CONTINUING RESIDENTIAL CARE   ,04/04/2012,3239249,J468462 290412           ,32646.00,MRS CAROLE BENNETT                      ,361842,Social Community Care,RESIDENTIAL CARE HOMES        
PURCHASING ELDERLY            ,9200,CONTINUING RESIDENTIAL CARE   ,04/04/2012,3239250,J468468 290412           ,6256.00,TAPTON COURT NURSING HOME               ,362076,Social Community Care,NURSING HOMES                 
PURCHASING ELDERLY            ,9210,CONTINUING NURSING CARE       ,04/04/2012,3239250,J468468 290412           ,9576.00,TAPTON COURT NURSING HOME               ,362076,Social Community Care,NURSING HOMES                 
PURCHASING ELDERLY            ,9200,CONTINUING RESIDENTIAL CARE   ,04/04/2012,3239251,J468470 290412           ,4706.72,APRIL PARK                              ,361944,Social Community Care,RESIDENTIAL CARE HOMES        
PURCHASING LEARNING DISABILITI,9200,CONTINUING RESIDENTIAL CARE   ,04/04/2012,3239252,J468475 290412           ,5345.90,UNITED RESPONSE(GATESHEAD)              ,362032,Unclassified Non Trade,CHARITIES & VOLUNTARY ORGANISA
PDSI PURCHASING               ,9200,CONTINUING RESIDENTIAL CARE   ,04/04/2012,3239253,J468478 290412           ,1570.17,DEVAGLADE LIMITED T/A AARON VIEW        ,486043,Social Community Care,NURSING HOMES                 
PURCHASING ELDERLY            ,9200,CONTINUING RESIDENTIAL CARE   ,04/04/2012,3239253,J468478 290412           ,19303.00,DEVAGLADE LIMITED T/A AARON VIEW        ,486043,Social Community Care,NURSING HOMES                 
PURCHASING ELDERLY            ,9200,CONTINUING RESIDENTIAL CARE   ,04/04/2012,3239254,J468481 290412           ,19092.00,NORWOOD GRANGE                          ,361907,Social Community Care,RESIDENTIAL CARE HOMES        
PURCHASING ELDERLY            ,9200,CONTINUING RESIDENTIAL CARE   ,04/04/2012,3239255,J468487 290412           ,5879.76,TREETON GRANGE                          ,362005,Social Community Care,NURSING HOMES                 
PURCHASING ELDERLY            ,9210,CONTINUING NURSING CARE       ,04/04/2012,3239255,J468487 290412           ,3096.00,TREETON GRANGE                          ,362005,Social Community Care,NURSING HOMES                 
PURCHASING ELDERLY            ,9200,CONTINUING RESIDENTIAL CARE   ,04/04/2012,3239256,J468489 290412           ,7740.00,LOWER BOWSHAW VIEW NH                   ,362101,Social Community Care,NURSING HOMES                 
PURCHASING ELDERLY            ,9210,CONTINUING NURSING CARE       ,04/04/2012,3239256,J468489 290412           ,22072.00,LOWER BOWSHAW VIEW NH                   ,362101,Social Community Care,NURSING HOMES                 
PURCHASING ELDERLY            ,9200,CONTINUING RESIDENTIAL CARE   ,04/04/2012,3239257,J468495 290412           ,1604.00,LADYFIELD HOUSE NURSING HOME            ,361824,Social Community Care,NURSING HOMES                 
PURCHASING ELDERLY            ,9210,CONTINUING NURSING CARE       ,04/04/2012,3239258,J468498 290412           ,6480.00,LONGLEY PARK VIEW                       ,361928,Social Community Care,NURSING HOMES                 
PDSI PURCHASING               ,9210,CONTINUING NURSING CARE       ,04/04/2012,3239258,J468498 290412           ,4750.02,LONGLEY PARK VIEW                       ,361928,Social Community Care,NURSING HOMES                 
PDSI PURCHASING               ,9210,CONTINUING NURSING CARE       ,04/04/2012,3239259,J468500 290412           ,3818.86,WILLOWBECK CARE CENTRE                  ,362132,Social Community Care,NURSING HOMES                 
PURCHASING LEARNING DISABILITI,9210,CONTINUING NURSING CARE       ,04/04/2012,3239259,J468500 290412           ,5696.24,WILLOWBECK CARE CENTRE                  ,362132,Social Community Care,NURSING HOMES                 
PURCHASING                    ,9210,CONTINUING NURSING CARE       ,04/04/2012,3239259,J468500 290412           ,5906.14,WILLOWBECK CARE CENTRE                  ,362132,Social Community Care,NURSING HOMES                 
PURCHASING ELDERLY            ,9210,CONTINUING NURSING CARE       ,04/04/2012,3239259,J468500 290412           ,7990.84,WILLOWBECK CARE CENTRE                  ,362132,Social Community Care,NURSING HOMES                 
PURCHASING ELDERLY            ,9200,CONTINUING RESIDENTIAL CARE   ,04/04/2012,3239260,J468502 290412           ,1417.00,TAPTONHOLME                             ,208851,Social Community Care,RESIDENTIAL CARE HOMES        
PURCHASING ELDERLY            ,9200,CONTINUING RESIDENTIAL CARE   ,04/04/2012,3239261,J468503 290412           ,16504.00,AARON HOUSE                             ,361752,Social Community Care,RESIDENTIAL CARE HOMES        
PURCHASING ELDERLY            ,9200,CONTINUING RESIDENTIAL CARE   ,04/04/2012,3239262,J468504 290412           ,15907.00,WESTBOURNE HOUSE                        ,362111,Social Community Care,NURSING HOMES                 
PURCHASING ELDERLY            ,9210,CONTINUING NURSING CARE       ,04/04/2012,3239262,J468504 290412           ,21864.00,WESTBOURNE HOUSE                        ,362111,Social Community Care,NURSING HOMES                 
PURCHASING LEARNING DISABILITI,9200,CONTINUING RESIDENTIAL CARE   ,04/04/2012,3239263,J468510 290412           ,1392.76,ABBEYFIELD GRANGE                       ,336444,Social Community Care,RESIDENTIAL CARE HOMES        
PURCHASING                    ,9200,CONTINUING RESIDENTIAL CARE   ,04/04/2012,3239263,J468510 290412           ,23445.20,ABBEYFIELD GRANGE                       ,336444,Social Community Care,RESIDENTIAL CARE HOMES        
PURCHASING ELDERLY            ,9200,CONTINUING RESIDENTIAL CARE   ,04/04/2012,3239263,J468510 290412           ,11846.20,ABBEYFIELD GRANGE                       ,336444,Social Community Care,RESIDENTIAL CARE HOMES        
PURCHASING ELDERLY            ,9200,CONTINUING RESIDENTIAL CARE   ,04/04/2012,3239264,J468519 290412           ,1557.00,PARK LANE HEALTHCARE (MOORGATE)         ,362023,Social Community Care,NURSING HOMES                 
PURCHASING ELDERLY            ,9210,CONTINUING NURSING CARE       ,04/04/2012,3239264,J468519 290412           ,1548.00,PARK LANE HEALTHCARE (MOORGATE)         ,362023,Social Community Care,NURSING HOMES                 
PURCHASING ELDERLY            ,9200,CONTINUING RESIDENTIAL CARE   ,04/04/2012,3239265,J468520 290412           ,22033.00,THE LIME TREES                          ,362053,Social Community Care,RESIDENTIAL CARE HOMES        
PURCHASING ELDERLY            ,9210,CONTINUING NURSING CARE       ,04/04/2012,3239265,J468520 290412           ,12858.00,THE LIME TREES                          ,362053,Social Community Care,RESIDENTIAL CARE HOMES        
PURCHASING ELDERLY            ,9200,CONTINUING RESIDENTIAL CARE   ,04/04/2012,3239266,J468522 290412           ,29187.00,BALMORAL NURSING HOME                   ,361851,Social Community Care,NURSING HOMES                 
PURCHASING ELDERLY            ,9210,CONTINUING NURSING CARE       ,04/04/2012,3239266,J468522 290412           ,23220.00,BALMORAL NURSING HOME                   ,361851,Social Community Care,NURSING HOMES                 
PURCHASING LEARNING DISABILITI,9200,CONTINUING RESIDENTIAL CARE   ,04/04/2012,3239267,J468524 290412           ,24140.24,WHITEGATES MANAGEMENT COMMITTEE         ,361931,Unclassified Trade,ESTATE AGENTS                 
PURCHASING LEARNING DISABILITI,9200,CONTINUING RESIDENTIAL CARE   ,04/04/2012,3239268,J468531 290412           ,6560.74,3 STATION ROAD                          ,362166,Social Community Care,RESIDENTIAL CARE HOMES        
PURCHASING ELDERLY            ,9200,CONTINUING RESIDENTIAL CARE   ,04/04/2012,3239269,J468534 290412           ,2865.92,5 STATION ROAD                          ,361874,Social Community Care,RESIDENTIAL CARE HOMES        
PURCHASING LEARNING DISABILITI,9200,CONTINUING RESIDENTIAL CARE   ,04/04/2012,3239269,J468534 290412           ,4045.94,5 STATION ROAD                          ,361874,Social Community Care,RESIDENTIAL CARE HOMES        
PURCHASING                    ,9200,CONTINUING RESIDENTIAL CARE   ,04/04/2012,3239270,J468543 290412           ,19446.93,TOGETHER                                ,361880,Unclassified Non Trade,CHARITIES & VOLUNTARY ORGANISA
PURCHASING ELDERLY            ,9200,CONTINUING RESIDENTIAL CARE   ,04/04/2012,3239270,J468543 290412           ,2201.00,TOGETHER                                ,361880,Unclassified Non Trade,CHARITIES & VOLUNTARY ORGANISA
PURCHASING ELDERLY            ,9210,CONTINUING NURSING CARE       ,04/04/2012,3239271,J468547 290412           ,1548.00,MILLFIELD RESIDENTIAL HOME              ,362091,Social Community Care,RESIDENTIAL CARE HOMES        
PURCHASING                    ,9200,CONTINUING RESIDENTIAL CARE   ,04/04/2012,3239272,J468559 290412           ,2897.97,WESTFIELD HOUSE                         ,362081,Social Community Care,RESIDENTIAL CARE HOMES        
PURCHASING LEARNING DISABILITI,9200,CONTINUING RESIDENTIAL CARE   ,04/04/2012,3239273,J468560 290412           ,3095.86,SHEFFIELD CHESHIRE HOME                 ,361768,Social Community Care,NURSING HOMES                 
PURCHASING ELDERLY            ,9210,CONTINUING NURSING CARE       ,04/04/2012,3239273,J468560 290412           ,10801.00,SHEFFIELD CHESHIRE HOME                 ,361768,Social Community Care,NURSING HOMES                 
PDSI PURCHASING               ,9210,CONTINUING NURSING CARE       ,04/04/2012,3239273,J468560 290412           ,27006.48,SHEFFIELD CHESHIRE HOME                 ,361768,Social Community Care,NURSING HOMES                 
PDSI PURCHASING               ,9220,CONTINUING BLOCK BOOKED       ,04/04/2012,3239273,J468560 290412           ,1009.54,SHEFFIELD CHESHIRE HOME                 ,361768,Social Community Care,NURSING HOMES                 
PURCHASING ELDERLY            ,9200,CONTINUING RESIDENTIAL CARE   ,04/04/2012,3239274,J468563 290412           ,1532.00,SEVENHILLS NURSING                      ,362104,Social Community Care,NURSING HOMES                 
PURCHASING ELDERLY            ,9210,CONTINUING NURSING CARE       ,04/04/2012,3239274,J468563 290412           ,4868.00,SEVENHILLS NURSING                      ,362104,Social Community Care,NURSING HOMES                 
PURCHASING ELDERLY            ,9200,CONTINUING RESIDENTIAL CARE   ,04/04/2012,3239275,J468567 290412           ,1611.24,ST CECILIAS RESIDENTIAL HOME            ,370172,Social Community Care,RESIDENTIAL CARE HOMES        
PURCHASING ELDERLY            ,9200,CONTINUING RESIDENTIAL CARE   ,04/04/2012,3239276,J468568 290412           ,24807.00,HEELEY BANK CARE HOME                   ,362923,Social Community Care,RESIDENTIAL CARE HOMES        
PURCHASING ELDERLY            ,9210,CONTINUING NURSING CARE       ,04/04/2012,3239276,J468568 290412           ,15816.00,HEELEY BANK CARE HOME                   ,362923,Social Community Care,RESIDENTIAL CARE HOMES        
PURCHASING LEARNING DISABILITI,9200,CONTINUING RESIDENTIAL CARE   ,04/04/2012,3239277,J468571 290412           ,7970.72,LITTLE ARCHES RESIDENTIAL HOME          ,361869,Social Community Care,RESIDENTIAL CARE HOMES        
PURCHASING ELDERLY            ,9200,CONTINUING RESIDENTIAL CARE   ,04/04/2012,3239278,J468592 290412           ,1660.60,WATER ROYD HOUSE                        ,383521,Social Community Care,NURSING HOMES                 
PURCHASING ELDERLY            ,9210,CONTINUING NURSING CARE       ,04/04/2012,3239278,J468592 290412           ,1588.00,WATER ROYD HOUSE                        ,383521,Social Community Care,NURSING HOMES                 
PURCHASING LEARNING DISABILITI,9200,CONTINUING RESIDENTIAL CARE   ,04/04/2012,3239279,J468607 290412           ,12861.92,ROSEBERRY CARE CENTRES UK LTD           ,412186,Social Community Care,RESIDENTIAL CARE HOMES        
PURCHASING LEARNING DISABILITI,9200,SHORT TERM RESIDENTIAL CARE   ,04/04/2012,3239280,J468296 010412           ,3332.68,WILLOWBECK CARE CENTRE                  ,362132,Social Community Care,NURSING HOMES                 
STREET FORCE BALANCE SHEET    ,776,4332101 INVOICES PAID         ,05/04/2012,3240162,1102464651,1185.35,KONICA MINOLTA BUSINESS SOLUTIONS EAST  ,206267,ICT,OFFICE EQUIPMENT MNFRS & DISTR
STREET FORCE BALANCE SHEET    ,776,4332101 INVOICES PAID         ,05/04/2012,3240169,1102465780,2489.67,KONICA MINOLTA BUSINESS SOLUTIONS EAST  ,206267,ICT,OFFICE EQUIPMENT MNFRS & DISTR
STREET FORCE BALANCE SHEET    ,776,4332101 INVOICES PAID         ,05/04/2012,3240175,16578,634.25,CARRYLIAM & CO                          ,203751,Environmental Services,SKIP HIRE & RUBBISH CLEARANCE 
STREET FORCE BALANCE SHEET    ,776,4332101 INVOICES PAID         ,05/04/2012,3240178,20002993,1302.40,HARSCO METALS GROUP LTD                 ,493119,Vehicles Not Buses,PLANT & MACHINERY HIRE & LEASI
STREET FORCE BALANCE SHEET    ,776,4332101 INVOICES PAID         ,05/04/2012,3240179,20002994,1101.10,HARSCO METALS GROUP LTD                 ,493119,Vehicles Not Buses,PLANT & MACHINERY HIRE & LEASI
STREET FORCE BALANCE SHEET    ,776,4332101 INVOICES PAID         ,05/04/2012,3240180,20003070,1206.70,HARSCO METALS GROUP LTD                 ,493119,Vehicles Not Buses,PLANT & MACHINERY HIRE & LEASI
STREET FORCE BALANCE SHEET    ,776,4332101 INVOICES PAID         ,05/04/2012,3240182,20003073,1103.30,HARSCO METALS GROUP LTD                 ,493119,Vehicles Not Buses,PLANT & MACHINERY HIRE & LEASI
STREET FORCE BALANCE SHEET    ,776,4332101 INVOICES PAID         ,05/04/2012,3240183,2012-1132                ,1364.00,SAVOY COMPUTING SERVICES LTD.           ,208227,ICT,COMPUTER SYSTEMS & SOFTWARE (S
STREET FORCE BALANCE SHEET    ,776,4332101 INVOICES PAID         ,05/04/2012,3240189,5880,585.80,PROBRUSH T/A NORTHERN MUNICIPAL SPARES  ,538000,Building Construction Materials,BRUSH MNFRS                   
STREET FORCE BALANCE SHEET    ,776,4332101 INVOICES PAID         ,05/04/2012,3240190,7610,1326.20,GLEADLESS CIVIL ENGINEERING LTD         ,412782,Highway Equipment and Materials,PAVING & DRIVEWAY CONTRACTORS 
STREET FORCE BALANCE SHEET    ,776,4332101 INVOICES PAID         ,05/04/2012,3240191,7611,1365.30,GLEADLESS CIVIL ENGINEERING LTD         ,412782,Highway Equipment and Materials,PAVING & DRIVEWAY CONTRACTORS 
STREET FORCE BALANCE SHEET    ,776,4332101 INVOICES PAID         ,05/04/2012,3240192,79567,602.78,HAGUE PLANT LTD                         ,205330,Vehicles Not Buses,PLANT & MACHINERY HIRE & LEASI
STREET FORCE BALANCE SHEET    ,776,4332101 INVOICES PAID         ,05/04/2012,3240196,A004747                  ,2048.42,SPECIALISED MOVERS                      ,303661,Transport,REMOVALS - INDUSTRIAL & BUSINE
STREET FORCE BALANCE SHEET    ,776,4332101 INVOICES PAID         ,05/04/2012,3240197,BBP36507                 ,1347.60,BITUCHEM BUILDING PRODUCTS LIMITED      ,493182,Building Construction Materials,BUILDERS' MERCHANTS           
STREET FORCE BALANCE SHEET    ,776,4332101 INVOICES PAID         ,05/04/2012,3240199,SC/PF7109                ,3101.49,PROTEK FENCING LIMITED                  ,493113,Building Construction Materials,"FENCE, GATE & BARRIER SUPPLIER"
STREET FORCE BALANCE SHEET    ,776,4332101 INVOICES PAID         ,05/04/2012,3240201,YD20139595               ,1141.79,NORTHERN POWERGRID                      ,349525,Utilities,ELECTRICITY COMPANIES         
STREET FORCE BALANCE SHEET    ,776,4332101 INVOICES PAID         ,05/04/2012,3240203,YD20139640               ,830.94,NORTHERN POWERGRID                      ,349525,Utilities,ELECTRICITY COMPANIES         
STREET FORCE BALANCE SHEET    ,776,4332101 INVOICES PAID         ,05/04/2012,3240204,YD20139641               ,1078.59,NORTHERN POWERGRID                      ,349525,Utilities,ELECTRICITY COMPANIES         
STREET FORCE BALANCE SHEET    ,776,4332101 INVOICES PAID         ,05/04/2012,3240787,FINAL RETENTION          ,500.24,STEELWAY FENSECURE LTD                  ,208655,Construction,STEEL FABRICATORS & ERECTORS  
CORONIAL SERVICES             ,8440,PATHOLOGIST INVOICE           ,05/04/2012,3240823,ERS INVOICE65320         ,540.00,DR K K HAMPTON                          ,336410,Medical ,DOCTORS                       
CLAIMS                        ,8740,PUBLIC LIABILITY              ,05/04/2012,3240824,ERS INVOICE65321         ,11200.00,GRAYSONS SOLICITORS                     ,297241,Legal Services,SOLICITORS                    
CLAIMS                        ,8740,PUBLIC LIABILITY              ,05/04/2012,3240825,ERS INVOICE65322         ,14766.00,DEPARTMENT FOR WORK & PENSIONS          ,326920,Unclassified Non Trade,CENTRAL GOVERNMENT            
CLAIMS                        ,8740,PUBLIC LIABILITY              ,05/04/2012,3240828,ERS INVOICE65325         ,1792.45,VIRGIN MEDIA                            ,401266,ICT,TELECOMMUNICATION SERVICES    
CLAIMS                        ,8740,PUBLIC LIABILITY              ,05/04/2012,3240832,ERS INVOICE65329         ,2000.00,ACCIDENT SOLICITORS DIRECT              ,299480,Legal Services,SOLICITORS                    
CLAIMS                        ,8740,MOTOR VEHICLE                 ,05/04/2012,3240837,ERS INVOICE65335         ,918.49,REDACTED PERSONAL DATA,566441,Unclassified Non Trade,OUT OF SCOPE FOR SIC MONITORIN
CLAIMS                        ,8740,EMPLOYERS LIABILITY           ,05/04/2012,3240838,ERS INVOICE65336         ,5300.00,THOMPSONS CLIENT ACCOUNT                ,505870,Legal Services,SOLICITORS                    
CLAIMS                        ,8740,PUBLIC LIABILITY              ,05/04/2012,3240839,ERS INVOICE65337         ,610.47,VIRGIN MEDIA                            ,401266,ICT,TELECOMMUNICATION SERVICES    
CLAIMS                        ,8740,HIGHWAYS                      ,05/04/2012,3240840,ERS INVOICE65338         ,6660.00,ACUMEN                                  ,470305,Financial Services,FINANCIAL SERVICES            
CLAIMS                        ,8740,HIGHWAYS                      ,05/04/2012,3240841,ERS INVOICE65339         ,500.00,REDACTED PERSONAL DATA,566033,Unclassified Non Trade,OUT OF SCOPE FOR SIC MONITORIN
CORONIAL SERVICES             ,8440,PATHOLOGIST INVOICE           ,05/04/2012,3240846,ERS INVOICE65344         ,556.90,DR C A WILSON                           ,554965,Medical ,DOCTORS                       
CLAIMS                        ,8740,HIGHWAYS                      ,05/04/2012,3240849,ERS INVOICE65347         ,6990.62,REDACTED PERSONAL DATA,566501,Unclassified Non Trade,OUT OF SCOPE FOR SIC MONITORIN
EXECUTOR SERVICES             ,8090,BEREAVEMENT SUPPLIES          ,05/04/2012,3240851,ERS INVOICE65349         ,1207.95,REDACTED PERSONAL DATA,566338,Unclassified Non Trade,OUT OF SCOPE FOR SIC MONITORIN
HOUSING SOLUTIONS ADMIN       ,8470,LEGAL FEES                    ,05/04/2012,3241019,ERS INVOICE65386         ,3850.00, THE COMMUNITY LAW PARTNERSHIP          ,562177,Legal Services,LEGAL SERVICES                
OCCUPATIONAL HEALTH RECHARGES ,5790,EMPLOYEE EXPENSES-INVOICED    ,05/04/2012,3241021,ERS INVOICE65388         ,5390.00,DR J P O'CONNELL                        ,345381,Medical ,DOCTORS                       
FIRST POINT                   ,5790,EMPLOYEE EXPENSES             ,05/04/2012,3221343,916266965,2064.22,ARCO LTD                                ,203022,Clothing,SAFETY EQUIPMENT & CLOTHING   
HUMAN RESOURCES ADVISORY      ,8460,CONSULTANTS FEES              ,05/04/2012,3222189,3231,9257.53,INSIGHT MANAGEMENT & SYSTEMS            ,424598,Consultancy,COMPUTER SYSTEMS & SOFTWARE (D
PROJECT MANAGEMENT - SCHEME   ,8350,MISCELLANEOUS EXPENSES        ,05/04/2012,3227986,5385,2204.00,EURO ENVIRONMENTAL LTD                  ,399641,Construction,ASBESTOS SURVEYS & REMOVALS   
BURGLAR ALARMS                ,6030,REPAIRS TO TENANTED PROPERTIES,05/04/2012,3228298,SHH/CAPITALPROGRAM       ,3419.71,TELSTAR SECURITY                        ,299814,Facilities Management,SECURITY EQUIPMENT            
PDSI PURCHASING               ,8490,TRANSLATN/SIGN/INTERPRET FEES ,05/04/2012,3230428,030212-JC                ,1050.00,REFLECT BSL                             ,557738,Human Resources,TRANSLATORS & INTERPRETERS    
CITY WIDE CHILD CARE CONTRACT ,8440,FEE EXPENSES                  ,05/04/2012,3230581,G82415                   ,3750.00,REDACTED PERSONAL DATA,335727,Social Community Care,CHILDCARE SERVICES            
17-24 PEDCITYCTRE ECCRD AR GT ,1194,OTHER FEES                    ,05/04/2012,3232015,DA008                    ,1384.00,THE DRINKAWARE TRUST                    ,565861,Unclassified Non Trade,CHARITIES & VOLUNTARY ORGANISA
LEARNING & DEVELOPMT DELIVERY ,8400,PUBLICATIONS AND PERIODICALS  ,05/04/2012,3232853,INV0372265               ,1707.75,OPP LTD                                 ,510069,Human Resources,HUMAN RESOURCES               
CUSTOMER CARE & COMMUNICATIONS,8490,TRANSLATN/SIGN/INTERPRET FEES ,05/04/2012,3234994,27002-S/H                ,3438.75,SHEFFIELD LANGUAGE SERVICES             ,463597,Human Resources,TRAINING SERVICES             
GENERAL COMM AREAS - INC AREA ,8560,HOUSING AREA CONSULT ALLOWANCE,05/04/2012,3235013,491,976.60,HILLSBOROUGH FENCING CO LTD             ,205531,Construction,FENCING CONTRACTORS           
SHELTERED HOUSING GENERAL     ,8010,EQUIPMENT PURCHASE AND REPAIR ,05/04/2012,3235318,13908,7212.74,PYRAMID CARPETS                         ,243612,Building Construction Materials,CARPETS & RUGS - RETAIL       
OTHER REPAIRS & FEES          ,6030,PLAYGROUND REPAIRS            ,05/04/2012,3235917,5/655/25LM/40823         ,1326.00,SHEFFIELD WILDLIFE TRUST                ,347103,Unclassified Non Trade,CHARITIES & VOLUNTARY ORGANISA
BISHOPS HOUSE                 ,6160,GAS                           ,05/04/2012,3236536,3002707400,990.04,TOTAL GAS & POWER LTD                   ,377403,Utilities,GAS COMPANIES                 
FAMILY & COMM MANAGEMENT      ,8440,FEE EXPENSES                  ,05/04/2012,3236718,SIN161692                ,8963.90,ADAM ROUILLY LTD                        ,341614,Medical ,FIRST AID & MEDICAL SUPPLIES  
CHILDREN & YOUNG PEOPLE'S INVO,8440,FEE EXPENSES                  ,05/04/2012,3236982,2100141839,750.00,SHEFFIELD CHILDRENS HOSPITAL NHS TRUST  ,306287,Unclassified Non Trade,HOSPITALS                     
TREES & WOODLAND TEAM         ,6370,GROUNDS MTCE AND ARBORICULTURE,05/04/2012,3237204,2929,1470.00,UNDERWOOD TREE SURGEONS LTD             ,306742,Environmental Services,TREE WORK & FORESTRY SERVICES 
CHILDREN & YOUNG PEOPLE'S INVO,8440,FEE EXPENSES                  ,05/04/2012,3238126,557,2100.00,IBK INITIATIVES                         ,432975,Social Community Care,DISABILITY & SPECIAL NEEDS - S
TRAINING - BROCKWOOD          ,8460,CONSULTANTS FEES              ,05/04/2012,3238252,18452,1075.00,EQUILIBRIUM ASSOCIATES LTD              ,338103,Medical ,STRESS MANAGEMENT             
EXECUTIVE                     ,8230,HOSPITALITY                   ,05/04/2012,3238263,PAT79862                 ,533.37,THE WORKSTATION                         ,208994,Human Resources,TRADE UNIONS                  
ACCOMMODATION                 ,6030,REPAIRS AND MTCE - RESPONSIVE ,05/04/2012,3238400,98082,4716.96,SOLPRO MANUFACTURING LTD                ,512326,Unclassified Trade,ELECTRONIC COMPONENT MNFRS & D
CONTACT CONTRACTS             ,9280,CONTACT                       ,05/04/2012,3238414,4994,7190.15,PROGRESSIVE CARE LTD                    ,343548,Social Community Care,CHILDREN'S HOMES              
PROGRAMME DELIVERY TEAM       ,5010,GENERAL BASIC PAY             ,05/04/2012,3239130,113173397,12838.42,ROTHERHAM M B C                         ,296984,Unclassified Non Trade,LOCAL GOVERNMENT              
SH GENERAL                    ,7160,CAR PARKING SPACES AND FEES   ,05/04/2012,3239165,932536,1350.00,SHEFFIELD CITY COUNCIL PARKING SERVICES ,387787,Traffic Management,CAR PARKING & GARAGING        
TREES & WOODLANDS RECH WORKS  ,8440,FEE EXPENSES                  ,05/04/2012,3239176,83423,952.20,BARCHAM TREES PLC                       ,203253,Horticultural,NURSERIES - WHOLESALE         
CHANCET WOOD                  ,8440,FEE EXPENSES                  ,05/04/2012,3239177,186576,750.00,MR NICHOLAS PRICE                       ,566003,Legal Services,BARRISTERS                    
SCC BALANCE SHEET             ,1540,DEMOLITION CONTROL ACCOUNT    ,05/04/2012,3239467,ES03046/4                ,74000.00,DEMEX LTD                               ,204333,Construction,DEMOLITION & DISMANTLING CONTR
HAZELHURST                    ,8140,GROCERIES                     ,05/04/2012,3239471,255334540,553.69,YORKSHIRE PURCHASING ORGANISATION       ,295997,Unclassified Trade,PURCHASING SERVICES           
SCHOOL SWIMMING SERVICE       ,7060,EXTERNAL VEHICLE HIRE         ,05/04/2012,3239473,AT107092                 ,1960.00,ASHLEY TRAVEL LTD                       ,439136,Vehicles Not Buses,MINI BUSES - HIRE & LEASING   
SCC BALANCE SHEET             ,1540,DEMOLITION CONTROL ACCOUNT    ,05/04/2012,3239524,33022,10675.00,MHH CONTRACTING LTD                     ,205329,Construction,EXCAVATION & GROUNDWORK CONTRA
COMMUNICATIONS TEAM           ,8370,PRINTING                      ,05/04/2012,3239526,931903,2098.30,DESIGN & PRINT SERVICE (SHEFFIELD HOMES),387617,Facilities Management,PRINTERS                      
LOCAL PRIORITIES              ,8560,TPB SOUTH EAST                ,05/04/2012,3239527,932850,1890.00,STREETFORCE (SHEFFIELD HOMES)           ,387560,Facilities Management,FACILITIES MANAGEMENT         
LOCAL PRIORITIES              ,8560,TPB EAST                      ,05/04/2012,3239529,932851,620.00,STREETFORCE (SHEFFIELD HOMES)           ,387560,Facilities Management,FACILITIES MANAGEMENT         
LOCAL PRIORITIES              ,8560,TPB SOUTH EAST                ,05/04/2012,3239535,932846,2000.00,STREETFORCE (SHEFFIELD HOMES)           ,387560,Facilities Management,FACILITIES MANAGEMENT         
INCOME MANAGEMENT             ,8420,ADVERTISING AND PUBLICITY     ,05/04/2012,3239536,932857,1061.40,DESIGN & PRINT SERVICE (SHEFFIELD HOMES),387617,Facilities Management,PRINTERS                      
LOCAL PRIORITIES              ,8560,TPB SOUTH EAST                ,05/04/2012,3239540,932874,1180.00,STREETFORCE (SHEFFIELD HOMES)           ,387560,Facilities Management,FACILITIES MANAGEMENT         
TRAINING - BROCKWOOD          ,8550,OTHER SERVICES                ,05/04/2012,3239545,1016977,1215.00,CLARK & PARTNERS LTD                    ,203928,Medical ,DISABILITY EQUIPMENT - MNFRS &
TRAINING - BROCKWOOD          ,8550,OTHER SERVICES                ,05/04/2012,3239560,33052009,761.73,CLARK & PARTNERS LTD                    ,203928,Medical ,DISABILITY EQUIPMENT - MNFRS &
SCHOOL SWIMMING SERVICE       ,6280,HIRE OF PREMISES              ,05/04/2012,3239590,6,2635.00,KING EDWARD SWIMMING POOL TRUST         ,314583,Leisure Services,SWIMMING POOLS - PUBLIC       
ACCES2NATURE                  ,8260,WOODLAND DEVELOPMENT EXPENSES ,05/04/2012,3239616,INC08222                 ,1365.00,ART IN THE PARK (SHEFFIELD)             ,472059,Unclassified Non Trade,CHARITIES & VOLUNTARY ORGANISA
SH GENERAL                    ,9650,LEGAL AND GOVERNANCE          ,05/04/2012,3239631,932885,1388.50,CHIEF EXECUTIVE DIRECTORATE (HOMES)     ,402954,Unclassified Non Trade,LOCAL GOVERNMENT              
BURNGREAVE CHILDRENS CENT NURS,8040,LEARNING RESOURCES            ,05/04/2012,3239633,101403,1000.00,EARLY EXCELLENCE LTD                    ,322905,Human Resources,TRAINING SERVICES             
BURNGREAVE CHILDRENS CENT NURS,5750,TRAINING EXPENDITURE          ,05/04/2012,3239637,101404,1100.00,EARLY EXCELLENCE LTD                    ,322905,Human Resources,TRAINING SERVICES             
HAZELHURST                    ,5610,AGENCY STAFF                  ,05/04/2012,3239639,53879,626.25,LYNX SERVICES LTD                       ,349384,Human Resources,EMPLOYMENT & RECRUITMENT AGENC
CROOKESMOOR CENTRAL COSTS     ,8370,PRINTING                      ,05/04/2012,3239808,SINV00226401             ,4082.55,R A ROBERTS (OFFICE EQUIPMENT) LTD      ,207777,Furniture,OFFICE FURNITURE & EQUIPMENT  
PURCHASING & PAYMENTS TEAM    ,8370,PRINTING                      ,05/04/2012,3239815,932790,500.00,DESIGN & PRINT SERVICE (SHEFFIELD HOMES),387617,Facilities Management,PRINTERS                      
PURCHASING LEARNING DISABILITI,8350,MISCELLANEOUS EXPENSES        ,05/04/2012,3239824,SCC004344                ,563.50,ALARA BED & BREAKFAST                   ,305061,Facilities Management,GUEST HOUSES                  
LOCAL PRIORITIES              ,8560,TPB SHELTERED                 ,05/04/2012,3239844,932842,505.00,STREETFORCE (SHEFFIELD HOMES)           ,387560,Facilities Management,FACILITIES MANAGEMENT         
SCHOOL SWIMMING SERVICE       ,6280,HIRE OF PREMISES              ,05/04/2012,3239921,3021611,4320.00,PONDS FORGE                             ,320223,Leisure Services,LEISURE & RECREATION CENTRES  
LOCAL PRIORITIES              ,8560,TPB SHELTERED                 ,05/04/2012,3240416,932839,1681.00,STREETFORCE (SHEFFIELD HOMES)           ,387560,Facilities Management,FACILITIES MANAGEMENT         
LOCAL PRIORITIES              ,8560,TPB SHELTERED                 ,05/04/2012,3240417,932840,5203.00,STREETFORCE (SHEFFIELD HOMES)           ,387560,Facilities Management,FACILITIES MANAGEMENT         
APSL - MANAGEMENT & ADMIN SUPP,8270,SUBSCRIPTIONS                 ,05/04/2012,3240418,12801,649.00,OCTAGON MARKETING                       ,297594,Education,PUBLISHERS                    
ALDINE HOUSE                  ,5610,AGENCY STAFF                  ,05/04/2012,3240473,731570,978.50,TEACHING PERSONNEL                      ,410695,Human Resources,EMPLOYMENT & RECRUITMENT AGENC
FREE TRAVEL PASSES - PRIMARY  ,9120,OTHER AGENCIES                ,05/04/2012,3240583,SL0062707                ,22061.92,SYPTE                                   ,208757,Transport,BUS & COACH OPERATORS & STATIO
TRAINING - BROCKWOOD          ,8460,CONSULTANTS FEES              ,05/04/2012,3240894,386,1800.00,VIDA SHEFFIELD                          ,317850,Unclassified Non Trade,CHARITIES & VOLUNTARY ORGANISA
GRAVES PARK - ANIMAL FARM INC ,6150,ELECTRICITY                   ,05/04/2012,3240413,27140153,1045.89,NPOWER NORTHERN LTD                     ,207191,Utilities,ELECTRICITY COMPANIES         
MEETING ROOMS SOUTH EAST AREA ,6190,WATER SERVICES                ,05/04/2012,3240425,8311792782,1065.59,SEVERN TRENT WATER LTD                  ,388402,Utilities,WATER COMPANIES               
SHELTERED HOUSING SCHEMES     ,6190,WATER SERVICES                ,05/04/2012,3240437,5981423675,2446.44,SEVERN TRENT WATER LTD                  ,388402,Utilities,WATER COMPANIES               
SHELTERED HOUSING SCHEMES     ,6190,WATER SERVICES                ,05/04/2012,3240447,5981423666,1109.84,SEVERN TRENT WATER LTD                  ,388402,Utilities,WATER COMPANIES               
MEETING ROOMS SOUTH EAST AREA ,6190,WATER SERVICES                ,05/04/2012,3240450,5981615566,609.93,SEVERN TRENT WATER LTD                  ,388402,Utilities,WATER COMPANIES               
MEETING ROOMS CENTRAL AREA    ,6190,WATER SERVICES                ,05/04/2012,3240452,8311794520,805.11,SEVERN TRENT WATER LTD                  ,388402,Utilities,WATER COMPANIES               
SHELTERED HOUSING SCHEMES     ,6190,WATER SERVICES                ,05/04/2012,3240454,332000000000000,3594.64,YORKSHIRE WATER PLC                     ,295854,Utilities,WATER COMPANIES               
PURCHASING LEARNING DISABILITI,9190,CITYWIDE SPOT                 ,05/04/2012,3240322,1655617,531.00,MENCAP HOMECARE                         ,361858,Unclassified Non Trade,CHARITIES & VOLUNTARY ORGANISA
PURCHASING LEARNING DISABILITI,9190,CITYWIDE SPOT                 ,05/04/2012,3240323,1655618,1003.00,MENCAP HOMECARE                         ,361858,Unclassified Non Trade,CHARITIES & VOLUNTARY ORGANISA
PURCHASING LEARNING DISABILITI,9190,CITYWIDE SPOT                 ,05/04/2012,3240324,1655620,3773.36,MENCAP HOMECARE                         ,361858,Unclassified Non Trade,CHARITIES & VOLUNTARY ORGANISA
PURCHASING LEARNING DISABILITI,9190,CITYWIDE SPOT                 ,05/04/2012,3240325,1655621,1725.76,MENCAP HOMECARE                         ,361858,Unclassified Non Trade,CHARITIES & VOLUNTARY ORGANISA
PURCHASING LEARNING DISABILITI,9190,CITYWIDE SPOT                 ,05/04/2012,3240329,1655631,1527.96,MENCAP HOMECARE                         ,361858,Unclassified Non Trade,CHARITIES & VOLUNTARY ORGANISA
PURCHASING LEARNING DISABILITI,9190,CITYWIDE SPOT                 ,05/04/2012,3240330,1655632,731.48,MENCAP HOMECARE                         ,361858,Unclassified Non Trade,CHARITIES & VOLUNTARY ORGANISA
PURCHASING LEARNING DISABILITI,9190,CITYWIDE SPOT                 ,05/04/2012,3240331,1655633,531.00,MENCAP HOMECARE                         ,361858,Unclassified Non Trade,CHARITIES & VOLUNTARY ORGANISA
PURCHASING LEARNING DISABILITI,9190,CITYWIDE SPOT                 ,05/04/2012,3240334,1655638,2832.00,MENCAP HOMECARE                         ,361858,Unclassified Non Trade,CHARITIES & VOLUNTARY ORGANISA
PURCHASING LEARNING DISABILITI,9190,CITYWIDE SPOT                 ,05/04/2012,3240335,1655640,944.00,MENCAP HOMECARE                         ,361858,Unclassified Non Trade,CHARITIES & VOLUNTARY ORGANISA
PURCHASING LEARNING DISABILITI,9190,CITYWIDE SPOT                 ,05/04/2012,3240337,1655642,731.48,MENCAP HOMECARE                         ,361858,Unclassified Non Trade,CHARITIES & VOLUNTARY ORGANISA
PURCHASING ELDERLY            ,9190,CITYWIDE SPOT                 ,05/04/2012,3240338,2100070055,1674.40,COMMUNITY HEALTH SHEFFIELD              ,361895,Unclassified Non Trade,HOSPITALS                     
PURCHASING LEARNING DISABILITI,9190,CITYWIDE SPOT                 ,05/04/2012,3240339,2100070059,5547.68,COMMUNITY HEALTH SHEFFIELD              ,361895,Unclassified Non Trade,HOSPITALS                     
PURCHASING LEARNING DISABILITI,9190,CITYWIDE SPOT                 ,05/04/2012,3240340,2100070060,1753.28,COMMUNITY HEALTH SHEFFIELD              ,361895,Unclassified Non Trade,HOSPITALS                     
PURCHASING LEARNING DISABILITI,9190,CITYWIDE SPOT                 ,05/04/2012,3240341,2100070061,2009.28,COMMUNITY HEALTH SHEFFIELD              ,361895,Unclassified Non Trade,HOSPITALS                     
PURCHASING LEARNING DISABILITI,9190,CITYWIDE SPOT                 ,05/04/2012,3240342,2100070062,2508.80,COMMUNITY HEALTH SHEFFIELD              ,361895,Unclassified Non Trade,HOSPITALS                     
PURCHASING LEARNING DISABILITI,9190,CITYWIDE SPOT                 ,05/04/2012,3240343,2100070063,1646.40,COMMUNITY HEALTH SHEFFIELD              ,361895,Unclassified Non Trade,HOSPITALS                     
PURCHASING LEARNING DISABILITI,9190,CITYWIDE SPOT                 ,05/04/2012,3240344,2100070064,548.80,COMMUNITY HEALTH SHEFFIELD              ,361895,Unclassified Non Trade,HOSPITALS                     
PURCHASING LEARNING DISABILITI,9190,CITYWIDE SPOT                 ,05/04/2012,3240345,2100070065,784.00,COMMUNITY HEALTH SHEFFIELD              ,361895,Unclassified Non Trade,HOSPITALS                     
PURCHASING LEARNING DISABILITI,9190,CITYWIDE SPOT                 ,05/04/2012,3240346,2100070070,1610.32,COMMUNITY HEALTH SHEFFIELD              ,361895,Unclassified Non Trade,HOSPITALS                     
PURCHASING LEARNING DISABILITI,9190,CITYWIDE SPOT                 ,05/04/2012,3240347,2100070071,2399.04,COMMUNITY HEALTH SHEFFIELD              ,361895,Unclassified Non Trade,HOSPITALS                     
PURCHASING LEARNING DISABILITI,9190,CITYWIDE SPOT                 ,05/04/2012,3240348,2100070072,4447.44,COMMUNITY HEALTH SHEFFIELD              ,361895,Unclassified Non Trade,HOSPITALS                     
PURCHASING LEARNING DISABILITI,9190,CITYWIDE SPOT                 ,05/04/2012,3240349,2100070073,8588.16,COMMUNITY HEALTH SHEFFIELD              ,361895,Unclassified Non Trade,HOSPITALS                     
PURCHASING LEARNING DISABILITI,9190,CITYWIDE SPOT                 ,05/04/2012,3240350,2100070075,1226.88,COMMUNITY HEALTH SHEFFIELD              ,361895,Unclassified Non Trade,HOSPITALS                     
PURCHASING LEARNING DISABILITI,9190,CITYWIDE SPOT                 ,05/04/2012,3240351,2100070076,6937.63,COMMUNITY HEALTH SHEFFIELD              ,361895,Unclassified Non Trade,HOSPITALS                     
PURCHASING LEARNING DISABILITI,9190,CITYWIDE SPOT                 ,05/04/2012,3240352,2100070077,9440.16,COMMUNITY HEALTH SHEFFIELD              ,361895,Unclassified Non Trade,HOSPITALS                     
PURCHASING LEARNING DISABILITI,9190,CITYWIDE SPOT                 ,05/04/2012,3240353,2100070079,6645.28,COMMUNITY HEALTH SHEFFIELD              ,361895,Unclassified Non Trade,HOSPITALS                     
PURCHASING LEARNING DISABILITI,9190,CITYWIDE SPOT                 ,05/04/2012,3240354,2100070080,3214.40,COMMUNITY HEALTH SHEFFIELD              ,361895,Unclassified Non Trade,HOSPITALS                     
PURCHASING ELDERLY            ,9190,CITYWIDE SPOT                 ,05/04/2012,3240355,2100070085,1427.60,COMMUNITY HEALTH SHEFFIELD              ,361895,Unclassified Non Trade,HOSPITALS                     
PURCHASING ELDERLY            ,9190,CITYWIDE SPOT                 ,05/04/2012,3240356,2100070087,4456.16,COMMUNITY HEALTH SHEFFIELD              ,361895,Unclassified Non Trade,HOSPITALS                     
PURCHASING LEARNING DISABILITI,9190,CITYWIDE SPOT                 ,05/04/2012,3240357,2100070088,644.56,COMMUNITY HEALTH SHEFFIELD              ,361895,Unclassified Non Trade,HOSPITALS                     
PURCHASING LEARNING DISABILITI,9190,CITYWIDE SPOT                 ,05/04/2012,3240358,2100070089,716.24,COMMUNITY HEALTH SHEFFIELD              ,361895,Unclassified Non Trade,HOSPITALS                     
PURCHASING LEARNING DISABILITI,9190,CITYWIDE SPOT                 ,05/04/2012,3240359,2100070090,5801.60,COMMUNITY HEALTH SHEFFIELD              ,361895,Unclassified Non Trade,HOSPITALS                     
PURCHASING LEARNING DISABILITI,9190,CITYWIDE SPOT                 ,05/04/2012,3240360,2100070092,1568.00,COMMUNITY HEALTH SHEFFIELD              ,361895,Unclassified Non Trade,HOSPITALS                     
PURCHASING LEARNING DISABILITI,9190,CITYWIDE SPOT                 ,05/04/2012,3240362,4305,800.00,ENABLE (SHEFFIELD)                      ,329346,Unclassified Non Trade,CHARITIES & VOLUNTARY ORGANISA
VS- LUNCH CLUB GRANT          ,8180,GRANTS                        ,05/04/2012,3240905,MPA20120405131 53        ,1233.25,FRECHEVILLE PARISH DAY CENTRE           ,348612,Unclassified Non Trade,LOCAL GOVERNMENT              
VS- LUNCH CLUB GRANT          ,8180,GRANTS                        ,05/04/2012,3240911,MPA20120405131 59        ,608.25,WESLEY HALL LUNCH CLUB                  ,511866,Unclassified Non Trade,CHARITIES & VOLUNTARY ORGANISA
VS- LUNCH CLUB GRANT          ,8180,GRANTS                        ,05/04/2012,3240912,MPA20120405131 6         ,587.00,HANDY HANDS GROUP                       ,384446,Unclassified Non Trade,CHARITIES & VOLUNTARY ORGANISA
VS- LUNCH CLUB GRANT          ,8180,GRANTS                        ,05/04/2012,3240913,MPA20120405131 60        ,946.75,MOSBOROUGH LUNCH & SOCIAL CLUB          ,510333,Leisure Services,"CLUBS & ASSOCIATIONS - SOCIAL,"
VS- LUNCH CLUB GRANT          ,8180,GRANTS                        ,05/04/2012,3240914,MPA20120405131 61        ,525.25,VALLEY LUNCH CLUB                       ,514281,Unclassified Non Trade,CHARITIES & VOLUNTARY ORGANISA
VS- LUNCH CLUB GRANT          ,8180,GRANTS                        ,05/04/2012,3240915,MPA20120405131 62        ,769.50,THE THURSDAY CLUB                       ,451641,Unclassified Non Trade,CHARITIES & VOLUNTARY ORGANISA
VS- LUNCH CLUB GRANT          ,8180,GRANTS                        ,05/04/2012,3240918,MPA20120405131 64        ,555.50,MANOR LODGE LUNCHEON CLUB               ,545135,Unclassified Non Trade,CHARITIES & VOLUNTARY ORGANISA
VS- LUNCH CLUB GRANT          ,8180,GRANTS                        ,05/04/2012,3240920,MPA20120405131 66        ,682.75,MADINA ELDERLY DAY CARE CENTRE (MEN'S LU,549532,Unclassified Non Trade,CHARITIES & VOLUNTARY ORGANISA
VS- LUNCH CLUB GRANT          ,8180,GRANTS                        ,05/04/2012,3240922,MPA20120405131 7         ,734.50,OUGHTIBRIDGE & DISTRICT LUNCH CLUB      ,325339,Unclassified Non Trade,CHARITIES & VOLUNTARY ORGANISA
VS- LUNCH CLUB GRANT          ,8180,GRANTS                        ,05/04/2012,3240960,MPA20120405131 1         ,768.50,BANNER CROSS LUNCHEON & FRIENDSHIP CLUB ,326250,Unclassified Non Trade,PLACES OF WORSHIP             
VS- LUNCH CLUB GRANT          ,8180,GRANTS                        ,05/04/2012,3240961,MPA20120405131 10        ,737.75,WOODSEATS METHODIST LUNCH CLUB          ,325667,Unclassified Non Trade,CHARITIES & VOLUNTARY ORGANISA
VS- LUNCH CLUB GRANT          ,8180,GRANTS                        ,05/04/2012,3240962,MPA20120405131 11        ,872.00,GREYSTONES LUNCH CLUB                   ,295226,Unclassified Non Trade,CHARITIES & VOLUNTARY ORGANISA
VS- LUNCH CLUB GRANT          ,8180,GRANTS                        ,05/04/2012,3240964,MPA20120405131 13        ,576.50,ADLINGTON LUNCHEON CLUB                 ,295201,Unclassified Non Trade,CHARITIES & VOLUNTARY ORGANISA
VS- LUNCH CLUB GRANT          ,8180,GRANTS                        ,05/04/2012,3240965,MPA20120405131 14        ,1054.75,DARNALL LUNCH CLUB                      ,295216,Unclassified Non Trade,CHARITIES & VOLUNTARY ORGANISA
VS- LUNCH CLUB GRANT          ,8180,GRANTS                        ,05/04/2012,3240967,MPA20120405131 16        ,597.25,GLEADLESS VALLEY LUNCHEON CLUB          ,295224,Unclassified Non Trade,CHARITIES & VOLUNTARY ORGANISA
VS- LUNCH CLUB GRANT          ,8180,GRANTS                        ,05/04/2012,3240968,MPA20120405131 17        ,839.25,THE LIMES LUNCHEON CLUB                 ,295165,Unclassified Non Trade,CHARITIES & VOLUNTARY ORGANISA
VS- LUNCH CLUB GRANT          ,8180,GRANTS                        ,05/04/2012,3240969,MPA20120405131 18        ,652.75,DUKE STREET COMMUNITY CENTRE            ,375030,Unclassified Non Trade,COMMUNITY CENTRES             
VS- LUNCH CLUB GRANT          ,8180,GRANTS                        ,05/04/2012,3240970,MPA20120405131 19        ,1559.75,ST OSWALDS LUNCHEON CLUB                ,385325,Unclassified Non Trade,CHARITIES & VOLUNTARY ORGANISA
VS- LUNCH CLUB GRANT          ,8180,GRANTS                        ,05/04/2012,3240971,MPA20120405131 2         ,637.00,CHRIST CHURCH PITSMOOR LUNCH CLUB       ,321910,Unclassified Non Trade,CHARITIES & VOLUNTARY ORGANISA
VS- LUNCH CLUB GRANT          ,8180,GRANTS                        ,05/04/2012,3240973,MPA20120405131 21        ,733.00,BIRLEY SPA MONDAY CLUB                  ,295206,Unclassified Non Trade,CHARITIES & VOLUNTARY ORGANISA
VS- LUNCH CLUB GRANT          ,8180,GRANTS                        ,05/04/2012,3240974,MPA20120405131 22        ,868.75,BIRLEY SPA WEDNESDAY CLUB               ,295210,Unclassified Non Trade,CHARITIES & VOLUNTARY ORGANISA
VS- LUNCH CLUB GRANT          ,8180,GRANTS                        ,05/04/2012,3240976,MPA20120405131 24        ,684.00,ST SWITHUNS LUNCH CLUB                  ,295166,Unclassified Non Trade,CHARITIES & VOLUNTARY ORGANISA
VS- LUNCH CLUB GRANT          ,8180,GRANTS                        ,05/04/2012,3240978,MPA20120405131 26        ,684.50,ST JOHN'S ABBEYDALE LUNCH CLUB          ,385324,Unclassified Non Trade,CHARITIES & VOLUNTARY ORGANISA
VS- LUNCH CLUB GRANT          ,8180,GRANTS                        ,05/04/2012,3240979,MPA20120405131 27        ,509.50,GRAPEVINE CENTRE LUNCHEON CLUB          ,295190,Unclassified Non Trade,CHARITIES & VOLUNTARY ORGANISA
VS- LUNCH CLUB GRANT          ,8180,GRANTS                        ,05/04/2012,3240980,MPA20120405131 28        ,1575.25,PITSMOOR LUNCH CLUB                     ,295194,Unclassified Non Trade,CHARITIES & VOLUNTARY ORGANISA
VS- LUNCH CLUB GRANT          ,8180,GRANTS                        ,05/04/2012,3240982,MPA20120405131 3         ,1016.50,CROSSPOOL LUNCH CLUB                    ,321911,Unclassified Non Trade,CHARITIES & VOLUNTARY ORGANISA
VS- LUNCH CLUB GRANT          ,8180,GRANTS                        ,05/04/2012,3240983,MPA20120405131 30        ,528.50,WADSLEY CHURCH LUNCH CLUB               ,295167,Unclassified Non Trade,CHARITIES & VOLUNTARY ORGANISA
VS- LUNCH CLUB GRANT          ,8180,GRANTS                        ,05/04/2012,3240984,MPA20120405131 31        ,611.75,LOUND TOP LUNCH CLUB                    ,295188,Unclassified Non Trade,CHARITIES & VOLUNTARY ORGANISA
VS- LUNCH CLUB GRANT          ,8180,GRANTS                        ,05/04/2012,3240986,MPA20120405131 33        ,897.50,SHIREGREEN UNITED REFORMED CHURCH       ,295203,Unclassified Non Trade,PLACES OF WORSHIP             
VS- LUNCH CLUB GRANT          ,8180,GRANTS                        ,05/04/2012,3240987,MPA20120405131 34        ,517.75,ST TIMOTHY'S LUNCH CLUB                 ,295163,Unclassified Non Trade,CHARITIES & VOLUNTARY ORGANISA
VS- LUNCH CLUB GRANT          ,8180,GRANTS                        ,05/04/2012,3240988,MPA20120405131 35        ,783.00,MEERSBROOK PARK LUNCH CLUB              ,363027,Unclassified Non Trade,CHARITIES & VOLUNTARY ORGANISA
VS- LUNCH CLUB GRANT          ,8180,GRANTS                        ,05/04/2012,3240989,MPA20120405131 36        ,878.25,ST BARTHOLOMEWS LUNCH CLUB              ,384447,Unclassified Non Trade,CHARITIES & VOLUNTARY ORGANISA
VS- LUNCH CLUB GRANT          ,8180,GRANTS                        ,05/04/2012,3240990,MPA20120405131 38        ,782.25,ST LEONARD'S LUNCH CLUB                 ,296991,Unclassified Non Trade,CHARITIES & VOLUNTARY ORGANISA
VS- LUNCH CLUB GRANT          ,8180,GRANTS                        ,05/04/2012,3240991,MPA20120405131 39        ,1142.25,ST MARY'S LUNCH CLUB                    ,322012,Unclassified Non Trade,CHARITIES & VOLUNTARY ORGANISA
VS- LUNCH CLUB GRANT          ,8180,GRANTS                        ,05/04/2012,3240995,MPA20120405131 42        ,1330.25,ST MARY'S HANDSWORTH LUNCH CLUB         ,300780,Unclassified Non Trade,CHARITIES & VOLUNTARY ORGANISA
VS- LUNCH CLUB GRANT          ,8180,GRANTS                        ,05/04/2012,3240996,MPA20120405131 43        ,746.75,WILLIAM TEMPLE LUNCH CLUB               ,299806,Unclassified Non Trade,CHARITIES & VOLUNTARY ORGANISA
VS- LUNCH CLUB GRANT          ,8180,GRANTS                        ,05/04/2012,3240998,MPA20120405131 45        ,687.25,FOXHILL LUNCH CLUB                      ,349900,Unclassified Non Trade,CHARITIES & VOLUNTARY ORGANISA
VS- LUNCH CLUB GRANT          ,8180,GRANTS                        ,05/04/2012,3240999,MPA20120405131 46        ,694.50,LOWER SHIREGREEN LUNCH CLUB             ,299896,Unclassified Non Trade,CHARITIES & VOLUNTARY ORGANISA
VS- LUNCH CLUB GRANT          ,8180,GRANTS                        ,05/04/2012,3241002,MPA20120405131 49        ,1068.25,DIOCESE OF HALLAM                       ,351301,Unclassified Non Trade,RELIGIOUS ORGANISATIONS       
PURCHASING ELDERLY            ,4260,RESIDENTIAL COSTS RECOVERED   ,05/04/2012,3240211,J463947 010412           ,917.46,IDEAL CARE HOMES                        ,524235,Social Community Care,RESIDENTIAL CARE HOMES        
PURCHASING ELDERLY            ,4260,NURSING COSTS RECOVERED       ,05/04/2012,3240215,J468033 010412           ,1333.37,CRAEGMOOR  - RICHMOND HEIGHTS           ,361933,Social Community Care,NURSING HOMES                 
PURCHASING ELDERLY            ,9200,CONTINUING RESIDENTIAL CARE   ,05/04/2012,3240216,J468217 010412           ,4452.00,JASMIN COURT NURSING HOME               ,361764,Social Community Care,NURSING HOMES                 
PURCHASING ELDERLY            ,4260,RESIDENTIAL COSTS RECOVERED   ,05/04/2012,3240217,J468218 010412           ,1075.66,HOUSTEADS                               ,361860,Social Community Care,RESIDENTIAL CARE HOMES        
PURCHASING LEARNING DISABILITI,9200,CONTINUING RESIDENTIAL CARE   ,05/04/2012,3240218,J468406 290412           ,24592.02,142 WENSLEY STREET                      ,361819,Unclassified Non Trade,"HOUSING ASSOCIATIONS, SOCIETIE"
PURCHASING ELDERLY            ,9200,CONTINUING RESIDENTIAL CARE   ,05/04/2012,3240218,J468406 290412           ,13304.64,142 WENSLEY STREET                      ,361819,Unclassified Non Trade,"HOUSING ASSOCIATIONS, SOCIETIE"
PURCHASING ELDERLY            ,9210,CONTINUING NURSING CARE       ,05/04/2012,3240219,J468407 290412           ,9720.00,67 BIRCH AVENUE NURSING HOME            ,362108,Social Community Care,NURSING HOMES                 
PURCHASING ELDERLY            ,9200,CONTINUING RESIDENTIAL CARE   ,05/04/2012,3240220,J468409 290412           ,4374.44,COTTAM ROAD SCHEME                      ,362167,Social Community Care,RESIDENTIAL CARE HOMES        
PURCHASING LEARNING DISABILITI,9200,CONTINUING RESIDENTIAL CARE   ,05/04/2012,3240220,J468409 290412           ,15753.33,COTTAM ROAD SCHEME                      ,362167,Social Community Care,RESIDENTIAL CARE HOMES        
PURCHASING ELDERLY            ,9200,CONTINUING RESIDENTIAL CARE   ,05/04/2012,3240221,J468412 290412           ,35007.00,GRANGE CRESCENT                         ,361898,Social Community Care,RESIDENTIAL CARE HOMES        
PURCHASING ELDERLY            ,9200,CONTINUING RESIDENTIAL CARE   ,05/04/2012,3240222,J468418 290412           ,29457.00,DEERLANDS                               ,361836,Social Community Care,RESIDENTIAL CARE HOMES        
PDSI PURCHASING               ,9200,CONTINUING RESIDENTIAL CARE   ,05/04/2012,3240222,J468418 290412           ,1530.17,DEERLANDS                               ,361836,Social Community Care,RESIDENTIAL CARE HOMES        
PURCHASING ELDERLY            ,9200,CONTINUING RESIDENTIAL CARE   ,05/04/2012,3240223,J468419 290412           ,30414.00,HAWKHILLS                               ,361795,Social Community Care,RESIDENTIAL CARE HOMES        
PURCHASING ELDERLY            ,9200,CONTINUING RESIDENTIAL CARE   ,05/04/2012,3240224,J468421 290412           ,33318.29,KNOWLE HILL                             ,361798,Social Community Care,RESIDENTIAL CARE HOMES        
PURCHASING ELDERLY            ,9200,CONTINUING RESIDENTIAL CARE   ,05/04/2012,3240225,J468422 290412           ,16267.00,PADDOCK HILL                            ,361797,Social Community Care,RESIDENTIAL CARE HOMES        
PDSI PURCHASING               ,9200,CONTINUING RESIDENTIAL CARE   ,05/04/2012,3240225,J468422 290412           ,5967.40,PADDOCK HILL                            ,361797,Social Community Care,RESIDENTIAL CARE HOMES        
PURCHASING ELDERLY            ,9200,CONTINUING RESIDENTIAL CARE   ,05/04/2012,3240226,J468423 290412           ,33098.00,SPRINGWOOD                              ,361812,Social Community Care,RESIDENTIAL CARE HOMES        
PURCHASING LEARNING DISABILITI,9200,CONTINUING RESIDENTIAL CARE   ,05/04/2012,3240227,J468442 290412           ,7179.30,CEDAR LODGE RH                          ,362171,Social Community Care,RESIDENTIAL CARE HOMES        
PURCHASING LEARNING DISABILITI,9200,CONTINUING RESIDENTIAL CARE   ,05/04/2012,3240228,J468446 290412           ,1939.90,BROOMHOUSE                              ,362002,Social Community Care,NURSING HOMES                 
PURCHASING ELDERLY            ,9200,CONTINUING RESIDENTIAL CARE   ,05/04/2012,3240229,J468447 290412           ,8523.00,TWELVETREES RESIDENTIAL HOME            ,361849,Social Community Care,RESIDENTIAL CARE HOMES        
PURCHASING ELDERLY            ,9200,CONTINUING RESIDENTIAL CARE   ,05/04/2012,3240230,J468453 290412           ,27106.00,BELMONT HOUSE NURSING HOME              ,361754,Social Community Care,RESIDENTIAL CARE HOMES        
PURCHASING ELDERLY            ,9210,CONTINUING NURSING CARE       ,05/04/2012,3240230,J468453 290412           ,6576.00,BELMONT HOUSE NURSING HOME              ,361754,Social Community Care,RESIDENTIAL CARE HOMES        
PURCHASING ELDERLY            ,9200,CONTINUING RESIDENTIAL CARE   ,05/04/2012,3240231,J468463 290412           ,16094.00,CROFT ACRES                             ,361758,Social Community Care,RESIDENTIAL CARE HOMES        
PURCHASING ELDERLY            ,9210,CONTINUING NURSING CARE       ,05/04/2012,3240232,J468465 290412           ,1572.00,CLIFF HOUSE NURSING HOME                ,361837,Social Community Care,NURSING HOMES                 
PURCHASING ELDERLY            ,9200,CONTINUING RESIDENTIAL CARE   ,05/04/2012,3240233,J468467 290412           ,12512.00,HADDON COURT NURSING HOME               ,361916,Social Community Care,NURSING HOMES                 
PURCHASING ELDERLY            ,9210,CONTINUING NURSING CARE       ,05/04/2012,3240233,J468467 290412           ,17316.00,HADDON COURT NURSING HOME               ,361916,Social Community Care,NURSING HOMES                 
PURCHASING ELDERLY            ,9200,CONTINUING RESIDENTIAL CARE   ,05/04/2012,3240234,J468486 290412           ,15237.00,WHITE ROSE COURT RES HOME               ,361964,Social Community Care,RESIDENTIAL CARE HOMES        
PURCHASING LEARNING DISABILITI,9200,CONTINUING RESIDENTIAL CARE   ,05/04/2012,3240235,J468492 290412           ,9321.16,BETHANY HOUSE                           ,361787,Social Community Care,RESIDENTIAL CARE HOMES        
PURCHASING ELDERLY            ,9210,CONTINUING NURSING CARE       ,05/04/2012,3240236,J468494 290412           ,4096.00,BROOMCROFT HOUSE                        ,361960,Social Community Care,NURSING HOMES                 
PURCHASING ELDERLY            ,9200,CONTINUING RESIDENTIAL CARE   ,05/04/2012,3240237,J468509 290412           ,1657.12,CAMBRON HOUSE CARE HOME                 ,361832,Social Community Care,RESIDENTIAL CARE HOMES        
PURCHASING ELDERLY            ,9200,CONTINUING RESIDENTIAL CARE   ,05/04/2012,3240238,J468511 290412           ,3029.00,CRAEGMOOR  - RICHMOND HEIGHTS           ,361933,Social Community Care,NURSING HOMES                 
PURCHASING ELDERLY            ,9210,CONTINUING NURSING CARE       ,05/04/2012,3240238,J468511 290412           ,29596.00,CRAEGMOOR  - RICHMOND HEIGHTS           ,361933,Social Community Care,NURSING HOMES                 
PURCHASING ELDERLY            ,9200,CONTINUING RESIDENTIAL CARE   ,05/04/2012,3240239,J468515 290412           ,2929.00,LITTLEDALE NURSING HOME                 ,361783,Social Community Care,NURSING HOMES                 
PURCHASING ELDERLY            ,9210,CONTINUING NURSING CARE       ,05/04/2012,3240239,J468515 290412           ,12223.28,LITTLEDALE NURSING HOME                 ,361783,Social Community Care,NURSING HOMES                 
PURCHASING ELDERLY            ,9200,CONTINUING RESIDENTIAL CARE   ,05/04/2012,3240240,J468523 290412           ,1700.00,BROADACRES CARE HOME                    ,522768,Social Community Care,RESIDENTIAL CARE HOMES        
PURCHASING LEARNING DISABILITI,9200,CONTINUING RESIDENTIAL CARE   ,05/04/2012,3240241,J468528 290412           ,11008.69,209-211 BURNCROSS ROAD                  ,361965,Social Community Care,RESIDENTIAL CARE HOMES        
PURCHASING ELDERLY            ,9200,CONTINUING RESIDENTIAL CARE   ,05/04/2012,3240242,J468551 290412           ,40106.32,ROSEBERRY CARE CENTRES GB LTD           ,362099,Social Community Care,RESIDENTIAL CARE HOMES        
PDSI PURCHASING               ,9210,CONTINUING NURSING CARE       ,05/04/2012,3240242,J468551 290412           ,18517.88,ROSEBERRY CARE CENTRES GB LTD           ,362099,Social Community Care,RESIDENTIAL CARE HOMES        
PURCHASING                    ,9210,CONTINUING NURSING CARE       ,05/04/2012,3240242,J468551 290412           ,3223.48,ROSEBERRY CARE CENTRES GB LTD           ,362099,Social Community Care,RESIDENTIAL CARE HOMES        
PURCHASING ELDERLY            ,9210,CONTINUING NURSING CARE       ,05/04/2012,3240242,J468551 290412           ,36531.28,ROSEBERRY CARE CENTRES GB LTD           ,362099,Social Community Care,RESIDENTIAL CARE HOMES        
PURCHASING ELDERLY            ,9200,CONTINUING RESIDENTIAL CARE   ,05/04/2012,3240243,J468552 290412           ,7517.00,ROSEBERRY CARE CENTRES GB LTD           ,361904,Social Community Care,NURSING HOMES                 
PURCHASING ELDERLY            ,9210,CONTINUING NURSING CARE       ,05/04/2012,3240243,J468552 290412           ,8100.00,ROSEBERRY CARE CENTRES GB LTD           ,361904,Social Community Care,NURSING HOMES                 
PURCHASING ELDERLY            ,9200,CONTINUING RESIDENTIAL CARE   ,05/04/2012,3240244,J468554 290412           ,2033.00,SLOE HILL RESIDENTIAL HOME              ,362106,Social Community Care,RESIDENTIAL CARE HOMES        
PURCHASING ELDERLY            ,9200,CONTINUING RESIDENTIAL CARE   ,05/04/2012,3240245,J468555 290412           ,2961.00,BYRON LODGE RESIDENTIAL HOME            ,362123,Social Community Care,RESIDENTIAL CARE HOMES        
PURCHASING ELDERLY            ,9210,CONTINUING NURSING CARE       ,05/04/2012,3240245,J468555 290412           ,1548.00,BYRON LODGE RESIDENTIAL HOME            ,362123,Social Community Care,RESIDENTIAL CARE HOMES        
PURCHASING ELDERLY            ,9210,CONTINUING NURSING CARE       ,05/04/2012,3240246,J468556 290412           ,1608.00,CLIFF HOUSE RESIDENTIAL HOME            ,362088,Social Community Care,NURSING HOMES                 
PURCHASING ELDERLY            ,9200,CONTINUING RESIDENTIAL CARE   ,05/04/2012,3240247,J468573 290412           ,7025.00,ROSEBERRY CARE CENTRES GB LTD           ,368334,Social Community Care,NURSING HOMES                 
PURCHASING ELDERLY            ,9210,CONTINUING NURSING CARE       ,05/04/2012,3240247,J468573 290412           ,17268.00,ROSEBERRY CARE CENTRES GB LTD           ,368334,Social Community Care,NURSING HOMES                 
PDSI PURCHASING               ,9200,CONTINUING RESIDENTIAL CARE   ,05/04/2012,3240248,J468575 290412           ,1521.83,BROOKVIEW NURSING HOME                  ,368323,Social Community Care,NURSING HOMES                 
PURCHASING ELDERLY            ,9200,CONTINUING RESIDENTIAL CARE   ,05/04/2012,3240248,J468575 290412           ,3164.00,BROOKVIEW NURSING HOME                  ,368323,Social Community Care,NURSING HOMES                 
PURCHASING ELDERLY            ,9210,CONTINUING NURSING CARE       ,05/04/2012,3240248,J468575 290412           ,4644.00,BROOKVIEW NURSING HOME                  ,368323,Social Community Care,NURSING HOMES                 
PURCHASING LEARNING DISABILITI,9200,CONTINUING RESIDENTIAL CARE   ,05/04/2012,3240249,J468610 290412           ,4832.62,CHESTNUT GRANGE                         ,418583,Social Community Care,RESIDENTIAL CARE HOMES        
PURCHASING                    ,9200,CONTINUING RESIDENTIAL CARE   ,05/04/2012,3240250,J468612 290412           ,3881.01,CHURCH VIEW RESIDENTIAL N/H             ,424064,Unclassified Non Trade,PLACES OF WORSHIP             
PURCHASING ELDERLY            ,9200,CONTINUING RESIDENTIAL CARE   ,05/04/2012,3240251,J468617 290412           ,1564.00,BRAILSFORD HOUSE RESIDENTIAL HOME       ,430727,Social Community Care,RESIDENTIAL CARE HOMES        
PURCHASING LEARNING DISABILITI,9200,CONTINUING RESIDENTIAL CARE   ,05/04/2012,3240252,J468630 290412           ,6881.30,BROOK LODGE                             ,475031,Social Community Care,RESIDENTIAL CARE HOMES        
PDSI PURCHASING               ,9200,CONTINUING RESIDENTIAL CARE   ,05/04/2012,3240253,J468636 290412           ,3606.10,CLARO ROAD                              ,463335,Social Community Care,DISABILITY & SPECIAL NEEDS - S
PURCHASING ELDERLY            ,9200,CONTINUING RESIDENTIAL CARE   ,05/04/2012,3240254,J468646 290412           ,1592.00,BELGRAVE COURT RESIDENTIAL CARE HOME    ,487981,Social Community Care,RESIDENTIAL CARE HOMES        
PURCHASING ELDERLY            ,9210,CONTINUING NURSING CARE       ,05/04/2012,3240255,J468647 290412           ,1688.00,THE CRAVEN NURSING HOME                 ,487982,Social Community Care,NURSING HOMES                 
PURCHASING LEARNING DISABILITI,9200,CONTINUING RESIDENTIAL CARE   ,05/04/2012,3240256,J468656 290412           ,44769.04,CHOICE LIFESTYLES LTD                   ,501697,Social Community Care,DISABILITY & SPECIAL NEEDS - S
PURCHASING ELDERLY            ,9200,CONTINUING RESIDENTIAL CARE   ,05/04/2012,3240257,J468662 290412           ,1729.28,NEWTOWN HOUSE                           ,516808,Social Community Care,RESIDENTIAL CARE HOMES        
PURCHASING ELDERLY            ,9200,CONTINUING RESIDENTIAL CARE   ,05/04/2012,3240258,J468667 290412           ,57552.00,IDEAL CARE HOMES                        ,524235,Social Community Care,RESIDENTIAL CARE HOMES        
PURCHASING ELDERLY            ,9200,CONTINUING RESIDENTIAL CARE   ,05/04/2012,3240259,J468671 290412           ,2096.00,SOUTHWOOD LODGE                         ,532117,Social Community Care,RESIDENTIAL CARE HOMES        
PURCHASING ELDERLY            ,9200,CONTINUING RESIDENTIAL CARE   ,05/04/2012,3240260,J468676 290412           ,1640.00,CROFT CAREHOMES LIMITED                 ,544777,Social Community Care,RESIDENTIAL CARE HOMES        
PURCHASING LEARNING DISABILITI,9200,CONTINUING RESIDENTIAL CARE   ,05/04/2012,3240261,J468679 290412           ,8225.32,ICON CARE LTD T/A CHAMWOOD              ,550309,Social Community Care,RESIDENTIAL CARE HOMES        
PURCHASING ELDERLY            ,9200,CONTINUING RESIDENTIAL CARE   ,05/04/2012,3240262,J468680 290412           ,13864.00,WOOD HILL GRANGE CARE HOME              ,552397,Social Community Care,RESIDENTIAL CARE HOMES        
PURCHASING ELDERLY            ,9210,CONTINUING NURSING CARE       ,05/04/2012,3240262,J468680 290412           ,4852.00,WOOD HILL GRANGE CARE HOME              ,552397,Social Community Care,RESIDENTIAL CARE HOMES        
PURCHASING LEARNING DISABILITI,9240,SUPPORTED LIVING CARE         ,05/04/2012,3240263,J461328 010412           ,5781.28,ABBEYFIELD / SCOTT ROAD                 ,362162,Unclassified Non Trade,HOSPITALS                     
PURCHASING LEARNING DISABILITI,9240,SUPPORTED LIVING CARE         ,05/04/2012,3240264,J461510 010412           ,2556.84,SHEFFIELD HEALTH & SOCIAL CARE NHS      ,353994,Unclassified Non Trade,HOSPITALS                     
PURCHASING ELDERLY            ,9240,SUPPORTED LIVING CARE         ,05/04/2012,3240265,J461511 010412           ,1179.52,DARESBURY ROAD                          ,362153,Unclassified Non Trade,HOSPITALS                     
PURCHASING LEARNING DISABILITI,9240,SUPPORTED LIVING CARE         ,05/04/2012,3240265,J461511 010412           ,2720.68,DARESBURY ROAD                          ,362153,Unclassified Non Trade,HOSPITALS                     
PURCHASING LEARNING DISABILITI,9240,SUPPORTED LIVING CARE         ,05/04/2012,3240267,J461545 010412           ,2861.80,146 WENSLEY STREET                      ,461550,Unclassified Non Trade,HOSPITALS                     
PURCHASING ELDERLY            ,9240,SUPPORTED LIVING CARE         ,05/04/2012,3240268,J461573 010412           ,2021.12,31 ANGLETON AVENUE                      ,492722,Social Community Care,SHELTERED HOUSING             
PURCHASING LEARNING DISABILITI,9240,SUPPORTED LIVING CARE         ,05/04/2012,3240269,J461576 010412           ,3378.32,51 VIKINGLEA DRIVE                      ,492715,Social Community Care,SHELTERED HOUSING             
PURCHASING ELDERLY            ,9240,SUPPORTED LIVING CARE         ,05/04/2012,3240269,J461576 010412           ,2498.32,51 VIKINGLEA DRIVE                      ,492715,Social Community Care,SHELTERED HOUSING             
PURCHASING ELDERLY            ,9200,CONTINUING RESIDENTIAL CARE   ,05/04/2012,3240270,J461595 010412           ,2048.00,SOUTHWOOD LODGE                         ,532117,Social Community Care,RESIDENTIAL CARE HOMES        
PURCHASING ELDERLY            ,9200,SHORT TERM RESIDENTIAL CARE   ,05/04/2012,3240271,J463847 040312           ,2243.29,ROSEBERRY CARE CENTRES GB LTD           ,361904,Social Community Care,NURSING HOMES                 
PURCHASING ELDERLY            ,9210,SHORT TERM NURSING CARE       ,05/04/2012,3240272,J467205 040312           ,884.57,HADDON COURT NURSING HOME               ,361916,Social Community Care,NURSING HOMES                 
PURCHASING ELDERLY            ,9200,SHORT TERM RESIDENTIAL CARE   ,05/04/2012,3240273,J467206 040312           ,1094.29,THE LIME TREES                          ,362053,Social Community Care,RESIDENTIAL CARE HOMES        
DRUG & ALCOHOL MH -PURCHASING ,9200,SHORT TERM RESIDENTIAL CARE   ,05/04/2012,3240274,J467714 040312           ,1044.46,PHOENIX HOUSE (SOUTH SHIELDS)           ,361865,Medical ,DRUG MISUSE - ADVICE & COUNSEL
DRUG & ALCOHOL MH -PURCHASING ,9200,SHORT TERM RESIDENTIAL CARE   ,05/04/2012,3240275,J467715 040312           ,2249.60,PHOENIX HOUSE (WIRRAL)                  ,361920,Medical ,DRUG MISUSE - ADVICE & COUNSEL
PURCHASING ELDERLY            ,9200,SHORT TERM RESIDENTIAL CARE   ,05/04/2012,3240276,J468004 040312           ,531.14,KNOWLE HILL                             ,361798,Social Community Care,RESIDENTIAL CARE HOMES        
PDSI PURCHASING               ,9210,SHORT TERM NURSING CARE       ,05/04/2012,3240277,J468205 040312           ,7066.80,LEONARD CHESHIRE SERVICES               ,329306,Unclassified Non Trade,CHARITIES & VOLUNTARY ORGANISA
PURCHASING ELDERLY            ,9200,SHORT TERM RESIDENTIAL CARE   ,05/04/2012,3240278,J468284 010412           ,750.00,GRANGE CRESCENT                         ,361898,Social Community Care,RESIDENTIAL CARE HOMES        
PURCHASING ELDERLY            ,9200,SHORT TERM RESIDENTIAL CARE   ,05/04/2012,3240279,J468285 010412           ,3207.00,KNOWLE HILL                             ,361798,Social Community Care,RESIDENTIAL CARE HOMES        
PURCHASING ELDERLY            ,9210,SHORT TERM NURSING CARE       ,05/04/2012,3240280,J468290 010412           ,663.43,HADDON COURT NURSING HOME               ,361916,Social Community Care,NURSING HOMES                 
PURCHASING ELDERLY            ,9200,SHORT TERM RESIDENTIAL CARE   ,05/04/2012,3240281,J468292 010412           ,848.00,WHITE ROSE COURT RES HOME               ,361964,Social Community Care,RESIDENTIAL CARE HOMES        
DRUG & ALCOHOL MH -PURCHASING ,9200,SHORT TERM RESIDENTIAL CARE   ,05/04/2012,3240282,J468293 010412           ,2249.60,PHOENIX HOUSE (SHEFFIELD)               ,361773,Medical ,DRUG MISUSE - ADVICE & COUNSEL
DRUG & ALCOHOL MH -PURCHASING ,9200,SHORT TERM RESIDENTIAL CARE   ,05/04/2012,3240283,J468294 010412           ,2249.60,PHOENIX HOUSE (SOUTH SHIELDS)           ,361865,Medical ,DRUG MISUSE - ADVICE & COUNSEL
DRUG & ALCOHOL MH -PURCHASING ,9200,SHORT TERM RESIDENTIAL CARE   ,05/04/2012,3240284,J468295 010412           ,2249.60,PHOENIX HOUSE (WIRRAL)                  ,361920,Medical ,DRUG MISUSE - ADVICE & COUNSEL
IN HOUSE FOSTER PLACEMENT     ,9270,IN-HOUSE FOSTERING            ,10/04/2012,3241264,100069 20120405 35142    ,1002.00,REDACTED PERSONAL DATA,333449,Social Community Care,ADOPTION & FOSTERING          
IN HOUSE FOSTER PLACEMENT     ,9270,IN-HOUSE FOSTERING            ,10/04/2012,3241269,149394 20120405 35142    ,1400.00,REDACTED PERSONAL DATA,453957,Social Community Care,ADOPTION & FOSTERING          
IN HOUSE FOSTER PLACEMENT     ,9270,IN-HOUSE FOSTERING            ,10/04/2012,3241270,149405 20120405 35142    ,1333.00,REDACTED PERSONAL DATA,408920,Social Community Care,ADOPTION & FOSTERING          
IN HOUSE FOSTER PLACEMENT     ,9270,IN-HOUSE FOSTERING            ,10/04/2012,3241272,15052 20120405 35142     ,1014.14,REDACTED PERSONAL DATA,564456,Unclassified Non Trade,OUT OF SCOPE FOR SIC MONITORIN
IN HOUSE FOSTER PLACEMENT     ,9270,IN-HOUSE FOSTERING            ,10/04/2012,3241275,151365 20120405 35142    ,1002.00,REDACTED PERSONAL DATA,442473,Social Community Care,ADOPTION & FOSTERING          
IN HOUSE FOSTER PLACEMENT     ,9270,IN-HOUSE FOSTERING            ,10/04/2012,3241280,156226 20120405 35142    ,833.00,REDACTED PERSONAL DATA,549255,Social Community Care,ADOPTION & FOSTERING          
IN HOUSE FOSTER PLACEMENT     ,9270,IN-HOUSE FOSTERING            ,10/04/2012,3241287,103638 20120405 35142    ,524.85,REDACTED PERSONAL DATA,333706,Social Community Care,ADOPTION & FOSTERING          
IN HOUSE FOSTER PLACEMENT     ,9270,IN-HOUSE FOSTERING            ,10/04/2012,3241293,16180 20120405 35142     ,1002.00,REDACTED PERSONAL DATA,333718,Social Community Care,ADOPTION & FOSTERING          
IN HOUSE FOSTER PLACEMENT     ,9270,IN-HOUSE FOSTERING            ,10/04/2012,3241294,161854 20120405 35142    ,1791.00,REDACTED PERSONAL DATA,502396,Social Community Care,ADOPTION & FOSTERING          
IN HOUSE FOSTER PLACEMENT     ,9270,IN-HOUSE FOSTERING            ,10/04/2012,3241300,162467 20120405 35142    ,828.86,REDACTED PERSONAL DATA,563226,Social Community Care,ADOPTION & FOSTERING          
ADOPTION ALLOWANCES           ,9270,ADOPTION ALLOWANCES           ,10/04/2012,3241305,162849 20120405 35142    ,623.43,REDACTED PERSONAL DATA,383481,Social Community Care,ADOPTION & FOSTERING          
IN HOUSE FOSTER PLACEMENT     ,9270,IN-HOUSE FOSTERING            ,10/04/2012,3241316,167097 20120405 35142    ,1002.00,REDACTED PERSONAL DATA,424791,Social Community Care,ADOPTION & FOSTERING          
IN HOUSE FOSTER PLACEMENT     ,9270,IN-HOUSE FOSTERING            ,10/04/2012,3241317,168513 20120405 35142    ,970.00,REDACTED PERSONAL DATA,546743,Social Community Care,ADOPTION & FOSTERING          
IN HOUSE FOSTER PLACEMENT     ,9270,IN-HOUSE FOSTERING            ,10/04/2012,3241319,16889 20120405 35142     ,631.00,REDACTED PERSONAL DATA,368064,Social Community Care,ADOPTION & FOSTERING          
ADOPTION ALLOWANCES           ,9270,ADOPTION ALLOWANCES           ,10/04/2012,3241338,179524 20120405 35142    ,622.65,REDACTED PERSONAL DATA,338804,Social Community Care,ADOPTION & FOSTERING          
IN HOUSE FOSTER PLACEMENT     ,9270,IN-HOUSE FOSTERING            ,10/04/2012,3241340,179693 20120405 35142    ,1312.00,REDACTED PERSONAL DATA,521983,Social Community Care,ADOPTION & FOSTERING          
IN HOUSE FOSTER PLACEMENT     ,9270,IN-HOUSE FOSTERING            ,10/04/2012,3241345,18032 20120405 35142     ,561.59,REDACTED PERSONAL DATA,332909,Social Community Care,ADOPTION & FOSTERING          
IN HOUSE FOSTER PLACEMENT     ,9270,IN-HOUSE FOSTERING            ,10/04/2012,3241354,18403 20120405 35142     ,601.00,REDACTED PERSONAL DATA,333624,Social Community Care,ADOPTION & FOSTERING          
RESIDENCE ORDERS              ,9270,RESIDENCE ORDERS              ,10/04/2012,3241356,184267 20120405 35142    ,513.96,REDACTED PERSONAL DATA,455207,Social Community Care,ADOPTION & FOSTERING          
ADOPTION ALLOWANCES           ,9270,ADOPTION ALLOWANCES           ,10/04/2012,3241358,184782 20120405 35142    ,622.65,REDACTED PERSONAL DATA,373269,Social Community Care,ADOPTION & FOSTERING          
IN HOUSE FOSTER PLACEMENT     ,9270,IN-HOUSE FOSTERING            ,10/04/2012,3241368,187984 20120405 35142    ,743.00,REDACTED PERSONAL DATA,467299,Social Community Care,ADOPTION & FOSTERING          
IN HOUSE FOSTER PLACEMENT     ,9270,IN-HOUSE FOSTERING            ,10/04/2012,3241370,188969 20120405 35142    ,625.00,REDACTED PERSONAL DATA,467300,Social Community Care,ADOPTION & FOSTERING          
IN HOUSE FOSTER PLACEMENT     ,9270,IN-HOUSE FOSTERING            ,10/04/2012,3241372,189523 20120405 35142    ,601.00,REDACTED PERSONAL DATA,464101,Social Community Care,ADOPTION & FOSTERING          
IN HOUSE FOSTER PLACEMENT     ,9270,IN-HOUSE FOSTERING            ,10/04/2012,3241374,190942 20120405 35142    ,3393.42,REDACTED PERSONAL DATA,566337,Social Community Care,ADOPTION & FOSTERING          
IN HOUSE FOSTER PLACEMENT     ,9270,IN-HOUSE FOSTERING            ,10/04/2012,3241375,100191 20120405 35142    ,1002.00,REDACTED PERSONAL DATA,332848,Social Community Care,ADOPTION & FOSTERING          
SPECIAL GUARDIANSHIP          ,9270,RESIDENCE ORDERS              ,10/04/2012,3241378,191065 20120405 35142    ,592.52,REDACTED PERSONAL DATA,444008,Social Community Care,ADOPTION & FOSTERING          
SPECIAL GUARDIANSHIP          ,9270,RESIDENCE ORDERS              ,10/04/2012,3241381,191801 20120405 35142    ,1439.20,REDACTED PERSONAL DATA,492572,Social Community Care,ADOPTION & FOSTERING          
IN HOUSE FOSTER PLACEMENT     ,9270,IN-HOUSE FOSTERING            ,10/04/2012,3241382,191832 20120405 35142    ,1002.00,REDACTED PERSONAL DATA,473384,Social Community Care,ADOPTION & FOSTERING          
IN HOUSE FOSTER PLACEMENT     ,9270,IN-HOUSE FOSTERING            ,10/04/2012,3241384,19266 20120405 35142     ,780.00,REDACTED PERSONAL DATA,332852,Social Community Care,ADOPTION & FOSTERING          
IN HOUSE FOSTER PLACEMENT     ,9270,IN-HOUSE FOSTERING            ,10/04/2012,3241385,193350 20120405 35142    ,1551.00,REDACTED PERSONAL DATA,471003,Social Community Care,ADOPTION & FOSTERING          
IN HOUSE FOSTER PLACEMENT     ,9270,IN-HOUSE FOSTERING            ,10/04/2012,3241393,194407 20120405 35142    ,580.00,REDACTED PERSONAL DATA,502500,Social Community Care,ADOPTION & FOSTERING          
ADOPTION ALLOWANCES           ,9270,ADOPTION ALLOWANCES           ,10/04/2012,3241400,195074 20120405 35142    ,670.14,REDACTED PERSONAL DATA,333341,Social Community Care,ADOPTION & FOSTERING          
IN HOUSE FOSTER PLACEMENT     ,9270,IN-HOUSE FOSTERING            ,10/04/2012,3241403,195731 20120405 35142    ,601.00,REDACTED PERSONAL DATA,509843,Social Community Care,ADOPTION & FOSTERING          
SPECIAL GUARDIANSHIP          ,9270,RESIDENCE ORDERS              ,10/04/2012,3241404,19623 20120405 35142     ,577.96,REDACTED PERSONAL DATA,333147,Social Community Care,ADOPTION & FOSTERING          
IN HOUSE FOSTER PLACEMENT     ,9270,IN-HOUSE FOSTERING            ,10/04/2012,3241404,19623 20120405 35142     ,2476.71,REDACTED PERSONAL DATA,333147,Social Community Care,ADOPTION & FOSTERING          
IN HOUSE FOSTER PLACEMENT     ,9270,IN-HOUSE FOSTERING            ,10/04/2012,3241409,110839 20120405 35142    ,796.00,REDACTED PERSONAL DATA,537589,Social Community Care,ADOPTION & FOSTERING          
IN HOUSE FOSTER PLACEMENT     ,9270,IN-HOUSE FOSTERING            ,10/04/2012,3241410,197337 20120405 35142    ,663.00,REDACTED PERSONAL DATA,483157,Social Community Care,ADOPTION & FOSTERING          
IN HOUSE FOSTER PLACEMENT     ,9270,IN-HOUSE FOSTERING            ,10/04/2012,3241423,204113 20120405 35142    ,601.00,REDACTED PERSONAL DATA,479993,Social Community Care,ADOPTION & FOSTERING          
IN HOUSE FOSTER PLACEMENT     ,9270,IN-HOUSE FOSTERING            ,10/04/2012,3241426,206213 20120405 35142    ,601.00,REDACTED PERSONAL DATA,502739,Social Community Care,ADOPTION & FOSTERING          
SPECIAL GUARDIANSHIP          ,9270,RESIDENCE ORDERS              ,10/04/2012,3241429,207629 20120405 35142    ,1607.60,REDACTED PERSONAL DATA,487226,Social Community Care,ADOPTION & FOSTERING          
CARELEAVER IN HOUSE FOSTERING ,9270,IN-HOUSE FOSTERING            ,10/04/2012,3241431,111778 20120405 35142    ,780.50,REDACTED PERSONAL DATA,545879,Social Community Care,ADOPTION & FOSTERING          
IN HOUSE FOSTER PLACEMENT     ,9270,IN-HOUSE FOSTERING            ,10/04/2012,3241433,20809 20120405 35142     ,625.00,REDACTED PERSONAL DATA,333830,Social Community Care,ADOPTION & FOSTERING          
IN HOUSE FOSTER PLACEMENT     ,9270,IN-HOUSE FOSTERING            ,10/04/2012,3241435,208267 20120405 35142    ,730.57,REDACTED PERSONAL DATA,485929,Social Community Care,ADOPTION & FOSTERING          
IN HOUSE FOSTER PLACEMENT     ,9270,IN-HOUSE FOSTERING            ,10/04/2012,3241437,208906 20120405 35142    ,601.00,REDACTED PERSONAL DATA,502527,Social Community Care,ADOPTION & FOSTERING          
IN HOUSE FOSTER PLACEMENT     ,9270,IN-HOUSE FOSTERING            ,10/04/2012,3241439,21036 20120405 35142     ,1526.00,REDACTED PERSONAL DATA,380258,Social Community Care,ADOPTION & FOSTERING          
IN HOUSE FOSTER PLACEMENT     ,9270,IN-HOUSE FOSTERING            ,10/04/2012,3241440,210431 20120405 35142    ,1606.00,REDACTED PERSONAL DATA,502737,Social Community Care,ADOPTION & FOSTERING          
IN HOUSE FOSTER PLACEMENT     ,9270,IN-HOUSE FOSTERING            ,10/04/2012,3241441,210508 20120405 35142    ,1002.00,REDACTED PERSONAL DATA,493410,Social Community Care,ADOPTION & FOSTERING          
IN HOUSE FOSTER PLACEMENT     ,9270,IN-HOUSE FOSTERING            ,10/04/2012,3241442,111911 20120405 35142    ,1867.00,REDACTED PERSONAL DATA,338765,Social Community Care,ADOPTION & FOSTERING          
SPECIAL GUARDIANSHIP          ,9270,RESIDENCE ORDERS              ,10/04/2012,3241449,213411 20120405 35142    ,819.96,REDACTED PERSONAL DATA,502164,Social Community Care,ADOPTION & FOSTERING          
IN HOUSE FOSTER PLACEMENT     ,9270,IN-HOUSE FOSTERING            ,10/04/2012,3241452,21439 20120405 35142     ,721.00,REDACTED PERSONAL DATA,338747,Social Community Care,ADOPTION & FOSTERING          
RESIDENCE ORDERS              ,9270,RESIDENCE ORDERS              ,10/04/2012,3241453,11214 20120405 35142     ,568.78,REDACTED PERSONAL DATA,328124,Social Community Care,ADOPTION & FOSTERING          
IN HOUSE FOSTER PLACEMENT     ,9270,IN-HOUSE FOSTERING            ,10/04/2012,3241475,113481 20120405 35142    ,783.00,REDACTED PERSONAL DATA,333743,Social Community Care,ADOPTION & FOSTERING          
IN HOUSE FOSTER PLACEMENT     ,9270,IN-HOUSE FOSTERING            ,10/04/2012,3241486,10113 20120405 35142     ,1298.00,REDACTED PERSONAL DATA,371949,Social Community Care,ADOPTION & FOSTERING          
IN HOUSE FOSTER PLACEMENT     ,9270,IN-HOUSE FOSTERING            ,10/04/2012,3241510,11584 20120405 35142     ,601.00,REDACTED PERSONAL DATA,338799,Social Community Care,ADOPTION & FOSTERING          
RESIDENCE ORDERS              ,9270,RESIDENCE ORDERS              ,10/04/2012,3241516,218299 20120405 35142    ,680.94,REDACTED PERSONAL DATA,425879,Social Community Care,ADOPTION & FOSTERING          
IN HOUSE FOSTER PLACEMENT     ,9270,IN-HOUSE FOSTERING            ,10/04/2012,3241539,224702 20120405 35142    ,601.00,REDACTED PERSONAL DATA,545493,Unclassified Non Trade,OUT OF SCOPE FOR SIC MONITORIN
IN HOUSE FOSTER PLACEMENT     ,9270,IN-HOUSE FOSTERING            ,10/04/2012,3241540,224962 20120405 35142    ,1002.00,REDACTED PERSONAL DATA,505290,Social Community Care,ADOPTION & FOSTERING          
IN HOUSE FOSTER PLACEMENT     ,9270,IN-HOUSE FOSTERING            ,10/04/2012,3241549,23 20120405 35142        ,1002.00,REDACTED PERSONAL DATA,333139,Social Community Care,ADOPTION & FOSTERING          
IN HOUSE FOSTER PLACEMENT     ,9270,IN-HOUSE FOSTERING            ,10/04/2012,3241553,232766 20120405 35142    ,601.00,REDACTED PERSONAL DATA,518348,Social Community Care,ADOPTION & FOSTERING          
IN HOUSE FOSTER PLACEMENT     ,9270,IN-HOUSE FOSTERING            ,10/04/2012,3241557,234568 20120405 35142    ,1436.15,REDACTED PERSONAL DATA,530876,Social Community Care,ADOPTION & FOSTERING          
IN HOUSE FOSTER PLACEMENT     ,9270,IN-HOUSE FOSTERING            ,10/04/2012,3241562,23882 20120405 35142     ,601.00,REDACTED PERSONAL DATA,333142,Social Community Care,ADOPTION & FOSTERING          
IN HOUSE FOSTER PLACEMENT     ,9270,IN-HOUSE FOSTERING            ,10/04/2012,3241568,24220 20120405 35142     ,1002.00,REDACTED PERSONAL DATA,333435,Social Community Care,ADOPTION & FOSTERING          
IN HOUSE FOSTER PLACEMENT     ,9270,IN-HOUSE FOSTERING            ,10/04/2012,3241569,243392 20120405 35142    ,828.85,REDACTED PERSONAL DATA,521458,Social Community Care,ADOPTION & FOSTERING          
IN HOUSE FOSTER PLACEMENT     ,9270,IN-HOUSE FOSTERING            ,10/04/2012,3241575,248781 20120405 35142    ,731.00,REDACTED PERSONAL DATA,527968,Social Community Care,ADOPTION & FOSTERING          
IN HOUSE FOSTER PLACEMENT     ,9270,IN-HOUSE FOSTERING            ,10/04/2012,3241579,249843 20120405 35142    ,510.00,REDACTED PERSONAL DATA,566432,Social Community Care,ADOPTION & FOSTERING          
IN HOUSE FOSTER PLACEMENT     ,9270,IN-HOUSE FOSTERING            ,10/04/2012,3241581,250606 20120405 35142    ,896.00,REDACTED PERSONAL DATA,544195,Social Community Care,ADOPTION & FOSTERING          
IN HOUSE FOSTER PLACEMENT     ,9270,IN-HOUSE FOSTERING            ,10/04/2012,3241590,26212 20120405 35142     ,2079.00,REDACTED PERSONAL DATA,333838,Social Community Care,ADOPTION & FOSTERING          
IN HOUSE FOSTER PLACEMENT     ,9270,IN-HOUSE FOSTERING            ,10/04/2012,3241592,26454 20120405 35142     ,780.00,REDACTED PERSONAL DATA,333025,Social Community Care,ADOPTION & FOSTERING          
SPECIAL GUARDIANSHIP          ,9270,RESIDENCE ORDERS              ,10/04/2012,3241594,267388 20120405 35142    ,582.58,REDACTED PERSONAL DATA,526295,Social Community Care,ADOPTION & FOSTERING          
IN HOUSE FOSTER PLACEMENT     ,9270,IN-HOUSE FOSTERING            ,10/04/2012,3241597,27047 20120405 35142     ,601.00,REDACTED PERSONAL DATA,338866,Social Community Care,ADOPTION & FOSTERING          
IN HOUSE FOSTER PLACEMENT     ,9270,IN-HOUSE FOSTERING            ,10/04/2012,3241598,271426 20120405 35142    ,1002.00,REDACTED PERSONAL DATA,527967,Social Community Care,ADOPTION & FOSTERING          
IN HOUSE FOSTER PLACEMENT     ,9270,IN-HOUSE FOSTERING            ,10/04/2012,3241610,280294 20120405 35142    ,807.85,REDACTED PERSONAL DATA,534615,Social Community Care,ADOPTION & FOSTERING          
SPECIAL GUARDIANSHIP          ,9270,RESIDENCE ORDERS              ,10/04/2012,3241613,284355 20120405 35142    ,2439.90,REDACTED PERSONAL DATA,515224,Social Community Care,ADOPTION & FOSTERING          
CARELEAVER IN HOUSE FOSTERING ,9270,IN-HOUSE FOSTERING            ,10/04/2012,3241620,29473 20120405 35142     ,784.00,REDACTED PERSONAL DATA,557434,Unclassified Non Trade,OUT OF SCOPE FOR SIC MONITORIN
ADOPTION SERVICE              ,9270,ADOPTION ALLOWANCES           ,10/04/2012,3241620,29473 20120405 35142     ,715.50,REDACTED PERSONAL DATA,557434,Unclassified Non Trade,OUT OF SCOPE FOR SIC MONITORIN
IN HOUSE FOSTER PLACEMENT     ,9270,IN-HOUSE FOSTERING            ,10/04/2012,3241624,295330 20120405 35142    ,601.00,REDACTED PERSONAL DATA,539221,Social Community Care,ADOPTION & FOSTERING          
IN HOUSE FOSTER PLACEMENT     ,9270,IN-HOUSE FOSTERING            ,10/04/2012,3241626,295830 20120405 35142    ,543.00,REDACTED PERSONAL DATA,539977,Social Community Care,ADOPTION & FOSTERING          
RESIDENCE ORDERS              ,9270,RESIDENCE ORDERS              ,10/04/2012,3241639,301894 20120405 35142    ,568.78,REDACTED PERSONAL DATA,532329,Social Community Care,HOME CARE SERVICES            
IN HOUSE FOSTER PLACEMENT     ,9270,IN-HOUSE FOSTERING            ,10/04/2012,3241644,121470 20120405 35142    ,629.43,REDACTED PERSONAL DATA,453239,Social Community Care,ADOPTION & FOSTERING          
IN HOUSE FOSTER PLACEMENT     ,9270,IN-HOUSE FOSTERING            ,10/04/2012,3241653,316839 20120405 35142    ,796.00,REDACTED PERSONAL DATA,547793,Social Community Care,ADOPTION & FOSTERING          
IN HOUSE FOSTER PLACEMENT     ,9270,IN-HOUSE FOSTERING            ,10/04/2012,3241656,319658 20120405 35142    ,565.00,REDACTED PERSONAL DATA,547113,Social Community Care,ADOPTION & FOSTERING          
IN HOUSE FOSTER PLACEMENT     ,9270,IN-HOUSE FOSTERING            ,10/04/2012,3241657,31985 20120405 35142     ,705.00,REDACTED PERSONAL DATA,379040,Social Community Care,ADOPTION & FOSTERING          
IN HOUSE FOSTER PLACEMENT     ,9270,IN-HOUSE FOSTERING            ,10/04/2012,3241662,329424 20120405 35142    ,656.25,REDACTED PERSONAL DATA,549814,Social Community Care,ADOPTION & FOSTERING          
IN HOUSE FOSTER PLACEMENT     ,9270,IN-HOUSE FOSTERING            ,10/04/2012,3241665,332665 20120405 35142    ,772.00,REDACTED PERSONAL DATA,556392,Social Community Care,ADOPTION & FOSTERING          
RESIDENCE ORDERS              ,9270,RESIDENCE ORDERS              ,10/04/2012,3241668,334411 20120405 35142    ,568.78,REDACTED PERSONAL DATA,551220,Social Community Care,ADOPTION & FOSTERING          
IN HOUSE FOSTER PLACEMENT     ,9270,IN-HOUSE FOSTERING            ,10/04/2012,3241671,3369 20120405 35142      ,688.00,REDACTED PERSONAL DATA,332891,Social Community Care,ADOPTION & FOSTERING          
IN HOUSE FOSTER PLACEMENT     ,9270,IN-HOUSE FOSTERING            ,10/04/2012,3241678,122743 20120405 35142    ,1900.00,REDACTED PERSONAL DATA,502731,Social Community Care,ADOPTION & FOSTERING          
IN HOUSE FOSTER PLACEMENT     ,9270,IN-HOUSE FOSTERING            ,10/04/2012,3241688,348102 20120405 35142    ,772.00,REDACTED PERSONAL DATA,565231,Unclassified Non Trade,OUT OF SCOPE FOR SIC MONITORIN
IN HOUSE FOSTER PLACEMENT     ,9270,IN-HOUSE FOSTERING            ,10/04/2012,3241689,123178 20120405 35142    ,693.00,REDACTED PERSONAL DATA,368216,Social Community Care,ADOPTION & FOSTERING          
IN HOUSE FOSTER PLACEMENT     ,9270,IN-HOUSE FOSTERING            ,10/04/2012,3241694,352400 20120405 35142    ,1002.00,REDACTED PERSONAL DATA,555126,Social Community Care,ADOPTION & FOSTERING          
IN HOUSE FOSTER PLACEMENT     ,9270,IN-HOUSE FOSTERING            ,10/04/2012,3241697,35508 20120405 35142     ,902.00,REDACTED PERSONAL DATA,562193,Social Community Care,ADOPTION & FOSTERING          
IN HOUSE FOSTER PLACEMENT     ,9270,IN-HOUSE FOSTERING            ,10/04/2012,3241700,125668 20120405 35142    ,772.00,REDACTED PERSONAL DATA,545888,Social Community Care,ADOPTION & FOSTERING          
IN HOUSE FOSTER PLACEMENT     ,9270,IN-HOUSE FOSTERING            ,10/04/2012,3241705,362387 20120405 35142    ,858.00,REDACTED PERSONAL DATA,565738,Unclassified Non Trade,OUT OF SCOPE FOR SIC MONITORIN
IN HOUSE FOSTER PLACEMENT     ,9270,IN-HOUSE FOSTERING            ,10/04/2012,3241707,36362 20120405 35142     ,1002.00,REDACTED PERSONAL DATA,338824,Social Community Care,ADOPTION & FOSTERING          
IN HOUSE FOSTER PLACEMENT     ,9270,IN-HOUSE FOSTERING            ,10/04/2012,3241716,38284 20120405 35142     ,1088.00,REDACTED PERSONAL DATA,437897,Social Community Care,ADOPTION & FOSTERING          
IN HOUSE FOSTER PLACEMENT     ,9270,IN-HOUSE FOSTERING            ,10/04/2012,3241720,388616 20120405 35142    ,754.71,REDACTED PERSONAL DATA,566168,Social Community Care,Adoption & Fostering
RESIDENCE ORDERS              ,9270,RESIDENCE ORDERS              ,10/04/2012,3241724,396260 20120405 35142    ,1036.48,REDACTED PERSONAL DATA,566434,Social Community Care,ADOPTION & FOSTERING          
IN HOUSE FOSTER PLACEMENT     ,9270,IN-HOUSE FOSTERING            ,10/04/2012,3241726,39742 20120405 35142     ,1824.00,REDACTED PERSONAL DATA,333115,Social Community Care,ADOPTION & FOSTERING          
IN HOUSE FOSTER PLACEMENT     ,9270,IN-HOUSE FOSTERING            ,10/04/2012,3241737,4239 20120405 35142      ,608.00,REDACTED PERSONAL DATA,333683,Social Community Care,ADOPTION & FOSTERING          
ADOPTION SERVICE              ,9270,ADOPTION ALLOWANCES           ,10/04/2012,3241740,425940 20120405 35142    ,1600.00,REDACTED PERSONAL DATA,561064,Unclassified Non Trade,OUT OF SCOPE FOR SIC MONITORIN
RESIDENCE ORDERS              ,9270,RESIDENCE ORDERS              ,10/04/2012,3241741,42902 20120405 35142     ,646.90,REDACTED PERSONAL DATA,421999,Social Community Care,ADOPTION & FOSTERING          
IN HOUSE FOSTER PLACEMENT     ,9270,IN-HOUSE FOSTERING            ,10/04/2012,3241744,4340 20120405 35142      ,1248.00,REDACTED PERSONAL DATA,338749,Social Community Care,ADOPTION & FOSTERING          
IN HOUSE FOSTER PLACEMENT     ,9270,IN-HOUSE FOSTERING            ,10/04/2012,3241752,459275 20120405 35142    ,654.00,REDACTED PERSONAL DATA,566036,Unclassified Non Trade,OUT OF SCOPE FOR SIC MONITORIN
RESIDENCE ORDERS              ,9270,RESIDENCE ORDERS              ,10/04/2012,3241753,461950 20120405 35142    ,1735.11,REDACTED PERSONAL DATA,566401,Social Community Care,ADOPTION & FOSTERING          
IN HOUSE FOSTER PLACEMENT     ,9270,IN-HOUSE FOSTERING            ,10/04/2012,3241767,127476 20120405 35142    ,1098.28,REDACTED PERSONAL DATA,394621,Social Community Care,ADOPTION & FOSTERING          
IN HOUSE FOSTER PLACEMENT     ,9270,IN-HOUSE FOSTERING            ,10/04/2012,3241768,52188 20120405 35142     ,625.00,REDACTED PERSONAL DATA,395410,Social Community Care,ADOPTION & FOSTERING          
IN HOUSE FOSTER PLACEMENT     ,9270,IN-HOUSE FOSTERING            ,10/04/2012,3241769,5232 20120405 35142      ,2392.65,REDACTED PERSONAL DATA,333284,Social Community Care,ADOPTION & FOSTERING          
IN HOUSE FOSTER PLACEMENT     ,9270,IN-HOUSE FOSTERING            ,10/04/2012,3241772,53755 20120405 35142     ,1050.00,REDACTED PERSONAL DATA,332878,Social Community Care,ADOPTION & FOSTERING          
IN HOUSE FOSTER PLACEMENT     ,9270,IN-HOUSE FOSTERING            ,10/04/2012,3241773,54948 20120405 35142     ,1366.00,REDACTED PERSONAL DATA,401257,Social Community Care,ADOPTION & FOSTERING          
IN HOUSE FOSTER PLACEMENT     ,9270,IN-HOUSE FOSTERING            ,10/04/2012,3241774,55871 20120405 35142     ,601.00,REDACTED PERSONAL DATA,332982,Social Community Care,ADOPTION & FOSTERING          
IN HOUSE FOSTER PLACEMENT     ,9270,IN-HOUSE FOSTERING            ,10/04/2012,3241775,56472 20120405 35142     ,743.00,REDACTED PERSONAL DATA,332894,Social Community Care,ADOPTION & FOSTERING          
IN HOUSE FOSTER PLACEMENT     ,9270,IN-HOUSE FOSTERING            ,10/04/2012,3241777,5899 20120405 35142      ,1071.00,REDACTED PERSONAL DATA,332893,Social Community Care,ADOPTION & FOSTERING          
IN HOUSE FOSTER PLACEMENT     ,9270,IN-HOUSE FOSTERING            ,10/04/2012,3241778,127884 20120405 35142    ,1002.00,REDACTED PERSONAL DATA,382392,Social Community Care,ADOPTION & FOSTERING          
IN HOUSE FOSTER PLACEMENT     ,9270,IN-HOUSE FOSTERING            ,10/04/2012,3241779,59012 20120405 35142     ,1050.00,REDACTED PERSONAL DATA,333610,Social Community Care,ADOPTION & FOSTERING          
IN HOUSE FOSTER PLACEMENT     ,9270,IN-HOUSE FOSTERING            ,10/04/2012,3241780,59205 20120405 35142     ,1803.00,REDACTED PERSONAL DATA,368211,Social Community Care,ADOPTION & FOSTERING          
IN HOUSE FOSTER PLACEMENT     ,9270,IN-HOUSE FOSTERING            ,10/04/2012,3241782,60275 20120405 35142     ,1243.00,REDACTED PERSONAL DATA,429874,Social Community Care,ADOPTION & FOSTERING          
IN HOUSE FOSTER PLACEMENT     ,9270,IN-HOUSE FOSTERING            ,10/04/2012,3241783,60616 20120405 35142     ,2249.00,REDACTED PERSONAL DATA,333511,Social Community Care,ADOPTION & FOSTERING          
IN HOUSE FOSTER PLACEMENT     ,9270,IN-HOUSE FOSTERING            ,10/04/2012,3241785,6158 20120405 35142      ,1843.00,REDACTED PERSONAL DATA,540317,Social Community Care,ADOPTION & FOSTERING          
IN HOUSE FOSTER PLACEMENT     ,9270,IN-HOUSE FOSTERING            ,10/04/2012,3241786,62204 20120405 35142     ,780.00,REDACTED PERSONAL DATA,333618,Social Community Care,ADOPTION & FOSTERING          
RESIDENCE ORDERS              ,9270,RESIDENCE ORDERS              ,10/04/2012,3241788,62544 20120405 35142     ,536.06,REDACTED PERSONAL DATA,333037,Social Community Care,ADOPTION & FOSTERING          
IN HOUSE FOSTER PLACEMENT     ,9270,IN-HOUSE FOSTERING            ,10/04/2012,3241790,62842 20120405 35142     ,1026.00,REDACTED PERSONAL DATA,333091,Social Community Care,ADOPTION & FOSTERING          
ADOPTION ALLOWANCES           ,9270,ADOPTION ALLOWANCES           ,10/04/2012,3241790,62842 20120405 35142     ,935.11,REDACTED PERSONAL DATA,333091,Social Community Care,ADOPTION & FOSTERING          
IN HOUSE FOSTER PLACEMENT     ,9270,IN-HOUSE FOSTERING            ,10/04/2012,3241795,64992 20120405 35142     ,1958.00,REDACTED PERSONAL DATA,333282,Social Community Care,ADOPTION & FOSTERING          
IN HOUSE FOSTER PLACEMENT     ,9270,IN-HOUSE FOSTERING            ,10/04/2012,3241796,65520 20120405 35142     ,1427.00,REDACTED PERSONAL DATA,333005,Social Community Care,ADOPTION & FOSTERING          
IN HOUSE FOSTER PLACEMENT     ,9270,IN-HOUSE FOSTERING            ,10/04/2012,3241797,65854 20120405 35142     ,938.00,REDACTED PERSONAL DATA,338734,Social Community Care,ADOPTION & FOSTERING          
IN HOUSE FOSTER PLACEMENT     ,9270,IN-HOUSE FOSTERING            ,10/04/2012,3241802,68046 20120405 35142     ,783.00,REDACTED PERSONAL DATA,207768,Social Community Care,ADOPTION & FOSTERING          
IN HOUSE FOSTER PLACEMENT     ,9270,IN-HOUSE FOSTERING            ,10/04/2012,3241804,69800 20120405 35142     ,1170.00,REDACTED PERSONAL DATA,328162,Social Community Care,ADOPTION & FOSTERING          
IN HOUSE FOSTER PLACEMENT     ,9270,IN-HOUSE FOSTERING            ,10/04/2012,3241805,69844 20120405 35142     ,717.14,REDACTED PERSONAL DATA,333815,Social Community Care,ADOPTION & FOSTERING          
IN HOUSE FOSTER PLACEMENT     ,9270,IN-HOUSE FOSTERING            ,10/04/2012,3241808,71652 20120405 35142     ,655.00,REDACTED PERSONAL DATA,333207,Social Community Care,ADOPTION & FOSTERING          
IN HOUSE FOSTER PLACEMENT     ,9270,IN-HOUSE FOSTERING            ,10/04/2012,3241809,72432 20120405 35142     ,1244.58,REDACTED PERSONAL DATA,398055,Social Community Care,ADOPTION & FOSTERING          
IN HOUSE FOSTER PLACEMENT     ,9270,IN-HOUSE FOSTERING            ,10/04/2012,3241810,73971 20120405 35142     ,1002.00,REDACTED PERSONAL DATA,332984,Social Community Care,ADOPTION & FOSTERING          
IN HOUSE FOSTER PLACEMENT     ,9270,IN-HOUSE FOSTERING            ,10/04/2012,3241812,128440 20120405 35142    ,886.57,REDACTED PERSONAL DATA,545489,Social Community Care,ADOPTION & FOSTERING          
IN HOUSE FOSTER PLACEMENT     ,9270,IN-HOUSE FOSTERING            ,10/04/2012,3241813,7644 20120405 35142      ,625.00,REDACTED PERSONAL DATA,527335,Social Community Care,ADOPTION & FOSTERING          
IN HOUSE FOSTER PLACEMENT     ,9270,IN-HOUSE FOSTERING            ,10/04/2012,3241814,77354 20120405 35142     ,1168.00,REDACTED PERSONAL DATA,333280,Social Community Care,ADOPTION & FOSTERING          
IN HOUSE FOSTER PLACEMENT     ,9270,IN-HOUSE FOSTERING            ,10/04/2012,3241815,774 20120405 35142       ,1002.00,REDACTED PERSONAL DATA,333661,Social Community Care,ADOPTION & FOSTERING          
IN HOUSE FOSTER PLACEMENT     ,9270,IN-HOUSE FOSTERING            ,10/04/2012,3241817,78545 20120405 35142     ,1303.00,REDACTED PERSONAL DATA,332919,Social Community Care,ADOPTION & FOSTERING          
IN HOUSE FOSTER PLACEMENT     ,9270,IN-HOUSE FOSTERING            ,10/04/2012,3241818,78553 20120405 35142     ,1184.00,REDACTED PERSONAL DATA,333703,Social Community Care,ADOPTION & FOSTERING          
IN HOUSE FOSTER PLACEMENT     ,9270,IN-HOUSE FOSTERING            ,10/04/2012,3241821,81896 20120405 35142     ,1162.00,REDACTED PERSONAL DATA,338778,Social Community Care,ADOPTION & FOSTERING          
IN HOUSE FOSTER PLACEMENT     ,9270,IN-HOUSE FOSTERING            ,10/04/2012,3241828,84339 20120405 35142     ,1242.00,REDACTED PERSONAL DATA,333060,Social Community Care,ADOPTION & FOSTERING          
IN HOUSE FOSTER PLACEMENT     ,9270,IN-HOUSE FOSTERING            ,10/04/2012,3241829,84463 20120405 35142     ,520.00,REDACTED PERSONAL DATA,333636,Social Community Care,ADOPTION & FOSTERING          
IN HOUSE FOSTER PLACEMENT     ,9270,IN-HOUSE FOSTERING            ,10/04/2012,3241830,84605 20120405 35142     ,1368.00,REDACTED PERSONAL DATA,333262,Social Community Care,ADOPTION & FOSTERING          
IN HOUSE FOSTER PLACEMENT     ,9270,IN-HOUSE FOSTERING            ,10/04/2012,3241831,84825 20120405 35142     ,1126.00,REDACTED PERSONAL DATA,332976,Social Community Care,ADOPTION & FOSTERING          
IN HOUSE FOSTER PLACEMENT     ,9270,IN-HOUSE FOSTERING            ,10/04/2012,3241837,90340 20120405 35142     ,1050.00,REDACTED PERSONAL DATA,333663,Social Community Care,ADOPTION & FOSTERING          
IN HOUSE FOSTER PLACEMENT     ,9270,IN-HOUSE FOSTERING            ,10/04/2012,3241838,90657 20120405 35142     ,1427.00,REDACTED PERSONAL DATA,371936,Social Community Care,ADOPTION & FOSTERING          
IN HOUSE FOSTER PLACEMENT     ,9270,IN-HOUSE FOSTERING            ,10/04/2012,3241840,9093 20120405 35142      ,1171.43,REDACTED PERSONAL DATA,333249,Social Community Care,ADOPTION & FOSTERING          
IN HOUSE FOSTER PLACEMENT     ,9270,IN-HOUSE FOSTERING            ,10/04/2012,3241841,91090 20120405 35142     ,1426.40,REDACTED PERSONAL DATA,333434,Social Community Care,ADOPTION & FOSTERING          
IN HOUSE FOSTER PLACEMENT     ,9270,IN-HOUSE FOSTERING            ,10/04/2012,3241842,91281 20120405 35142     ,1131.00,REDACTED PERSONAL DATA,502223,Social Community Care,ADOPTION & FOSTERING          
IN HOUSE FOSTER PLACEMENT     ,9270,IN-HOUSE FOSTERING            ,10/04/2012,3241843,91723 20120405 35142     ,1335.00,REDACTED PERSONAL DATA,333048,Social Community Care,ADOPTION & FOSTERING          
IN HOUSE FOSTER PLACEMENT     ,9270,IN-HOUSE FOSTERING            ,10/04/2012,3241844,91857 20120405 35142     ,1526.00,REDACTED PERSONAL DATA,414480,Social Community Care,ADOPTION & FOSTERING          
IN HOUSE FOSTER PLACEMENT     ,9270,IN-HOUSE FOSTERING            ,10/04/2012,3241849,92756 20120405 35142     ,1403.00,REDACTED PERSONAL DATA,332988,Social Community Care,ADOPTION & FOSTERING          
IN HOUSE FOSTER PLACEMENT     ,9270,IN-HOUSE FOSTERING            ,10/04/2012,3241850,92844 20120405 35142     ,1248.00,REDACTED PERSONAL DATA,377924,Social Community Care,ADOPTION & FOSTERING          
IN HOUSE FOSTER PLACEMENT     ,9270,IN-HOUSE FOSTERING            ,10/04/2012,3241851,93353 20120405 35142     ,1286.00,REDACTED PERSONAL DATA,333631,Social Community Care,ADOPTION & FOSTERING          
IN HOUSE FOSTER PLACEMENT     ,9270,IN-HOUSE FOSTERING            ,10/04/2012,3241853,93777 20120405 35142     ,601.00,REDACTED PERSONAL DATA,333179,Social Community Care,ADOPTION & FOSTERING          
IN HOUSE FOSTER PLACEMENT     ,9270,IN-HOUSE FOSTERING            ,10/04/2012,3241855,93897 20120405 35142     ,1545.44,REDACTED PERSONAL DATA,333547,Social Community Care,ADOPTION & FOSTERING          
RESIDENCE ORDERS              ,9270,RESIDENCE ORDERS              ,10/04/2012,3241858,94349 20120405 35142     ,522.26,REDACTED PERSONAL DATA,332876,Social Community Care,ADOPTION & FOSTERING          
IN HOUSE FOSTER PLACEMENT     ,9270,IN-HOUSE FOSTERING            ,10/04/2012,3241860,95231 20120405 35142     ,700.00,REDACTED PERSONAL DATA,333600,Social Community Care,ADOPTION & FOSTERING          
IN HOUSE FOSTER PLACEMENT     ,9270,IN-HOUSE FOSTERING            ,10/04/2012,3241863,98203 20120405 35142     ,663.00,REDACTED PERSONAL DATA,333450,Social Community Care,ADOPTION & FOSTERING          
IN HOUSE FOSTER PLACEMENT     ,9270,IN-HOUSE FOSTERING            ,10/04/2012,3241871,132001 20120405 35142    ,1859.00,REDACTED PERSONAL DATA,401464,Social Community Care,ADOPTION & FOSTERING          
IN HOUSE FOSTER PLACEMENT     ,9270,IN-HOUSE FOSTERING            ,10/04/2012,3241876,133705 20120405 35142    ,1064.00,REDACTED PERSONAL DATA,419128,Social Community Care,ADOPTION & FOSTERING          
IN HOUSE FOSTER PLACEMENT     ,9270,IN-HOUSE FOSTERING            ,10/04/2012,3241878,133942 20120405 35142    ,601.00,REDACTED PERSONAL DATA,391833,Social Community Care,ADOPTION & FOSTERING          
IN HOUSE FOSTER PLACEMENT     ,9270,IN-HOUSE FOSTERING            ,10/04/2012,3241882,135152 20120405 35142    ,1178.34,REDACTED PERSONAL DATA,418759,Social Community Care,ADOPTION & FOSTERING          
IN HOUSE FOSTER PLACEMENT     ,9270,IN-HOUSE FOSTERING            ,10/04/2012,3241883,136081 20120405 35142    ,625.00,REDACTED PERSONAL DATA,413709,Social Community Care,ADOPTION & FOSTERING          
IN HOUSE FOSTER PLACEMENT     ,9270,IN-HOUSE FOSTERING            ,10/04/2012,3241884,137064 20120405 35142    ,663.00,REDACTED PERSONAL DATA,333536,Social Community Care,ADOPTION & FOSTERING          
IN HOUSE FOSTER PLACEMENT     ,9270,IN-HOUSE FOSTERING            ,10/04/2012,3241894,139839 20120405 35142    ,1243.00,REDACTED PERSONAL DATA,457380,Social Community Care,ADOPTION & FOSTERING          
IN HOUSE FOSTER PLACEMENT     ,9270,IN-HOUSE FOSTERING            ,10/04/2012,3241897,142307 20120405 35142    ,1413.00,REDACTED PERSONAL DATA,502726,Social Community Care,ADOPTION & FOSTERING          
IN HOUSE FOSTER PLACEMENT     ,9270,IN-HOUSE FOSTERING            ,10/04/2012,3241902,14509 20120405 35142     ,1173.00,REDACTED PERSONAL DATA,338767,Social Community Care,ADOPTION & FOSTERING          
ADOPTION SERVICE              ,9270,ADOPTION ALLOWANCES           ,10/04/2012,3241905,146973 20120405 35142    ,714.00,REDACTED PERSONAL DATA,443421,Social Community Care,ADOPTION & FOSTERING          
IN HOUSE FOSTER PLACEMENT     ,9270,IN-HOUSE FOSTERING            ,10/04/2012,3241906,147484 20120405 35142    ,1002.00,REDACTED PERSONAL DATA,434175,Social Community Care,ADOPTION & FOSTERING          
IN HOUSE FOSTER PLACEMENT     ,9270,IN-HOUSE FOSTERING            ,10/04/2012,3241907,147500 20120405 35142    ,601.00,REDACTED PERSONAL DATA,400934,Social Community Care,ADOPTION & FOSTERING          
IN HOUSE FOSTER PLACEMENT     ,9270,IN-HOUSE FOSTERING            ,10/04/2012,3241908,147787 20120405 35142    ,1489.00,REDACTED PERSONAL DATA,435614,Social Community Care,ADOPTION & FOSTERING          
STREET FORCE BALANCE SHEET    ,776,4332101 INVOICES PAID         ,10/04/2012,3241060,79604,574.69,HAGUE PLANT LTD                         ,205330,Vehicles Not Buses,PLANT & MACHINERY HIRE & LEASI
STREET FORCE BALANCE SHEET    ,776,4332101 INVOICES PAID         ,10/04/2012,3241062,2012/007                 ,945.50,AMP CONSTRUCTION LTD                    ,455715,Construction,STEEL FABRICATORS & ERECTORS  
STREET FORCE BALANCE SHEET    ,776,4332101 INVOICES PAID         ,10/04/2012,3241063,2278,2250.00,J WHITE & CO (TDE) LTD                  ,205966,Construction,DEMOLITION & DISMANTLING CONTR
STREET FORCE BALANCE SHEET    ,776,4332101 INVOICES PAID         ,10/04/2012,3241064,3183,1218.50,JOHN-HENRY HAULAGE SHEFFIELD            ,475313,Transport,ROAD HAULAGE SERVICES         
STREET FORCE BALANCE SHEET    ,776,4332101 INVOICES PAID         ,10/04/2012,3241065,501,5397.50,M L SHEPHERD                            ,501200,Vehicles Not Buses,CAR & TRUCK LEASING & CONTRACT
STREET FORCE BALANCE SHEET    ,776,4332101 INVOICES PAID         ,10/04/2012,3241067,6639,554.38,A & W HELLIWELL & SONS LTD              ,202556,Unclassified Trade,FARMING - LIVESTOCK & OTHER AN
STREET FORCE BALANCE SHEET    ,776,4332101 INVOICES PAID         ,10/04/2012,3241071,6644,660.00,A & W HELLIWELL & SONS LTD              ,202556,Unclassified Trade,FARMING - LIVESTOCK & OTHER AN
STREET FORCE BALANCE SHEET    ,776,4332101 INVOICES PAID         ,10/04/2012,3241072,6645,630.00,A & W HELLIWELL & SONS LTD              ,202556,Unclassified Trade,FARMING - LIVESTOCK & OTHER AN
STREET FORCE BALANCE SHEET    ,776,4332101 INVOICES PAID         ,10/04/2012,3241073,6646,660.00,A & W HELLIWELL & SONS LTD              ,202556,Unclassified Trade,FARMING - LIVESTOCK & OTHER AN
STREET FORCE BALANCE SHEET    ,776,4332101 INVOICES PAID         ,10/04/2012,3241074,7612,1364.20,GLEADLESS CIVIL ENGINEERING LTD         ,412782,Highway Equipment and Materials,PAVING & DRIVEWAY CONTRACTORS 
STREET FORCE BALANCE SHEET    ,776,4332101 INVOICES PAID         ,10/04/2012,3241075,7613,1402.30,GLEADLESS CIVIL ENGINEERING LTD         ,412782,Highway Equipment and Materials,PAVING & DRIVEWAY CONTRACTORS 
STREET FORCE BALANCE SHEET    ,776,4332101 INVOICES PAID         ,10/04/2012,3241076,H1004                    ,2759.12,ACL HIGHWAY SERVICES LTD                ,414647,Environmental Services,WASTE DISPOSAL SERVICES       
STREET FORCE BALANCE SHEET    ,776,4332101 INVOICES PAID         ,10/04/2012,3241077,H1011                    ,1970.80,ACL HIGHWAY SERVICES LTD                ,414647,Environmental Services,WASTE DISPOSAL SERVICES       
STREET FORCE BALANCE SHEET    ,776,4332101 INVOICES PAID         ,10/04/2012,3241078,H1026                    ,1970.80,ACL HIGHWAY SERVICES LTD                ,414647,Environmental Services,WASTE DISPOSAL SERVICES       
STREET FORCE BALANCE SHEET    ,776,4332101 INVOICES PAID         ,10/04/2012,3241080,H1035                    ,2364.96,ACL HIGHWAY SERVICES LTD                ,414647,Environmental Services,WASTE DISPOSAL SERVICES       
STREET FORCE BALANCE SHEET    ,776,4332101 INVOICES PAID         ,10/04/2012,3241081,H1044                    ,1576.64,ACL HIGHWAY SERVICES LTD                ,414647,Environmental Services,WASTE DISPOSAL SERVICES       
STREET FORCE BALANCE SHEET    ,776,4332101 INVOICES PAID         ,10/04/2012,3241082,H1051                    ,3941.60,ACL HIGHWAY SERVICES LTD                ,414647,Environmental Services,WASTE DISPOSAL SERVICES       
STREET FORCE BALANCE SHEET    ,776,4332101 INVOICES PAID         ,10/04/2012,3241083,SCC130                   ,1567.00,H.R.SKIP HIRE                           ,541284,Environmental Services,SKIP HIRE                     
STREET FORCE BALANCE SHEET    ,776,4332101 INVOICES PAID         ,10/04/2012,3241085,SCC26                    ,1600.00,H.R.SKIP HIRE                           ,541284,Environmental Services,SKIP HIRE                     
STREET FORCE BALANCE SHEET    ,776,4332101 INVOICES PAID         ,10/04/2012,3241086,SR/CWL25-OG27            ,9281.80,SR PAVING AND GROUNDWORKS LIMITED       ,502099,Highway Equipment and Materials,PAVING & DRIVEWAY CONTRACTORS 
STREET FORCE BALANCE SHEET    ,776,4332101 INVOICES PAID         ,10/04/2012,3241087,79607,1200.00,HAGUE PLANT LTD                         ,205330,Vehicles Not Buses,PLANT & MACHINERY HIRE & LEASI
STREET FORCE BALANCE SHEET    ,776,4332101 INVOICES PAID         ,10/04/2012,3241088,79608,687.99,HAGUE PLANT LTD                         ,205330,Vehicles Not Buses,PLANT & MACHINERY HIRE & LEASI
STREET FORCE BALANCE SHEET    ,776,4332101 INVOICES PAID         ,10/04/2012,3241089,79609,687.99,HAGUE PLANT LTD                         ,205330,Vehicles Not Buses,PLANT & MACHINERY HIRE & LEASI
STREET FORCE BALANCE SHEET    ,776,4332101 INVOICES PAID         ,10/04/2012,3241090,79610,1375.98,HAGUE PLANT LTD                         ,205330,Vehicles Not Buses,PLANT & MACHINERY HIRE & LEASI
STREET FORCE BALANCE SHEET    ,776,4332101 INVOICES PAID         ,10/04/2012,3241091,1203/19666               ,676.00,HATHER PLANT HIRE LIMITED               ,493155,Vehicles Not Buses,PLANT & MACHINERY HIRE & LEASI
STREET FORCE BALANCE SHEET    ,776,4332101 INVOICES PAID         ,10/04/2012,3242735,44714,5135.00,CADLINE LTD                             ,435212,Consultancy,COMPUTER CONSULTANTS          
STREET FORCE BALANCE SHEET    ,776,4332101 INVOICES PAID         ,10/04/2012,3242736,5022,10672.36,EKSPAN LIMITED                          ,549160,Consultancy,STRUCTURAL ENGINEERS          
FIELDWORK STRATEGY CENTRAL    ,5750,TRAINING EXPENDITURE          ,10/04/2012,3242224,ERS INVOICE65398         ,1500.00,JOE SMEETON                             ,332202,Consultancy,COMPUTER SYSTEMS & SOFTWARE (D
FIELDWORK STRATEGY CENTRAL    ,8400,PUBLICATIONS AND PERIODICALS  ,10/04/2012,3242225,ERS INVOICE65400         ,500.00,BRYAN THORNTON                          ,554526,Leisure Services,PROFESSIONAL SPEAKERS         
CARE PROCEEDINGS (LEGAL FEES) ,8470,LEGAL FEES                    ,10/04/2012,3242226,ERS INVOICE65401         ,1248.00,STOCKPORT PSYCHOLOGY SERVICES LIMITED   ,565390,Medical ,PSYCHOLOGISTS                 
CARE PROCEEDINGS (LEGAL FEES) ,8470,LEGAL FEES                    ,10/04/2012,3242227,ERS INVOICE65402         ,2225.00,CEC MORLEY                              ,537729,Unclassified Non Trade,COURTS                        
CARE PROCEEDINGS (LEGAL FEES) ,8470,LEGAL FEES                    ,10/04/2012,3242228,ERS INVOICE65403         ,2225.00,CEC MORLEY                              ,537729,Unclassified Non Trade,COURTS                        
CARE PROCEEDINGS (LEGAL FEES) ,8470,LEGAL FEES                    ,10/04/2012,3242229,ERS INVOICE65404         ,2225.00,CEC MORLEY                              ,537729,Unclassified Non Trade,COURTS                        
CARE PROCEEDINGS (LEGAL FEES) ,8470,LEGAL FEES                    ,10/04/2012,3242231,ERS INVOICE65406         ,2225.00,CEC MORLEY                              ,537729,Unclassified Non Trade,COURTS                        
BUSINESS INTELLIGENCE         ,8440,FEE EXPENSES                  ,10/04/2012,3242232,ERS INVOICE65407         ,1824.70,IAN MILNER                              ,505266,Consultancy,BUSINESS & MANAGEMENT CONSULTA
SWAN COMMISSIONED             ,1143,COMPENSATION                  ,10/04/2012,3242233,ERS INVOICE65411         ,922.62,REDACTED PERSONAL DATA,557074,Unclassified Non Trade,OUT OF SCOPE FOR SIC MONITORIN
SWAN COMMISSIONED             ,1143,COMPENSATION                  ,10/04/2012,3242234,ERS INVOICE65412         ,1630.12,REDACTED PERSONAL DATA,564457,Unclassified Non Trade,OUT OF SCOPE FOR SIC MONITORIN
CLAIMS                        ,8740,EMPLOYERS LIABILITY           ,10/04/2012,3242235,ERS INVOICE65413         ,15000.00,IRWIN MITCHELL SOLICITORS               ,318760,Legal Services,SOLICITORS                    
DISABLED GRANTS               ,1165,NC&A OTHER                    ,10/04/2012,3242236,ERS INVOICE65414         ,1601.00,STANNAH LIFT SERVICES LTD.              ,208625,Social Community Care,STAIRLIFTS - MNFRS & INSTALLER
MINOR WORK GRANTS             ,1165,NC&A OTHER                    ,10/04/2012,3242237,ERS INVOICE65415         ,2000.00,CHAPELTOWN GLASS WINDOW & FACIA COMPANY ,427494,Construction,DOUBLE GLAZING INSTALLERS     
DISABLED GRANTS               ,1165,NC&A OTHER                    ,10/04/2012,3242238,ERS INVOICE65416         ,2151.25,PRISM MEDICAL UK WESTHOLME DIVISION     ,209483,Medical ,DISABILITY EQUIPMENT - MNFRS &
DISABLED GRANTS               ,1165,NC&A OTHER                    ,10/04/2012,3242239,ERS INVOICE65417         ,1651.00,STANNAH LIFT SERVICES LTD.              ,208625,Social Community Care,STAIRLIFTS - MNFRS & INSTALLER
DISABLED GRANTS               ,1165,NC&A OTHER                    ,10/04/2012,3242240,ERS INVOICE65418         ,3600.00,PAUL BEATSON BUILDING CONTRACTORS LTD   ,207418,Construction,BUILDERS                      
DISABLED GRANTS               ,1165,NC&A OTHER                    ,10/04/2012,3242241,ERS INVOICE65419         ,3901.00,STANNAH LIFT SERVICES LTD.              ,208625,Social Community Care,STAIRLIFTS - MNFRS & INSTALLER
VS- VCS GENERAL               ,8180,GRANTS                        ,10/04/2012,3242242,ERS INVOICE65420         ,4133.00,SHEFFIELD SOMALI COMMUNITY CENTRE       ,502584,Unclassified Non Trade,COMMUNITY CENTRES             
EVENTS IN PARKS               ,8200,EVENTS EXPENDITURE            ,10/04/2012,3242247,ERS INVOICE65425         ,500.00,JULIE WILSON                            ,464440,Unclassified Trade,SPORTS MANAGEMENT & PROMOTION 
SIV  2- CONCORD SC AND 3 GOLF ,8180,GRANTS                        ,10/04/2012,3242249,ERS INVOICE65427         ,4760.50,7 HILLS LEISURE TRUST                   ,566500,Leisure Services,SPORTS GROUND & STADIUM CONTRA
DISABLED GRANTS               ,1165,NC&A OTHER                    ,10/04/2012,3242412,ERS INVOICE65433         ,27342.00,PAUL BEATSON BUILDING CONTRACTORS LTD   ,207418,Construction,BUILDERS                      
THORNBRIDGE OUTDOOR CENTRE    ,8440,FEE EXPENSES                  ,10/04/2012,3242414,ERS INVOICE65435         ,735.00,PHILIP HUMBERSTONE                      ,487844,Leisure Services,SPORTS COACHING & INSTRUCTION 
GRANT AID - PERFORMING & COMMU,8180,GRANTS                        ,10/04/2012,3242433,ERS INVOICE65454         ,5500.00,DANCEWORKS UK LTD                       ,325045,Unclassified Non Trade,CHARITIES & VOLUNTARY ORGANISA
CORPORATE COMMUNICATIONS      ,8440,FEE EXPENSES                  ,10/04/2012,3220601,12/1B                    ,1440.54,VILLAGE COMMERCIAL DEVELOPMENTS (2000)  ,302245,Construction,PROPERTY DEVELOPERS           
DIGITAL CALL OFF CONTRACT     ,1157,DWELLINGS MAIN CONTRACT       ,10/04/2012,3225961,76618,876.41,NEW CHANNELS LTD                        ,207092,Domestic Goods,SATELLITE TELEVISION - EQUIPME
PERMANENCE & THROUGHCARE STAFF,6030,REPAIRS AND MTCE - RESPONSIVE ,10/04/2012,3226644,S-000000482206-C         ,540.00,G4S SECURE SOLUTIONS (UK) LTD           ,208284,Facilities Management,SECURITY SERVICES             
OCCUPATIONAL HEALTH & SAFETY  ,8440,FEE EXPENSES                  ,10/04/2012,3226783,MRE/DMAE/161             ,9569.25,DR MALCOLM EAST                         ,542813,Medical ,DOCTORS                       
RUSHEY MEADOWS                ,8440,FEE EXPENSES                  ,10/04/2012,3230887,SINCC3F18618             ,1801.69,OFSTED                                  ,466395,Unclassified Non Trade,EDUCATION AGENCIES & AUTHORITI
CITY CENTRE MANAGEMENT & ADMIN,8440,FEE EXPENSES                  ,10/04/2012,3232631,9463,596.25,ASSOCIATION OF TOWN CENTRE MANAGEMENT   ,342928,Leisure Services,"CLUBS & ASSOCIATIONS - SOCIAL,"
ALDINE HOUSE                  ,7060,EXTERNAL VEHICLE HIRE         ,10/04/2012,3234790,CAR19145                 ,1173.20,CAR-ES (UK) LIMITED                     ,328870,Social Community Care,SOCIAL SERVICES               
ALDINE HOUSE                  ,7060,EXTERNAL VEHICLE HIRE         ,10/04/2012,3234798,CAR19146                 ,1173.20,CAR-ES (UK) LIMITED                     ,328870,Social Community Care,SOCIAL SERVICES               
CONTRACT                      ,7140,PUBLIC TRANSPORT COSTS        ,10/04/2012,3236006,SL0062718                ,600.00,SYPTE                                   ,208757,Transport,BUS & COACH OPERATORS & STATIO
TRANSPORT FLEET MANAGEMENT    ,8020,EQUIPMENT LEASE/ RENTAL/ HIRE ,10/04/2012,3236458,IN093500                 ,2480.00,TRISCAN SYSTEMS LIMITED                 ,459710,Unclassified Trade,ELECTRONIC COMPONENT MNFRS & D
WEST MAST                     ,8010,EQUIPMENT PURCHASE AND REPAIR ,10/04/2012,3236722,116459,2565.50,BDF SOLUTIONS LTD                       ,433921,ICT,DICTATION MACHINES & SYSTEMS  
CORPORATE COMMUNICATIONS      ,8420,ADVERTISING AND PUBLICITY     ,10/04/2012,3236840,2780,500.00,IMAGE FACTORY                           ,299173,Facilities Management,PHOTOGRAPHERS - ADVERTISING & 
CARE PROCEEDINGS (LEGAL FEES) ,8470,LEGAL FEES                    ,10/04/2012,3237107,96851,1275.33,CARTER BROWN ASSOCIATES LTD             ,417243,Medical ,PSYCHOLOGISTS                 
ELECTORAL REGISTRATION        ,8020,EQUIPMENT LEASE/ RENTAL/ HIRE ,10/04/2012,3237156,2012,1033.71,NEOPOST FINANCE LIMITED                 ,207084,Financial Services,LEASING SERVICES              
ELECTORAL REGISTRATION        ,8020,EQUIPMENT LEASE/ RENTAL/ HIRE ,10/04/2012,3237159,2013,1130.98,NEOPOST FINANCE LIMITED                 ,207084,Financial Services,LEASING SERVICES              
